Workbook

Sheet Design Regulator
A1: LM5141-Q1 Synchronous Buck Controller Design Tool
O2: http://www.ti.com/product/lm5175
A3: About | C3: xx | F3: = Input Box | O3: TERMS OF USE
A5: Step 1: Operating Specifications
D6: Input Voltage – Min, VIN(min) | E6: 8 | F6: V
D7: Input Voltage – Nom, VIN(nom) | E7: 13.5 | F7: V
D8: Input Voltage – Max, VIN(max) | E8: 40 | F8: V
D9: Output Voltage, VOUT | E9: 5 | F9: V
D10: Full Load Output Current, IOUT | E10: 15 | F10: A
D11: =IF(OSC=1, "* Tie OSC to VDDA", "* Tie OSC to AGND") -> * Tie OSC to AGND
D12: Switching Frequency, FSW | E12: 400 | F12: kHz
D13: Frequency Set Resistor, RT | E13: ='Variable Management'!C367 -> 54.9 | F13: kΩ
D14: Ambient Temperature, TA | E14: 25 | F14: °C
A16: Step 2: Current Sense Resistor
D17: Required IOCP Setpoint at VIN(nom) | E17: 20 | F17: A
D18: Recommended Sense Resistance | E18: =Rs_ideal*1000 -> 3.308388007 | F18: mΩ
D19: Sense Resistance, RS | E19: 3 | F19: mΩ
D20: Min Inductor Sat Current, ILO(SAT) | E20: ='Variable Management'!B95 -> 25 | F20: A
D21: Max power loss in shunt | E21: ='Variable Management'!B105 -> 1.647108162 | F21: W
D22: VIN(min) | E22: ='Variable Management'!B97 -> 23.41361094 | F22: A
C23: IOUT(typ) at OCP Inception: | D23: VIN(nom) | E23: ='Variable Management'!B98 -> 22.33034945 | F23: A
D24: VIN(max) | E24: ='Variable Management'!B99 -> 21.28178716 | F24: A
A26: Step 3: Buck Inductance
D27: Recommended Inductance | E27: =Lopt*1000000 -> 1.5625 | F27: µH
D28: Inductance, LO | E28: 1.5 | F28: µH
D29: Inductor DCR | E29: 4 | F29: mΩ
D30: DIL as a % at VIN(nom) | E30: ='Variable Management'!B68*100 -> 35.59534063 | F30: %
A34: Step 4: Output Capacitors
D35: Output Voltage Ripple Spec | E35: 100 | F35: mVPK-PK
D36: Minimum Output Capacitance | E36: ='Variable Management'!B121 -> 16.68531592 | F36: µF
D37: Output Capacitance (derated), COUT | E37: 85 | F37: µF | L37: =CHOOSE(SCH_MODE, "", "** For Single-Output Operation in 2-Phase Mode, tie MODE to VDDA and use FB1 to set VOUT **", "** For Single-Output Operation in 3-Phase Mode, tie both MODE pins to VDDA. Use FB1 of master IC to set VOUT. Connect FB2 of master IC to AGND. Connect FB2 of slave IC to VDDA to configure it as a slave **", "** For Single-Output Operation in 4-Phase Mode, tie both MODE pins to VDDA. Use FB1 of master IC to set VOUT. Connect FB2 of master IC to AGND. Connect FB2 of slave IC to VDDA to configure it as a slave **") -> 
D38: Maximum Permitted ESR | E38: ='Variable Management'!B125 -> 18.36465674 | F38: mΩ
D39: Output Capacitor ESR | E39: 1 | F39: mΩ | L39: =CHOOSE(SCH_MODE, "", "** Tie VCCX to GND if not used **", "** Slave controller (CNTRL2) not shown **","** Slave controller (CNTRL2) not shown **") -> 
D40: Resulting Output Voltage Ripple (max) | E40: ='Variable Management'!B127*1000 -> 20.3429726 | F40: mVPK-PK | L40: =IF(OR(SCH_MODE=3, SCH_MODE=4),"** Tie VCCX to GND if not used **", "") -> 
D41: Output Capacitor RMS Current (max) | E41: ='Variable Management'!B114 -> 2.146711186 | F41: ARMS
A43: Step 5: Input Capacitors
D44: Input Voltage Ripple Spec | E44: 500 | F44: mVPK-PK
D45: Minimum Input Capacitance | E45: ='Variable Management'!B146 -> 18.75 | F45: µF
D46: Input Capacitance (derated), CIN | E46: 18 | F46: µF
D47: Maximum Permitted ESR | E47: ='Variable Management'!B152 -> N/A | F47: mΩ
D48: Input Capacitor ESR | E48: 1 | F48: mΩ
D49: Resulting Input Voltage Ripple (max) | E49: ='Variable Management'!B158*1000 -> 539.5515462 | F49: mVPK-PK
D50: Input Capacitor RMS Current (max) | E50: ='Variable Management'!B138 -> 7.330440607 | F50: ARMS
A52: Step 6: Soft-start, Hiccup, Dither, Diode Emulation Mode
D53: Soft-Start Time, tSS | E53: 2.5 | F53: ms
D54: Soft-Start Capacitance, CSS | E54: =IF(Tss>0.5/1000,Css_u*1000000000,"N/A") -> 47 | F54: nF
D55: Hiccup Fault Time, tRES | E55: 3 | F55: ms
D56: RES Capacitance, CRES | E56: =IF(Tres>1/1000,Cres_u*1000000000,"N/A") -> 47 | F56: nF
D57: Modulating Frequency | E57: 9 | F57: =IF(DITHER=1, "kHz", "") -> kHz
D58: =IF(DITHER=1, "DITH Capacitance, Cd", "* Tie DITH to VDDA") -> DITH Capacitance, Cd | E58: =IF(DITHER=1,IF(E57>0,'Standard Value Calculator'!O22*1000000000,"N/A"),"") -> 10 | F58: =IF(DITHER=1, "nF", "") -> nF
D59: =IF(DEMB=1, "* Tie DEMB to VDDA", "* Tie DEMB to AGND") -> * Tie DEMB to VDDA
A62: Step 7: Compensation Design
D63: Load Pole Frequency | E63: =Fp_dominant -> 7110.591213 | F63: Hz
D64: ESR Zero Frequency | E64: =Fesr/1000 -> 1872.411097 | F64: kHz
D65: Desired Crossover Frequency | E65: 60 | F65: =" kHz " -> kHz
D66: Error Amp Pole Frequency | E66: =Fp1_u -> 0.365682323 | F66: Hz
D67: =CHOOSE(VOUT_setting, "Upper Feedback Resistor", "* Tie FB to AGND for Fixed 5V Output", "* Tie FB to VDDA for Fixed 3.3V Output") -> * Tie FB to AGND for Fixed 5V Output | E67: 49.9 | F67: kΩ
D68: =CHOOSE(VOUT_setting, "Lower Feedback Resistor", "", "") ->  | E68: =IF(Vout=Vref,"OPEN",Rfb2_u/1000) -> 15.8 | F68: =IF(Vout=Vref,"","kΩ") -> kΩ
A70: Compensation Components
B71: Calculated / | C71: Std Values | D71: =C71 -> Std Values | F71: Actual P/Z Frequencies
A72: RC1 | B72: =Rcea1/1000 -> 4.005530629 | C72: ='Standard Value Calculator'!O30 -> 4.02 | D72: =C72 -> 4.02 | E72: kΩ | F72: =Fp1_u -> 0.365682323 | G72: Hz (FPEA)
A73: CC1 | B73: =Cc1ea*1000000000 -> 6.6222996 | C73: ='Standard Value Calculator'!O31 -> 6.8 | D73: =C73 -> 6.8 | E73: nF | F73: =Fz1_u/1000 -> 5.82217381 | G73: kHz (FZCOMP)
A74: CC2 | B74: =IF(Cc2ea<0, "N/A", Cc2ea*1000000000000) -> 166.8379993 | C74: ='Standard Value Calculator'!O32 -> 180 | D74: =C74 -> 180 | E74: pF | F74: =Fp2_u/1000 -> 186.8979707 | G74: kHz (FPCOMP)
N75: ** Specify Inductor Core Loss ** | O75: 0.25 | P75: W
A77: Efficiency / Power Loss Analyzer
A79: Step 8: Efficiency
F80: Power MOSFETs | G80: (Q1, Q2)
E81: IAUC60N04S6L039, L032
E82: High-side | F82: Low-side
D83: On-State Resistance, RDS(on) | E83: 4.5 | F83: 3.65 | G83: mΩ
D84: Total Gate Charge, QG | E84: 8 | F84: 9 | G84: nC
D85: Gate-Drain Charge, QGD | E85: 3.1 | F85: 3.9 | G85: nC
D86: Gate-Source Charge, QGS | E86: 2.9 | F86: 3.8 | G86: nC
D87: Output Charge, QOSS | F87: 12 | G87: nC
D88: Output Capacitance, COSS | E88: 259 | F88: 330 | G88: pF
D89: Gate Resistance, RG | E89: 0 | F89: 0 | G89: Ω
D90: Transconductance, gFS | E90: 71 | F90: 71 | G90: S
D91: Gate-Source Threshold Voltage, VTH | E91: 3.2 | F91: 3.2 | G91: V
D92: Body Diode Forward Voltage, VBD | E92: 0.8 | F92: 0.8 | G92: V
D93: Body Diode Rev Recovery Charge, QRR | F93: 13 | G93: nC
D94: Thermal Resistance, θJA | E94: 50 | F94: 50 | G94: °C/W
A96: External Schottky Diode (if applicable)
D97: Schottky Fwd Voltage, VFWDsch | F97: 0 | G97: V
D98: Schottky Rev Recovery Charge, QRRsch | F98: 0 | G98: nC
A100: Step 9: IC Power Loss
D101: IC Power Dissipation | E101: ='Variable Management'!B308 -> 0.034 | F101: W
D102: IC Junction Temperature (estimate) | E102: ='Variable Management'!B310 -> 26.1594 | F102: °C
E103: =CHOOSE(Ext_VCC, "* Tie VCCX to VOUT", "* Tie VCCX to PGND") -> * Tie VCCX to VOUT

Sheet BOM & Schematic
A36: ** Tie DEMB to VDDA for FPWM, AGND for DEM **
A37: ** Tie VCCX to GND if not used ** | I37: =IF(OR(SCH_MODE=3, SCH_MODE=4),"** Tie VCCX to GND if not used **", "") -> 
A38: ** Tie DITH to VDDA to disable spread spectrum **
A39: ** Tie OSC to VDDA for 2.2MHz, AGND for 440kHz **
A40: ="VIN = "&VIN_min&" V to "&VIN_max&" V, VOUT = "& Vout &" V, IOUT = " &Iout & " A, Fsw = " & Fsw/1000 &" kHz, Current Limit = "&ROUNDUP(Ilimit_DC,0)&" A" -> VIN = 8 V to 40 V, VOUT = 5 V, IOUT = 15 A, Fsw = 400 kHz, Current Limit = 20 A
A41: High Efficiency Synchronous Buck Regulator BOM
A42: Count | B42: Ref Des | C42: Value | D42: Description | H42: Size | I42: Part Number | J42: MFR
A43: 1 | B43: CBOOT | C43: 0.1 | D43: =C43 -> 0.1 | H43: 0603 | I43: Std | J43: Std
A44: 1 | B44: CC1 | C44: ='Design Regulator'!D73 -> 6.8 | D44: 6.8 | H44: 0603 | I44: Std | J44: Std
A45: 1 | B45: CC2 | C45: ='Design Regulator'!D74 -> 180 | D45: 180 | H45: 0603 | I45: Std | J45: Std
A46: 1 | B46: CRES | C46: =Cres_u*1000000000 -> 47 | D46: =C46 -> 47 | H46: 0603 | I46: Std | J46: Std
A47: 1 | B47: CDITH | C47: =Cdither*1000000000 -> 10 | D47: =C47 -> 10 | H47: 0603 | I47: Std | J47: Std
A48: =ROUNDUP('Design Regulator'!E46/10,0) -> 2 | B48: CIN | C48: 10 | D48: =C48 -> 10 | H48: 1210 | I48: Std | J48: Std
A49: =ROUNDUP('Design Regulator'!E37/47,0) -> 2 | B49: COUT | C49: 47 | D49: =C49 -> 47 | H49: 1210 | I49: Std | J49: Std
A50: 1 | B50: CSS | C50: ='Design Regulator'!E54 -> 47 | D50: =C50 -> 47 | H50: 0603 | I50: Std | J50: Std
A51: 2 | B51: CVCC, CVCCX | C51: 2.2 | D51: 2.2 | H51: 0603 | I51: Std | J51: Std
A52: 1 | B52: CVDDA | C52: 0.47 | D52: 0.47 | H52: 0603 | I52: Std | J52: Std
A53: 1 | B53: DBOOT | C53: See description | D53: Schottky Diode, 75V, 200mA | H53: - | I53: - | J53: Various
A54: 1 | B54: LO | C54: ='Design Regulator'!E28 -> 1.5 | D54: ="Inductor, "&Lf*1000000&"µH, "&Rdcr*1000&"mΩ, >"&ROUNDUP(Ilimit_DC*1.1,0)&"A" -> Inductor, 1.5µH, 4mΩ, >22A | H54: - | I54: - | J54: Various
A55: 2 | B55: Q1, Q2 | C55: See description | D55: ='Design Regulator'!E83 -> 4.5 | H55: Std | I55: ='Design Regulator'!E81 -> IAUC60N04S6L039, L032 | J55: -
A56: 1 | B56: RC1 | C56: ='Design Regulator'!D72 -> 4.02 | D56: =C56 -> 4.02 | H56: 0603 | I56: Std | J56: Std
A57: 1 | B57: RS | C57: =Rs*1000 -> 3 | D57: 3 | H57: 0508 | I57: Std | J57: Std
A58: 1 | B58: RT | C58: ='Design Regulator'!E13 -> 54.9 | D58: 54.9 | H58: 0603 | I58: Std | J58: Std
A59: 1 | B59: RFB1 | C59: ='Design Regulator'!E67 -> 49.9 | D59: 49.9 | H59: 0603 | I59: Std | J59: Std
A60: 1 | B60: RFB2 | C60: ='Design Regulator'!E68 -> 15.8 | D60: 15.8 | H60: 0603 | I60: Std | J60: Std
A61: 1 | B61: RPGOOD | C61: 100 | D61: 100 | H61: 0603 | I61: Std | J61: Std
A62: 1 | B62: RCS | C62: 100 | D62: 100 | H62: 0603 | I62: Std | J62: Std
A63: 1 | B63: RDEMB | C63: 100 | D63: 100 | H63: 0603 | I63: Std | J63: Std
A64: 1 | B64: RVIN | C64: 2.2 | D64: 2.2 | H64: 0603 | I64: Std | J64: Std
A65: 1 | B65: U1 | C65: LM5141-Q1 | D65: IC, LM5141-Q1, Synchronous Buck PWM Controller, 3.8V–42V Input | H65: VQFN-24 | I65: LM5141QRGEQ1 | J65: TI
A68: NOTES:
A69: ** For information on TI NexFETTM MOSFETs, see ** | D69: www.ti.com | E69: **
A70: ** Inductor saturation current should be higher than the peak inductor current at the OCP setpoint for all input voltages and operating temperatures **
A71: ** Effective input and output capacitances should be appropriately derated for applied voltage and temperature, particularly with ceramics **

Sheet EVM (hidden)
A1: LM5143-Q1 Quickstart Design Tool
B6: LM5143-Q1EVM-2100 PCB Layout

Sheet Variable Management (hidden)
A1: EXCEL Variables Names/Calculations
B2: Input from user =
B3: Output =
B4: Constant
A5: Variable Name | B5: Value | C5: STD Units | E5: Notes | I5: Iteration
A6: Step 1: Operational Specs
A7: VIN_min | B7: ='Design Regulator'!E6 -> 8 | C7: V | D7: Minimum input voltage | I7: 1
A8: VIN_nom | B8: ='Design Regulator'!E7 -> 13.5 | C8: V | D8: Nominal input voltage | K8: =CHOOSE(SCH_MODE, "Efficiency vs. IOUT (Ch1)", "Efficiency vs. IOUT - 2 Ph", "Efficiency vs. IOUT - 3 Ph", "Efficiency vs. IOUT - 4 Ph") -> Efficiency vs. IOUT (Ch1) | L8: 1 | N8: DITHER Enabled | O8: 1 | T8: Dual Outputs | U8: 1 | W8: FPWM | X8: 1 | Z8: =CHOOSE(SCH_MODE, "Bode Plot (Ch1)", "Bode Plot - 2 Ph", "Bode Plot - 3 Ph", "Bode Plot - 4 Ph") -> Bode Plot (Ch1) | AA8: 1
A9: VIN_max | B9: ='Design Regulator'!E8 -> 40 | C9: V | D9: Maximum input voltage | K9: =IF(MODE=1, "Efficiency vs. IOUT (Ch2)", "N/A - Do Not Use") -> Efficiency vs. IOUT (Ch2) | L9: 2 | N9: DITHER Disabled | O9: 2 | T9: Single Output – 2 Phases | U9: 2 | W9: DEM | X9: 2 | Z9: =IF(MODE=1, "Bode Plot (Ch2)", "N/A - Do Not Use") -> Bode Plot (Ch2) | AA9: 2
K10: PLOT_TYPE | L10: 1 | N10: DITHER Yes/No | O10: 1 | P10: 1 = Yes, 2 = No | T10: Single Output – 3 Phases | U10: 3 | W10: FPWM/DEM | X10: 1 | Z10: BODE_PLOT_TYPE | AA10: 1
A11: Vout | B11: ='Design Regulator'!E9 -> 5 | C11: V | D11: Output voltage - channel 1 | T11: Single Output – 4 Phases | U11: 4
A12: Iout | B12: ='Design Regulator'!E10 -> 15 | C12: A | D12: Output current - channel 1 | I12: 1 | T12: Single/Dual Yes/No | U12: 1
I13: 1 | K13: Adjustable | L13: 1 | N13: 3.3V | O13: 1 | T13: MODE (Single/Dual), DUAL = 1, SINGLE = 2 | U13: =IF(U12=1, 1, 2) -> 1 | W13: VCCX Connected | X13: 1
A14: Rout | B14: =Vout/Iout -> 0.3333333333 | C14: W | D14: Load resistance - Channel 1 | K14: 5V | L14: 2 | N14: 5V | O14: 2 | T14: SINGLE OUTPUT (1 = YES) | U14: =IF(U12=1, 2, 1) -> 2 | W14: No External VCC | X14: 2
K15: 3.3V | L15: 3 | N15: Adjustable | O15: 3 | T15: Number of Phases | U15: =SCH_MODE -> 1 | W15: Ext_VCC | X15: 1
A16: Pout | B16: =Vout*Iout -> 75 | C16: W | D16: Output power | K16: Output Voltage Setting | L16: =IF(Vout=3.3, 3, IF(Vout=5, 2, 1)) -> 2 | N16: Ch2 Output Setting | O16: =IF(Vout2=3.3, 1, IF(Vout2=5, 2, 3)) -> 3
A18: Efficiency | B18: 0.9 | D18: Estimate of efficiency
A19: Pin | B19: =Pout/Efficiency -> 83.33333333 | C19: W | D19: Calculate input power assuming finite efficiency | W19: 2.2 MHz Fsw Setting | X19: 1
W20: 440 kHz Fsw Setting | X20: 2
A21: Iin_Vinmin | B21: =Pin/VIN_min -> 10.41666667 | C21: A | L21: =Vout -> 5 | W21: OSC | X21: 2
A22: Iin_Vinnom | B22: =Pin/VIN_nom -> 6.172839506 | C22: A | D22: Input currents at min, nom, max Vin | H22: =AND(OSC=1, OR(Fsw/1000>2530, Fsw/1000<1800)) -> FALSE
A23: Iin_Vinmax | B23: =Pin/VIN_max -> 2.083333333 | C23: A | H23: =AND(OSC=2, OR(Fsw/1000>500, Fsw/1000<300)) -> FALSE
H24: =OR(H22,H23) -> FALSE
A25: OSC setting | B25: =CHOOSE(OSC, 2200, 440) -> 440 | C25: kHz
A26: Fsw | B26: ='Design Regulator'!E12*1000 -> 400000 | C26: Hz | D26: Nominal switching frequency - determines RT resistor (SYNCIN must be 80-120% of this) | N26: Min CS Gain - 11.4 | O26: 1
A27: RT resistor to AGND - 2.2MHz setting | B27: =(1/(Fsw/1000000)-0.0216)/0.0086 -> 288.1860465 | C27: kΩ | K27: Adjustable | L27: 1 | N27: Nom CS Gain - 12 | O27: 2
A28: RT resistor to AGND - 440kHz setting | B28: =(1/(Fsw/1000)-0.0000138)/0.000045 -> 55.24888889 | C28: kΩ | I28: 1 | K28: 5V | L28: 2 | N28: Max CS Gain - 12.6 | O28: 3
A29: Tsw | B29: =1/Fsw -> 2.5e-06 | C29: sec | D29: Switching period | K29: 3.3V | L29: 3 | N29: CS Gain | O29: 2
A30: Vref | B30: 1.2 | C30: V | D30: Reference voltage | K30: Adjustable_NoRT | L30: 4 | O30: =CHOOSE(O29, 11.4, 12, 12.6) -> 12
A31: Rt | B31: =CHOOSE(OSC, 'Standard Value Calculator'!O12/1000, 'Standard Value Calculator'!O13/1000) -> 54.9 | C31: kΩ | D31: Frequency set resistor | F31: =IF(OR((Fsw=440000),(Fsw=2200000)),"N/A",Rfadj/1000) -> 0.0549 | K31: 5V_NoRT | L31: 5
K32: 3.3V_NoRT | L32: 6 | N32: Min EA gm - 1.01mS | O32: 1010
A33: Step 2: Buck Inductor | B33: Channel 1 | K33: Schematic setting | L33: =IF(No_RT, IF(Vout=3.3, 6, IF(Vout=5, 5, 4)),IF(Vout=3.3, 3, IF(Vout=5, 2, 1))) -> 2 | N33: Nom EA gm - 1.2mS | O33: 1200
A34: Don1 | B34: =Vout/VIN_nom -> 0.3703703704 | F34: Ideal Duty Cycle at VIN(nom) | N34: Max EA gm - 1.4mS | O34: 1400
A35: Doff1 | B35: =1-34:34 -> 0.6296296296 | F35: Ideal 1- Duty Cycle at VIN(nom) | N35: EA Transconductance | O35: 2
O36: =CHOOSE(O35, 0.000101, 0.0012, 0.0014) -> 0.0012
A37: D_Vinmin | B37: =Vout/VIN_min -> 0.625
A38: D_Vinnom | B38: =Vout/VIN_nom -> 0.3703703704
A39: D_Vinmax | B39: =Vout/VIN_max -> 0.125
A41: L_Vinnom | B41: =(VIN_nom-Vout)*D1_Vinnom/(Fsw*(Iout/Number_of_Phases)*0.35) -> 1.499118166e-06 | C41: H | F41: Calculated inductance for 35% ripple at VIN(nom)
A42: L_slopecomp | B42: =1000*Vout*Rs/24/Fsw -> 1.5625e-06 | C42: H | F42: Calculated inductance based on one times inductor downslope
A44: Lopt | B44: =B42 -> 1.5625e-06 | C44: H | F44: min of calculated inductances at VIN(min) and VIN(nom)
A46: Lo | B46: ='Design Regulator'!E28/1000000 -> 1.5e-06 | C46: H | F46: Chosen inductance
A47: Rdcr | B47: ='Design Regulator'!E29/1000 -> 0.004 | C47: W | F47: Chosen inductor DCR
A49: Don2 | B49: =(Vout+Iout*(Rdcr+Rs))/(Vin+Iout*Rs) -> 0.376891842
A50: Doff2 | B50: =1-_Don2 -> 0.623108158
A52: D_Vinmin_2 | B52: =CHOOSE(MODE, (Vout+Iout*(Rdcr+Rs))/(VIN_min+Iout*Rs), (Vout+Iout/Number_of_Phases*(Rdcr+Rs))/(VIN_min+Iout/Number_of_Phases*Rs)) -> 0.6345556246 | F52: Duty cycles adjusted for DCR/shunt voltage drops
A53: D_Vinnom_2 | B53: =CHOOSE(MODE, (Vout+Iout*(Rdcr+Rs))/(VIN_nom+Iout*Rs), (Vout+Iout/Number_of_Phases*(Rdcr+Rs))/(VIN_nom+Iout/Number_of_Phases*Rs)) -> 0.376891842 | F53: need to include RDS(on) later
A54: D_Vinmax_2 | B54: =CHOOSE(MODE, (Vout+Iout*(Rdcr+Rs))/(VIN_max+Iout*Rs), (Vout+Iout/Number_of_Phases*(Rdcr+Rs))/(VIN_max+Iout/Number_of_Phases*Rs)) -> 0.1274815832
A56: Iripple_Vinmin | B56: =(VIN_min-Vout)*D1_Vinmin_2/(Fsw*Lf) -> 3.172778123 | C56: A
A57: Iripple_Vinnom | B57: =(VIN_nom-Vout)*D1_Vinnom_2/(Fsw*Lf) -> 5.339301095 | C57: A
A58: Iripple_Vinmax | B58: =(VIN_max-Vout)*D1_Vinmax_2/(Fsw*Lf) -> 7.436425688 | C58: A
A60: Ishunt_rms_Vinmin | B60: =SQRT((Iout/Number_of_Phases)^2+(Iripple_Vinmin^2)/12) -> 15.02793654 | C60: A
A61: Ishunt_rms_Vinnom | B61: =SQRT((Iout/Number_of_Phases)^2+(Iripple_Vinnom^2)/12) -> 15.07898133 | C61: A
A62: Ishunt_rms_Vinmax | B62: =SQRT((Iout/Number_of_Phases)^2+(Iripple_Vinmax^2)/12) -> 15.15283369 | C62: A
A63: Max shunt power loss at full load | B63: =B61^2*Rs -> 0.682127034 | C63: W | F63: Note this is power loss at full load - not loss near OCP!
A65: Max inductor ripple current | B65: =MAX(B56:B58) -> 7.436425688 | C65: A | F65: Ripple current at Vin(max)
B67: =B56/(Iout/Number_of_Phases) -> 0.2115185415
A68: % ripple current | B68: =B57/(Iout/Number_of_Phases) -> 0.3559534063
B69: =B58/(Iout/Number_of_Phases) -> 0.4957617125
A71: Inductor copper temerature | B71: 100 | C71: °C
A72: DCR at hot | B72: =Rdcr*(1+0.0039*(B71-25)) -> 0.00517 | C72: W
A75: Step 3: Sense Resistors, Slope Comp, Current Limit
A77: Ilimit_DC | B77: ='Design Regulator'!E17 -> 20 | C77: A | F77: Chosen OCP level - based on output current
A79: Ilimit_inductor_Vinmin | B79: =CHOOSE(MODE, Ilimit_DC+Iripple_Vinmin/2, Ilimit_DC/Number_of_Phases+Iripple_Vinmin/2) -> 21.58638906 | C79: A | F79: Peak inductor current at current limit inception
A80: Ilimit_inductor_Vinnom | B80: =CHOOSE(MODE, Ilimit_DC+Iripple_Vinnom/2, Ilimit_DC/Number_of_Phases+Iripple_Vinnom/2) -> 22.66965055 | C80: A
A81: Ilimit_inductor_Vinmax | B81: =CHOOSE(MODE, Ilimit_DC+Iripple_Vinmax/2, Ilimit_DC/Number_of_Phases+Iripple_Vinmax/2) -> 23.71821284 | C81: A
A84: CS threshold_min | B84: 0.068 | C84: V
A85: CS threshold | B85: 0.075 | C85: V
A86: CS threshold_max | B86: 0.082 | C86: V
A88: Shunt required to get OCP at VIN(min) | B88: =Buck_CS_threshold/B79 -> 0.003474411574 | C88: W
A89: Shunt required to get OCP at VIN(nom) | B89: =Buck_CS_threshold/B80 -> 0.003308388007 | C89: W
A90: Shunt required to get OCP at VIN(max) | B90: =Buck_CS_threshold/B81 -> 0.003162126948 | C90: W
A92: Rs_ideal | B92: =B89 -> 0.003308388007 | C92: W | F92: Ideal Rs for the required OCP -- based on 73mV CL threshold
A93: Rs | B93: ='Design Regulator'!E19/1000 -> 0.003 | C93: W | F93: Selected (starndard value) current limit sense resistor
A95: Current limit - peak | B95: =Buck_CS_threshold/Rs -> 25 | C95: A | F95: Peak inductor current limit = min sat current
A97: Iout_OCP_Vinmin | B97: =Number_of_Phases*(Buck_CS_threshold/Rs-Iripple_Vinmin/2) -> 23.41361094 | C97: A | F97: Current limit setpoints (i.e. IOUT) after standard components are selected
A98: Iout_OCP_Vinnom | B98: =Number_of_Phases*(Buck_CS_threshold/Rs-Iripple_Vinnom/2) -> 22.33034945 | C98: A
A99: Iout_OCP_Vinmax | B99: =Number_of_Phases*(Buck_CS_threshold/Rs-Iripple_Vinmax/2) -> 21.28178716 | C99: A
A101: Irms_OCP_Vinmin | B101: =SQRT((Iout_OCP_Vinmin/Number_of_Phases)^2+(Iripple_Vinmin^2)/12) -> 23.43151839 | C101: A
A102: Irms_OCP_Vinnom | B102: =SQRT((Iout_OCP_Vinnom/Number_of_Phases)^2+(Iripple_Vinnom^2)/12) -> 22.38348017 | C102: A
A103: Irms_OCP_Vinmax | B103: =SQRT((Iout_OCP_Vinmax/Number_of_Phases)^2+(Iripple_Vinmax^2)/12) -> 21.38978339 | C103: A
A105: Pshunt_Vinmin | B105: =B101^2*Rs -> 1.647108162 | C105: W | F105: Max power dissipations in shunt
A106: Pshunt_Vinnom | B106: =B102^2*Rs -> 1.503060554 | C106: W
A107: Pshunt_Vinmax | B107: =B103^2*Rs -> 1.3725685 | C107: W
A110: Step 4: Output Capacitor
A111: Icoutrms_VINmin | B111: =Iripple_Vinmin/SQRT(12) -> 0.9159021517 | C111: A | F111: Output Cap RMS current
A112: Icoutrms_VINnom | B112: =Iripple_Vinnom/SQRT(12) -> 1.541323462 | C112: A
A113: Icoutrms_VINmax | B113: =Iripple_Vinmax/SQRT(12) -> 2.146711186 | C113: A
A114: Max Cout rms current | B114: =MAX(B111:B113) -> 2.146711186 | C114: A
A116: Vripple1 | B116: ='Design Regulator'!E35/1000 -> 0.1 | C116: V | F116: Output voltage ripple spec(pk-pk)
A118: Output Ripple Spec (pk-pk) | B118: =Vo1_ripple*1000 -> 100 | C118: mV | F118: Vout ripple spec at Vin(nom)
A120: Coutmin | B120: =Iripple_Vinnom/(Fsw*8*Vo1_ripple) -> 1.668531592e-05 | C120: F | F120: Minimum output capacitnace | H120: =Vo2_ripple -> 0 | I120: 1
A121: Reported Coutmin | B121: =IF(Cout_min*1000000<2, 2.2,Cout_min*1000000) -> 16.68531592 | C121: uF
A122: Cout | B122: ='Design Regulator'!E37/1000000 -> 8.5e-05 | C122: F | F122: Chosen output capacitance | I122: 1
A123: Resrmax | B123: =SQRT((Vo1_ripple/Iripple_Vinnom)^2-(1/(Fsw*Cout*8))^2) -> 0.01836465674 | C123: W | F123: Max ESR before ripple exceeds Vripple1 | I123: 1
A125: Reported Cout ESR max | B125: =IF(OR(CoutEsrMax>0.3, CoutEsrMax<0, (ISERROR(CoutEsrMax))), "N/A", CoutEsrMax*1000) -> 18.36465674 | C125: mΩ
A126: CoutEsr | B126: ='Design Regulator'!E39/1000 -> 0.001 | C126: W | F126: Chosen ESR | I126: 1 | K126: =ISERROR(CoutEsrMax) -> FALSE | L126: =ISERROR(B125) -> FALSE
A127: Vripple | B127: =Iripple_Vinnom*SQRT(Cout_ESR^2+(1/(8*Fsw*Cout))^2) -> 0.0203429726 | C127: Vp-p | L127: =OR(CoutEsrMax>0.3,CoutEsrMax<0) -> FALSE
K128: =OR(TRUE, FALSE, TRUE) -> TRUE
A129: Step 5: Input Capacitor
K130: Two channels operating at full load
A131: Icinrms_VINmin | B131: =SQRT(D1_Vinmin_2*(Iout^2*(1-D1_Vinmin_2)+Iripple_Vinmin^2/12)) -> 7.260071648 | C131: A | F131: Calculate input cap rms current with one output unloaded | K131: =SQRT(Iout^2*D1_Vinmin*(1-D1_Vinmin)+Iout2^2*D2_Vinmin*(1-D2_Vinmin)-2*Iout*Iout2*D1_Vinmin*D2_Vinmin) ->  | L131: A | M131: =SQRT(Iout^2*D1_Vinmin*(1-D1_Vinmin)+Iout2^2*D2_Vinmin*(1-D2_Vinmin)-2*Iout*Iout2*(0.5-D2_Vinmin*(1-D1_Vinmin))) ->  | N131: A
A132: Icinrms_VINnom | B132: =SQRT(D1_Vinnom_2*(Iout^2*(1-D1_Vinnom_2)+Iripple_Vinnom^2/12)) -> 7.330440607 | C132: A | K132: =SQRT(Iout^2*D1_Vinnom*(1-D1_Vinnom)+Iout2^2*D2_Vinnom*(1-D2_Vinnom)-2*Iout*Iout2*D1_Vinnom*D2_Vinnom) ->  | L132: A
A133: Icinrms_VINmax | B133: =SQRT(D1_Vinmax_2*(Iout^2*(1-D1_Vinmax_2)+Iripple_Vinmax^2/12)) -> 5.061051148 | C133: A | K133: =SQRT(Iout^2*D1_Vinmax*(1-D1_Vinmax)+Iout2^2*D2_Vinmax*(1-D2_Vinmax)-2*Iout*Iout2*D1_Vinmax*D2_Vinmax) ->  | L133: A
A134: Max Cin rms current | B134: =MAX(B131:B133) -> 7.330440607 | C134: A | K134: =MAX(K131:K133) ->  | L134: A
F135: =Number_of_Phases*D1_Vinnom -> 0.3703703704 | G135: N*D
A136: Icinrms - multiphase | B136: =Iout*SQRT((D1_Vinnom-F136/Number_of_Phases)*((F136+1)/Number_of_Phases-D1_Vinnom)) -> 7.243558228 | C136: A | F136: =FLOOR(Number_of_Phases*D1_Vinnom,1) -> 0 | G136: floor(N*D)
A137: Icinrms - multiphase - max | B137: =Iout/2/Number_of_Phases -> 7.5 | C137: A
A138: Final result | B138: =CHOOSE(MODE, B134, B137) -> 7.330440607 | C138: A | D138: …report this
A140: Vinripple1 | B140: ='Design Regulator'!E44/1000 -> 0.5 | C140: Vp-p | F140: Input voltage ripple spec (pk-pk)
A142: Cinmin_Vinmin | B142: =Iout/Number_of_Phases*D1_Vinmin*(1-D1_Vinmin)/(Vinripple1*Fsw) -> 1.7578125e-05 | C142: F
A143: Cinmin_Vinmax | B143: =Iout/Number_of_Phases*D1_Vinmax*(1-D1_Vinmax)/(Vinripple1*Fsw) -> 8.203125e-06 | C143: F | F143: Calculate cap at Vinmax and 50% duty cycle (Vin = 2*Vout)
A144: Cinmin_50%D | B144: =Iout*0.5*(1-0.5)/(Vinripple1*Fsw) -> 1.875e-05 | C144: F | F144: Buck 50% typically worst case
A145: Cinmin | B145: =IF(VIN_min>2*Vout, B142,B144) -> 1.875e-05 | C145: F
A146: Reported Cinmin | B146: =IF(Cinmin*1000000<10, 10,Cinmin*1000000) -> 18.75 | C146: uF | F146: …report this
A147: Cin | B147: ='Design Regulator'!E46/1000000 -> 1.8e-05 | C147: F | F147: Input capacitance
A148: CinEsrMax_Vinmin | B148: =-(Iout/Number_of_Phases*D1_Vinmin*(1-D1_Vinmin)/(Cin*Fsw)-Vinripple1)/(Iout/Number_of_Phases+Iripple_Vinmin/2) -> 0.000706528103 | C148: W
A149: CinEsrMax_Vinmax | B149: =-(Iout/Number_of_Phases*D1_Vinmax*(1-D1_Vinmax)/(Cin*Fsw)-Vinripple1)/(Iout/Number_of_Phases+Iripple_Vinmax/2) -> 0.01453853629 | C149: W
A150: CinEsrMax_50%D | B150: =-(Iout/Number_of_Phases*0.5*(1-0.5)/(Cin*Fsw)-Vinripple1)/(Iout/Number_of_Phases+Iripple_Vinmax/2) -> -0.001112997993 | C150: W | F150: Calculate ESR at Vinmax and 50% duty cycle (Vin = 2*Vout)
A151: CinEsrMax | B151: =IF(VIN_min>2*Vout, B148,B150) -> -0.001112997993 | C151: W
A152: Reported Cin ESR max | B152: =IF(OR(CinEsrMax>0.3, CinEsrMax<0), "N/A",CinEsrMax*1000) -> N/A | C152: mΩ | F152: …report this
A153: RCinEsr | B153: ='Design Regulator'!E48/1000 -> 0.001 | C153: W | F153: Input capacitance series resistance (ESR)
A155: Vinripple2_Vinmin | B155: =Iout/Number_of_Phases*D1_Vinmin_2*(1-D1_Vinmin_2)/(Cin*Fsw)+(Iout/Number_of_Phases +Iripple_Vinmin/2)*RCinEsr -> 0.4997005222 | C155: Vp-p
A156: Vinripple2_Vinmax | B156: =Iout/Number_of_Phases*D1_Vinmax_2*(1-D1_Vinmax_2)/(Cin*Fsw)+(Iout/Number_of_Phases +Iripple_Vinmax/2)*RCinEsr -> 0.2504474403 | C156: Vp-p
A157: Vinripple2_50%D | B157: =Iout/Number_of_Phases*0.5*(1-0.5)/(Cin*Fsw)+(Iout/Number_of_Phases +Iripple_Vinmax/2)*RCinEsr -> 0.5395515462 | C157: Vp-p | F157: Calculate ripple at Vinmax and 50% duty cycle (Vin = 2*Vout)
A158: Vinripple2 | B158: =IF(VIN_min>2*Vout, B155,B157) -> 0.5395515462 | C158: Vp-p | F158: …report highest of these
B160: =Iout*D1_Vinmax_2*(1-D1_Vinmax_2)/(Cin*Fsw) -> 0.2317292274 | C160: Vp-p
A162: Step 6a: Soft Start
A163: Tss | B163: ='Design Regulator'!E53/1000 -> 0.0025 | C163: s | D163: Soft-start time
A164: Iss | B164: =Cout*Vout/Tss -> 0.17 | C164: A | D164: Load cap current during soft start
A165: Css | B165: =0.000022*Tss/1.2 -> 4.583333333e-08 | C165: F
A166: Css_u | B166: ='Standard Value Calculator'!B4 -> 4.7e-08 | C166: F
A168: Step 6b: Other Components - Dither, Hiccup, DEMB, MODE
A169: Tres | B169: ='Design Regulator'!E55/1000 -> 0.003 | C169: s | D169: Hiccup time
A170: Cres | B170: =0.00002*Tres/1.2 -> 5e-08 | C170: F
A171: Cres_u | B171: ='Standard Value Calculator'!G4 -> 4.7e-08 | C171: F
A173: RPG1/2 | B173: 100 | C173: kΩ
A174: RFB1/2 | C174: W | E174: Tie to VDDA or AGND for 3.3V/5V output, respectively.
A175: R_MODE | C175: W | E175: Tie to VDDA or AGND for Single/Dual operation, respectively.
A176: R_DEMB | C176: W | E176: Tie to VDDA or AGND for FPWM/DEM, respectively.
A178: Dither Modulation Frequency | B178: ='Design Regulator'!E57*1000 -> 9000 | C178: Hz
A179: Cdither_calculated | B179: =10*10^-6/Fdither/0.12 -> 9.259259259e-09 | C179: F
A180: Cdither_stdvalue | B180: ='Standard Value Calculator'!O22 -> 1e-08 | C180: F
A183: Step 7: Compensation
A184: Pi | B184: 3.14159265 | D184: p
A185: CS Amp Gain | B185: =O30 -> 12
A186: Ri | B186: =Rs*CSAmp_gain -> 0.036 | C186: W | F186: Current Sense effective resistance = shunt resistor Rs * CS amp gain
A187: gm | B187: =O36 -> 0.0012 | C187: S | F187: Error Amp Transconductance
A189: Se_ext | B189: =B193/Ri*1000 -> 3232323.232 | C189: A/s | F189: Slope Comp Slope - referred to inductor current
A190: Sn | B190: =(Vin-Vout)/Lf -> 5666666.667 | C190: A/s | F190: On-time Slope
A191: Sf | B191: =Vout/Lf -> 3333333.333 | C191: A/s | F191: Off-time Slope
A193: Se_int | B193: =Fsw/220*64/1000 -> 116.3636364 | C193: mV/μs | F193: Slope Comp Slope - referred to IC
A194: Sn_int | B194: =Sn*Ri/1000 -> 204 | C194: mV/μs | F194: etc
A195: Sf_int | B195: =Sf*Ri/1000 -> 120 | C195: mV/μs | F195: etc
A197: mc_buck | B197: =1+Se_ext/Sn -> 1.570409982 | F197: mc = 1 + Se/Sn for peak current-mode buck
A198: k_buck | B198: =mc_buck*(1-D1_Vinnom_2) -> 0.9785352713 | F198: mc*(1-d)
A200: mc | B200: =1+Se_ext/Sn -> 1.570409982
A201: k | B201: =mc_buck*(1-D1_Vinnom_2) -> 0.9785352713
A202: Q | B202: =1/Pi/(k-0.5) -> 0.6651753918 | F202: 1/(Pi*(k-0.5)) | H202: Q = 2/Pi = 0.636 gives ideal one-cycle damping
A204: Error Amp (EA)
A205: GBW | B205: 6 | C205: MHz | F205: EA gain-bandwidth product
A206: Cbw | B206: =gm/(2*Pi*GBW*1000000) -> 3.183098865e-11 | C206: F | F206: EA effective bandwidth limiting capacitance = gm/(2*Pi*GBW)
A207: RoEA | B207: 64000000 | C207: W | F207: EA output resistance
A208: AEA | B208: =gm*RoEA -> 76800 | C208: V/V | F208: EA DC gain = gm*RoEA
A209: Afb | B209: =Vref/Vout -> 0.24 | C209: V/V | F209: Feedback gain from Vout to FB
A210: Acs | B210: =1/Ri -> 27.77777778 | F210: Acs = 1/Ri
A211: Am_buck | B211: =(Ro/Number_of_Phases)/Ri/((1+Ro/Number_of_Phases*(k-0.5)/(Fsw*Lf))) -> 7.314640628
A212: Am | B212: =(Ro*Number_of_Phases)/Ri/((1+Ro*Number_of_Phases*(k-0.5)/(Fsw*Lf))) -> 7.314640628 | F212: Buck modulator gain
A214: Scaling factor to calculate Rcomp - buck | B214: =2*Pi*Ri/gm -> 188.495559 | F214: 2*Pi*Ri/gm -- scaling factor to calculate Rcomp given desired buck crossover frequency
A215: DC Gain is Adc = AEA*Afb*Am
A217: Ro | B217: =Rout -> 0.3333333333 | C217: W | F217: Output Resistance
A219: Fp_load_buck | B219: =1/(2*Pi*Ro*Cout)+(k-0.5)/(2*Pi*Fsw*Lf*Cout/Number_of_Phases) -> 7110.591213 | C219: Hz | F219: Buck dominant pole frequency -- note slope comp influence
A220: Fp_dominant | B220: =Fload_u -> 7110.591213 | C220: Hz
B221: =Cbw -> 3.183098865e-11
A222: Fp_EA | B222: =1/(2*Pi*(RoEA+Rcea1_u)*Cc1ea_u) -> 0.365682323 | C222: Hz | F222: Error Amp LF pole -- related to amplifier ouptut resistance and comp cap
A223: Fp_HF | B223: =1/(2*Pi*Rcea1_u*(Cc2ea_u+Cbw)) -> 186897.9707 | C223: Hz | F223: Error Amp HF pole cancels zero related to Output Cap ESR
A224: Fesr | B224: =1/(2*Pi*Cout*Cout_ESR) -> 1872411.097 | C224: Hz | F224: Cout ESR zero frequency
A225: F_mod | B225: =Fsw/2 -> 200000 | C225: Hz | F225: Zero-order sample-and-hold effects of current-mode control modeled as pole at Fsw/2
A227: Desired Crossover Frequency | B227: ='Design Regulator'!E65*1000 -> 60000 | C227: Hz
A228: Rcea1 | B228: =Fcross*Cout/Number_of_Phases*2*Pi*Ri/(gm*Afb) -> 4005.530629 | C228: W | F228: This component will largely determine the crossover frequency | K228: =Fcross/Fp_dominant/(gm*Afb*Am) -> 4005.530629
A229: Cc1ea, Cc3ea | B229: =10/(Rcea1*Fcross*2*Pi) -> 6.6222996e-09 | C229: F | F229: This along with Rcea1 will set a zero at Fcrossover/5 to optimize phase margin
A230: Cc2ea, Cc4ea | B230: =MAX(1/(Rcea1*2*Pi*Fesr)-Cbw, 1/(Rcea1*2*Pi*(Fsw/2))-Cbw) -> 1.668379993e-10 | C230: F | F230: This along with Rcea1 places a pole at the output cap ESR zero
A232: Chosen Compensation Components from the standard value sheet
A233: Rcea1_u | B233: ='Design Regulator'!D72*1000 -> 4020 | C233: W | F233: =1/(Rcea1*2*Pi*(Fsw/2))-Cbw -> 1.668379993e-10
A234: Cc1ea_u | B234: ='Design Regulator'!D73*0.000000001 -> 6.8e-09 | C234: F
A235: Cc2ea_u | B235: ='Design Regulator'!D74*0.000000000001 -> 1.8e-10 | C235: F
A237: Resulting Pole/Zero Locations | F237: =Cout -> 8.5e-05 | G237: =Cout_ESR -> 0.001
A238: Fz1 | B238: =1/(2*Pi*Rcea1_u*Cc1ea_u) -> 5822.17381 | C238: Hz | F238: This zero is set at or close to the dominant load pole
A239: Fp2 | B239: =1/(2*Pi*Rcea1_u*(Cc1ea_u*(Cc2ea_u+Cbw)/(Cc1ea_u+Cc2ea_u+Cbw))) -> 192720.1445 | C239: Hz | F239: This pole cancels the zero from the Output Cap ESR
A241: Rfb1 | B241: ='Design Regulator'!E67*1000 -> 49900 | C241: W | F241: Upper Feedback Resistance - chosen by user
A242: Rfb2 | B242: =IF(Vout=Vref,100000000,Vref*B241/((Vout-Vref))) -> 15757.89474 | C242: W | F242: Lower Feedback Resistance
A243: Rfb2_u | B243: =IF(Vout=Vref,"N/A",'Standard Value Calculator'!O11) -> 15800 | C243: W | F243: Std Value Lower Feedback Resistance
A246: Other Input Variables
A247: Rfets | B247: 0 | C247: W | D247: Series resistance due to FETs
A248: Diode loss eq res | B248: =0.00000002*Fsw*0.6*4/Iripple1 -> 
A249: Fet loss eq res | B249: =_Don2*RdsonTop+Doff2*RdsonBot -> 
A250: cap loss eq res | B250: =B251*Vin^2*Fsw/2/(((Iripple1/SQRT(3))^2)) -> 
A251: Sw cap | B251: 5e-09
A253: Step 8: Efficiency
A254: VAR | B254: 0
... 96 more rows

Sheet Stability Calculations (hidden)
A2: Divider Network & EA Poles/Zeros | E2: Modulator | J2: Power Stage Poles/Zeros | M2: Complex Pole Pair | P2: Total System
B3: Afb1 | C3: =Afb -> 0.24 | D3: V/V | E3: Acs | F3: =Acs -> 27.77777778 | G3: A/V | H3: gm | I3: =gm -> 0.0012 | J3: z_ESR | K3: =Fesr -> 1872411.097 | L3: Hz | M3: p3 | N3: =Fsw/2 -> 200000 | O3: Hz | P3: Adc | Q3: =Am*Afb*AEA -> 134823.456 | R3: V/V
B4: EA zero, z1 | C4: =Fz1_u -> 5822.17381 | D4: Hz | E4: Am | F4: =Am -> 7.314640628 | G4: V/V | J4: p_dom | K4: =Fp_dominant -> 7110.591213 | L4: Hz | M4: pterm1 | N4: =Q*pole3 -> 133035.0784 | P4: Crossover | Q4: =AE7 -> 56.5615 | R4: kHz
B5: EA pole, p1 | C5: =Fp1_u -> 0.365682323 | D5: Hz | E5: Q | F5: =Q -> 0.6651753918 | M5: pterm2 | N5: =pole3^2 -> 40000000000 | P5: Phase Margin | Q5: =AE9 -> 51.37858879 | R5: °
B6: Aea | C6: =AEA -> 76800 | D6: V/V | E6: mc | F6: =mc -> 1.570409982 | P6: radconv | Q6: =180/Pi -> 57.29577958 | AD6: XOVER SEARCH
B7: EA pole, p2 | C7: =Fp2_u -> 186897.9707 | D7: Hz | E7: k | F7: =k -> 0.9785352713 | AD7: xover | AE7: =SUM(AD12:AD613)/1000 -> 56.5615
AD9: phase margin | AE9: =SUM(AE13:AE613) -> 51.37858879
A10: Freq (Hz) | C10: Power Stage | I10: Error Amplifier | O10: Sampling Double Pole | Q10: System Response | X10: ERROR AMP Response | AA10: PLANT Response
C11: p_dom | E11: z_ESR | G11: z_RHP | I11: p1 | K11: z1 | M11: p2 | O11: p3
C12: Gain(V/V) | D12: Phase(rad) | E12: Gain(V/V) | F12: Phase(rad) | G12: Gain(V/V) | H12: Phase(rad) | I12: Gain(V/V) | J12: Phase(rad) | K12: Gain(V/V) | L12: Phase(rad) | M12: Gain(V/V) | N12: Phase(rad) | O12: Gain(V/V) | P12: Phase(rad) | Q12: Gain (dB) | R12: Phase (°) | S12: Phase Margin (°) | V12: Fsquare | X12: Gain(dB) | Y12: Phase(Deg) | AA12: Gain(dB) | AB12: Phase(Deg)
A13: 1 | B13: =A13/1000 -> 0.001 | C13: =SQRT(1+(A13/pole1)^2) -> 1.00000001 | D13: =ATAN(A13/pole1) -> 0.000140635281 | E13: =SQRT(1+(A13/Zero1)^2) -> 1 | F13: =ATAN(A13/Zero1) -> 5.340707505e-07 | G13: =IF(VIN_nom>Vout, 1, SQRT(1+(A13/z_RHP)^2)) -> 1 | H13: =IF(VIN_nom>Vout, 0, -ATAN(A13/z_RHP)) -> 0 | I13: =SQRT(1+(A13/Pole2)^2) -> 2.911720063 | J13: =ATAN(A13/Pole2) -> 1.220219497 | K13: =SQRT(1+(A13/Zero2)^2) -> 1.000000015 | L13: =ATAN(A13/Zero2) -> 0.0001717571517 | M13: =SQRT(1+(A13/pole4)^2) -> 1 | N13: =ATAN(A13/pole4) -> 5.350512883e-06 | O13: =SQRT((1-(V13/pterm2))^2+(A13/pterm1)^2) -> 1 | P13: =IF((ATAN((A13/pterm1)/(1-A13^2/pterm2))>0),ATAN((A13/pterm1)/(1-A13^2/pterm2)),PI()+ATAN((A13/pterm1)/(1-A13^2/pterm2))) -> 7.516814455e-06 | Q13: =20*LOG10(((E13*K13*G13)/(C13*I13*O13*M13))*Adc) -> 93.31231677 | R13: =((F13+L13+H13)-(D13+J13+P13+N13))*radconv -> -69.9123508 | S13: =IF(R13>0,R13,R13+180) -> 110.0876492 | U13: =IF(Q13<0,A13,1000000000) -> 1000000000 | V13: =A13^2 -> 1 | X13: =20*LOG10((K13/(I13*M13))*AEA) -> 88.42423215 | Y13: =(L13-(J13+N13))*radconv -> -69.90389291 | AA13: =20*LOG10((E13*G13/(C13*O13))*Acs*Am) -> 46.15780978 | AB13: =(F13+H13-(D13+P13))*radconv -> -0.008457889806 | AD13: =SUM((Q14<0)*(Q13>0))*A13 -> 0 | AE13: =IF(AD13>0,S11,0) -> 0
A14: 1.0965 | B14: =A14/1000 -> 0.0010965 | C14: 1.000000012 | D14: 0.0001542065854 | E14: 1 | F14: 5.856085779e-07 | G14: 1 | H14: 0 | I14: 3.160858703 | J14: 1.24889613 | K14: 1.000000018 | L14: 0.0001883317164 | M14: 1 | N14: 5.866837376e-06 | O14: 1 | P14: 8.24218705e-06 | Q14: 92.59920751 | R14: -71.55529701 | S14: 108.444703 | U14: =IF(Q14<0,A14,1000000000) -> 1000000000 | V14: =A14^2 -> 1.20231225 | X14: 87.71112291 | Y14: -71.54602293 | AA14: 46.15780976 | AB14: -0.009274076161 | AD14: =SUM((Q15<0)*(Q14>0))*A14 -> 0 | AE14: 0
A15: 1.2023 | B15: 0.0012023 | C15: 1.000000014 | D15: 0.0001690857979 | E15: 1 | F15: 6.421132633e-07 | G15: 1 | H15: 0 | I15: 3.436539322 | J15: 1.27553444 | K15: 1.000000021 | L15: 0.0002065036226 | M15: 1 | N15: 6.432921639e-06 | O15: 1 | P15: 9.03746602e-06 | Q15: 91.87288282 | R15: -73.08144584 | S15: 106.9185542 | U15: 1000000000 | V15: 1.44552529 | X15: 86.98479823 | Y15: -73.07127691 | AA15: 46.15780974 | AB15: -0.01016892089 | AD15: 0 | AE15: 0
A16: 1.3183 | B16: 0.0013183 | C16: 1.000000017 | D16: 0.0001853994901 | E16: 1 | F16: 7.040654704e-07 | G16: 1 | H16: 0 | I16: 3.741166288 | J16: 1.300210156 | K16: 1.000000026 | L16: 0.0002264274514 | M16: 1 | N16: 7.053581134e-06 | O16: 1 | P16: 9.909416496e-06 | Q16: 91.13516894 | R16: -74.49513535 | S16: 105.5048646 | U16: 1000000000 | V16: 1.73791489 | X16: 86.24708438 | Y16: -74.48398532 | AA16: 46.15780971 | AB16: -0.01115003608 | AD16: 0 | AE16: 0
A17: 1.4454 | B17: 0.0014454 | C17: 1.000000021 | D17: 0.0002032742337 | E17: 1 | F17: 7.719458628e-07 | G17: 1 | H17: 0 | I17: 4.077147816 | J17: 1.322998654 | K17: 1.000000031 | L17: 0.0002482577844 | M17: 1 | N17: 7.733631321e-06 | O17: 1 | P17: 1.086480361e-05 | Q17: 90.38818006 | R17: -75.8006833 | S17: 104.1993167 | U17: 1000000000 | V17: 2.08918116 | X17: 85.50009553 | Y17: -75.78845826 | AA17: 46.15780968 | AB17: -0.01222503384 | AD17: 0 | AE17: 0
A18: 1.5849 | B18: 0.0015849 | C18: 1.000000025 | D18: 0.0002228928547 | E18: 1 | F18: 8.464487325e-07 | G18: 1 | H18: 0 | I18: 4.447958382 | J18: 1.344035717 | K18: 1.000000037 | L18: 0.0002722179056 | M18: 1 | N18: 8.480027868e-06 | O18: 1 | P18: 1.191339923e-05 | Q18: 89.63209492 | R18: -77.00586803 | S18: 102.994132 | U18: 1000000000 | V18: 2.51190801 | X18: 84.74401042 | Y18: -76.99246312 | AA18: 46.15780965 | AB18: -0.01340490943 | AD18: 0 | AE18: 0
A19: 1.7378 | B19: 0.0017378 | C19: 1.00000003 | D19: 0.0002443959881 | E19: 1 | F19: 9.281081502e-07 | G19: 1 | H19: 0 | I19: 4.856286737 | J19: 1.363393945 | K19: 1.000000045 | L19: 0.0002984795722 | M19: 1 | N19: 9.298121288e-06 | O19: 1 | P19: 1.306272016e-05 | Q19: 88.86922281 | R19: -78.11484822 | S19: 101.8851518 | U19: 1000000000 | V19: 3.01994884 | X19: 83.98113836 | Y19: -78.10015009 | AA19: 46.1578096 | AB19: -0.01469812072 | AD19: 0 | AE19: 0
A20: 1.9055 | B20: 0.0019055 | C20: 1.000000036 | D20: 0.0002679805233 | E20: 1 | F20: 1.017671815e-06 | G20: 1 | H20: 0 | I20: 5.305893831 | J20: 1.381192681 | K20: 1.000000054 | L20: 0.000327283244 | M20: 1 | N20: 1.01954023e-05 | O20: 1 | P20: 1.432328994e-05 | Q20: 88.10013815 | R20: -79.13446011 | S20: 100.8655399 | U20: 1000000000 | V20: 3.63093025 | X20: 83.21205375 | Y20: -79.1183436 | AA20: 46.15780955 | AB20: -0.01611650876 | AD20: 0 | AE20: 0
A21: 2.0893 | B21: 0.0020893 | C21: 1.000000043 | D21: 0.0002938292861 | E21: 1 | F21: 1.115834019e-06 | G21: 1 | H21: 0 | I21: 5.800282 | J21: 1.3975252 | K21: 1.000000064 | L21: 0.0003588522051 | M21: 1 | N21: 1.117882657e-05 | O21: 1 | P21: 1.570488044e-05 | Q21: 87.32632712 | R21: -80.07004668 | S21: 99.92995332 | U21: 1000000000 | V21: 4.36517449 | X21: 82.43824278 | Y21: -80.05237561 | AA21: 46.15780949 | AB21: -0.0176710688 | AD21: 0 | AE21: 0
A22: 2.2909 | B22: 0.0022909 | C22: 1.000000052 | D22: 0.0003221813563 | E22: 1 | F22: 1.223502682e-06 | G22: 1 | H22: 0 | I22: 6.344037125 | J22: 1.412507828 | K22: 1.000000077 | L22: 0.0003934784423 | M22: 1 | N22: 1.225748996e-05 | O22: 1 | P22: 1.722027024e-05 | Q22: 86.54799502 | R22: -80.92827099 | S22: 99.07172901 | U22: 1000000000 | V22: 5.24822281 | X22: 81.65991076 | Y22: -80.90889481 | AA22: 46.15780941 | AB22: -0.01937617924 | AD22: 0 | AE22: 0
A23: 2.5119 | B23: 0.0025119 | C23: 1.000000062 | D23: 0.00035326175 | E23: 1 | F23: 1.341532318e-06 | G23: 1 | H23: 0 | I23: 6.941485255 | J23: 1.426231926 | K23: 1.000000093 | L23: 0.0004314367668 | M23: 1 | N23: 1.343995331e-05 | O23: 1 | P23: 1.888148623e-05 | Q23: 85.76626127 | R23: -81.71436599 | S23: 98.28563401 | U23: 1000000000 | V23: 6.30964161 | X23: 80.8781771 | Y23: -81.69312061 | AA23: 46.15780932 | AB23: -0.0212453727 | AD23: 0 | AE23: 0
A24: 2.7542 | B24: 0.0027542 | C24: 1.000000075 | D24: 0.0003873376742 | E24: 1 | F24: 1.470937661e-06 | G24: 1 | H24: 0 | I24: 7.59777016 | J24: 1.438795764 | K24: 1.000000112 | L24: 0.0004730535165 | M24: 1 | N24: 1.473638258e-05 | O24: 1 | P24: 2.070281037e-05 | Q24: 84.9815864 | R24: -82.43396002 | S24: 97.56603998 | U24: 1000000000 | V24: 7.58561764 | X24: 80.09350234 | Y24: -82.4106653 | AA24: 46.15780921 | AB24: -0.02329471914 | AD24: 0 | AE24: 0
A25: 3.02 | B25: 0.00302 | C25: 1.00000009 | D25: 0.0004247185259 | E25: 1 | F25: 1.612893667e-06 | G25: 1 | H25: 0 | I25: 8.3188574 | J25: 1.450296106 | K25: 1.000000135 | L25: 0.0005187065566 | M25: 1 | N25: 1.615854891e-05 | O25: 1 | P25: 2.270077966e-05 | Q25: 84.1940359 | R25: -83.09259494 | S25: 96.90740506 | U25: 1000000000 | V25: 9.1204 | X25: 79.30595197 | Y25: -83.06705211 | AA25: 46.15780908 | AB25: -0.02554282591 | AD25: 0 | AE25: 0
A26: 3.3113 | B26: 0.0033113 | C26: 1.000000108 | D26: 0.0004656855754 | E26: 1 | F26: 1.768468476e-06 | G26: 1 | H26: 0 | I26: 9.110177336 | J26: 1.460807347 | K26: 1.000000162 | L26: 0.0005687394006 | M26: 1 | N26: 1.771715331e-05 | O26: 1 | P26: 2.489042771e-05 | Q26: 83.40477296 | R26: -83.69453111 | S26: 96.30546889 | U26: 1000000000 | V26: 10.96470769 | X26: 78.51668919 | Y26: -83.6665245 | AA26: 46.15780892 | AB26: -0.02800660876 | AD26: 0 | AE26: 0
A27: 3.6308 | B27: 0.0036308 | C27: 1.00000013 | D27: 0.0005106185373 | E27: 1 | F27: 1.939104081e-06 | G27: 1 | H27: 0 | I27: 9.979067814 | J27: 1.470418086 | K27: 1.000000194 | L27: 0.0006236157916 | M27: 1 | N27: 1.942664217e-05 | O27: 1 | P27: 2.729204993e-05 | Q27: 82.61351019 | R27: -84.24484194 | S27: 95.75515806 | U27: 1000000000 | V27: 13.18270864 | X27: 77.72542661 | Y27: -84.21413304 | AA27: 46.15780873 | AB27: -0.03070890396 | AD27: 0 | AE27: 0
A28: 3.9811 | B28: 0.0039811 | C28: 1.000000157 | D28: 0.0005598830625 | E28: 1 | F28: 2.126189065e-06 | G28: 1 | H28: 0 | I28: 10.93260262 | J28: 1.479198767 | K28: 1.000000234 | L28: 0.0006837822967 | M28: 1 | N28: 2.130092684e-05 | O28: 1 | P28: 2.992519003e-05 | Q28: 81.82083853 | R28: -84.74756082 | S28: 95.25243918 | U28: 1000000000 | V28: 15.84915721 | X28: 76.93275518 | Y28: -84.71388912 | AA28: 46.1578085 | AB28: -0.03367170197 | AD28: 0 | AE28: 0
A29: 4.3652 | B29: 0.0043652 | C29: 1.000000188 | D29: 0.0006139010556 | E29: 1 | F29: 2.33132564e-06 | G29: 1 | H29: 0 | I29: 11.97894989 | J29: 1.48721929 | K29: 1.000000281 | L29: 0.0007497541854 | M29: 1 | N29: 2.335605883e-05 | O29: 1 | P29: 3.281239846e-05 | Q29: 81.02693495 | R29: -85.20668945 | S29: 94.79331055 | U29: 1000000000 | V29: 19.05497104 | X29: 76.13885187 | Y29: -85.16976908 | AA29: 46.15780822 | AB29: -0.0369203764 | AD29: 0 | AE29: 0
A30: 4.7863 | B30: 0.0047863 | C30: 1.000000227 | D30: 0.0006731225483 | E30: 1 | F30: 2.556222833e-06 | G30: 1 | H30: 0 | I30: 13.12682834 | J30: 1.494542586 | K30: 1.000000338 | L30: 0.0008220810779 | M30: 1 | N30: 2.560915981e-05 | O30: 1 | P30: 3.597772903e-05 | Q30: 80.23211395 | R30: -85.6258301 | S30: 94.3741699 | U30: 1000000000 | V30: 22.90866769 | X30: 75.34403121 | Y30: -85.58534811 | AA30: 46.15780789 | AB30: -0.04048199241 | AD30: 0 | AE30: 0
A31: 5.2481 | B31: 0.0052481 | C31: 1.000000272 | D31: 0.0007380678892 | E31: 1 | F31: 2.802856706e-06 | G31: 1 | H31: 0 | I31: 14.38632504 | J31: 1.501229774 | K31: 1.000000406 | L31: 0.0009013984724 | M31: 1 | N31: 2.808002665e-05 | O31: 1 | P31: 3.944899395e-05 | Q31: 79.4363129 | R31: -86.00848061 | S31: 93.99151939 | U31: 1000000000 | V31: 27.54255361 | X31: 74.54823056 | Y31: -85.96409277 | AA31: 46.1578075 | AB31: -0.04438784409 | AD31: 0 | AE31: 0
A32: 5.7544 | B32: 0.0057544 | C32: 1.000000327 | D32: 0.0008092714898 | E32: 1 | F32: 3.073256727e-06 | G32: 1 | H32: 0 | I32: 15.76780493 | J32: 1.507333367 | K32: 1.000000488 | L32: 0.0009883590415 | M32: 1 | N32: 3.078899132e-05 | O32: 1 | P32: 4.325475711e-05 | Q32: 78.63988573 | R32: -86.35764569 | S32: 93.64235431 | U32: 1000000000 | V32: 33.11311936 | X32: 73.75180387 | Y32: -86.30897561 | AA32: 46.15780702 | AB32: -0.04867007129 | AD32: 0 | AE32: 0
A33: 6.3096 | B33: 0.0063096 | C33: 1.000000394 | D33: 0.0008873521421 | E33: 1 | F33: 3.369772807e-06 | G33: 1 | H33: 0 | I33: 17.28327445 | J33: 1.512904589 | K33: 1.000000587 | L33: 0.001083718511 | M33: 1.000000001 | N33: 3.375959607e-05 | O33: 1 | P33: 4.74280925e-05 | Q33: 77.84279026 | R33: -86.67625552 | S33: 93.32374448 | U33: 1000000000 | V33: 39.81105216 | X33: 72.95470897 | Y33: -86.62288964 | AA33: 46.15780644 | AB33: -0.05336588851 | AD33: 0 | AE33: 0
A34: 6.9183 | B34: 0.0069183 | C34: 1.000000473 | D34: 0.0009729567641 | E34: 1 | F34: 3.694861673e-06 | G34: 1 | H34: 0 | I34: 18.94529023 | J34: 1.517988219 | K34: 1.000000706 | L34: 0.001188266955 | M34: 1.000000001 | N34: 3.701645326e-05 | O34: 1 | P34: 5.200357746e-05 | Q34: 77.04528587 | R34: -86.96687079 | S34: 93.03312921 | U34: 1000000000 | V34: 47.86287489 | X34: 72.15720527 | Y34: -86.90835659 | AA34: 46.15780575 | AB34: -0.05851420183 | AD34: 0 | AE34: 0
A35: 7.5858 | B35: 0.0075858 | C35: 1.000000569 | D35: 0.001066830717 | E35: 1 | F35: 4.051353899e-06 | G35: 1 | H35: 0 | I35: 20.76832397 | J35: 1.522627451 | K35: 1.000000849 | L35: 0.001302914677 | M35: 1.000000001 | N35: 4.058792061e-05 | O35: 1 | P35: 5.702105111e-05 | Q35: 76.24728253 | R35: -87.23196067 | S35: 92.76803933 | U35: 1000000000 | V35: 57.54436164 | X35: 71.35920277 | Y35: -87.16780084 | AA35: 46.15780492 | AB35: -0.06415983771 | AD35: 0 | AE35: 0
A36: 8.3176 | B36: 0.0083176 | C36: 1.000000684 | D36: 0.001169747488 | E36: 1 | F36: 4.442186874e-06 | G36: 1 | H36: 0 | I36: 22.76739723 | J36: 1.526859736 | K36: 1.00000102 | L36: 0.001428606327 | M36: 1.000000001 | N36: 4.450342593e-05 | O36: 1 | P36: 6.252185594e-05 | Q36: 75.44904432 | R36: -87.47366496 | S36: 92.52633504 | U36: 1000000000 | V36: 69.18246976 | X36: 70.56096556 | Y36: -87.40331564 | AA36: 46.15780392 | AB36: -0.07034931413 | AD36: 0 | AE36: 0
A37: 9.1201 | B37: 0.0091201 | C37: 1.000000823 | D37: 0.001282607132 | E37: 1 | F37: 4.870778652e-06 | G37: 1 | H37: 0 | I37: 24.95999324 | J37: 1.530721488 | K37: 1.000001227 | L37: 0.001566441133 | M37: 1.000000001 | N37: 4.879721251e-05 | O37: 1 | P37: 6.855409955e-05 | Q37: 74.65042334 | R37: -87.69406312 | S37: 92.30593688 | U37: 1000000000 | V37: 83.17622401 | X37: 69.76234578 | Y37: -87.61692636 | AA37: 46.15780271 | AB37: -0.07713676101 | AD37: 0 | AE37: 0
A38: 10 | B38: 0.01 | C38: 1.000000989 | D38: 0.001406351892 | E38: 1 | F38: 5.340707505e-06 | G38: 1 | H38: 0 | I38: 27.364418 | J38: 1.534244382 | K38: 1.000001475 | L38: 0.001717569845 | M38: 1.000000001 | N38: 5.350512878e-05 | O38: 1 | P38: 7.51681446e-05 | Q38: 73.851589 | R38: -87.89496286 | S38: 92.10503714 | U38: 1000000000 | V38: 100 | X38: 68.96351288 | Y38: -87.81038402 | AA38: 46.15780127 | AB38: -0.08457884547 | AD38: 0 | AE38: 0
A39: 10.965 | B39: 0.010965 | C39: 1.000001189 | D39: 0.001542064644 | E39: 1 | F39: 5.856085779e-06 | G39: 1 | H39: 0 | I39: 30.00171285 | J39: 1.537458722 | K39: 1.000001773 | L39: 0.00188331496 | M39: 1.000000002 | N39: 5.86683737e-05 | O39: 1 | P39: 8.242187056e-05 | Q39: 73.05239317 | R39: -88.07809217 | S39: 91.92190783 | U39: 1000000000 | V39: 120.231225 | X39: 68.16431879 | Y39: -87.98535148 | AA39: 46.15779953 | AB39: -0.09274069228 | AD39: 0 | AE39: 0
A40: 12.023 | B40: 0.012023 | C40: 1.000001429 | D40: 0.001690856383 | E40: 1 | F40: 6.421132633e-06 | G40: 1 | H40: 0 | I40: 32.89346822 | J40: 1.540390469 | K40: 1.000002132 | L40: 0.00206503332 | M40: 1.000000002 | N40: 6.43292163e-05 | O40: 1 | P40: 9.037466028e-05 | Q40: 72.25312185 | R40: -88.24493002 | S40: 91.75506998 | U40: 1000000000 | V40: 144.552529 | X40: 67.36504956 | Y40: -88.1432409 | AA40: 46.15779744 | AB40: -0.1016891175 | AD40: 0 | AE40: 0
A41: 13.183 | B41: 0.013183 | C41: 1.000001719 | D41: 0.001853992798 | E41: 1 | F41: 7.040654704e-06 | G41: 1 | H41: 0 | I41: 36.06428316 | J41: 1.543064507 | K41: 1.000002563 | L41: 0.002264270683 | M41: 1.000000002 | N41: 7.053581122e-05 | O41: 1.000000001 | P41: 9.909416507e-05 | Q41: 71.45377034 | R41: -88.39689238 | S41: 91.60310762 | U41: 1000000000 | V41: 173.791489 | X41: 66.56570056 | Y41: -88.28539214 | AA41: 46.15779493 | AB41: -0.1115002403 | AD41: 0 | AE41: 0
A42: 14.454 | B42: 0.014454 | C42: 1.000002066 | D42: 0.002032739565 | E42: 1 | F42: 7.719458628e-06 | G42: 1 | H42: 0 | I42: 39.53875859 | J42: 1.545501991 | K42: 1.000003082 | L42: 0.002482572794 | M42: 1.000000003 | N42: 7.733631306e-05 | O42: 1.000000001 | P42: 0.0001086480363 | Q42: 70.65485731 | R42: -88.53518169 | S42: 91.46481831 | U42: 1000000000 | V42: 208.918116 | X42: 65.76679055 | Y42: -88.41293151 | AA42: 46.15779191 | AB42: -0.1222501796 | AD42: 0 | AE42: 0
A43: 15.849 | B43: 0.015849 | C43: 1.000002484 | D43: 0.002228924892 | E43: 1 | F43: 8.464487324e-06 | G43: 1 | H43: 0 | I43: 43.35243219 | J43: 1.547727524 | K43: 1.000003705 | L43: 0.0027221724 | M43: 1.000000004 | N43: 8.480027848e-05 | O43: 1.000000001 | P43: 0.0001191339925 | Q43: 69.85505033 | R43: -88.66119367 | S43: 91.33880633 | U43: 1000000000 | V43: 251.190801 | X43: 64.9669872 | Y43: -88.52714478 | AA43: 46.15778828 | AB43: -0.1340488849 | AD43: 0 | AE43: 0
A44: 17.378 | B44: 0.017378 | C44: 1.000002986 | D44: 0.002443955064 | E44: 1 | F44: 9.281081502e-06 | G44: 1 | H44: 0 | I44: 47.53264234 | J44: 1.549756601 | K44: 1.000004454 | L44: 0.002984786947 | M44: 1.000000004 | N44: 9.298121261e-05 | O44: 1.000000001 | P44: 0.0001306272018 | Q44: 69.05548267 | R44: -88.77580525 | S44: 91.22419475 | U44: 1000000000 | V44: 301.994884 | X44: 64.16742391 | Y44: -88.62882432 | AA44: 46.15778391 | AB44: -0.1469809312 | AD44: 0 | AE44: 0
A45: 19.055 | B45: 0.019055 | C45: 1.000003591 | D45: 0.002679798883 | E45: 1 | F45: 1.017671815e-05 | G45: 1 | H45: 0 | I45: 52.11766432 | J45: 1.551607797 | K45: 1.000005356 | L45: 0.003272820872 | M45: 1.000000005 | N45: 0.0001019540226 | O45: 1.000000001 | P45: 0.0001432328998 | Q45: 68.2556255 | R45: -88.88006575 | S45: 91.11993425 | U45: 1000000000 | V45: 363.093025 | X45: 63.36757199 | Y45: -88.71890103 | AA45: 46.15777866 | AB45: -0.1611647237 | AD45: 0 | AE45: =IF(AD45>0,S43,0) -> 0
A46: 20.893 | B46: 0.020893 | C46: 1.000004317 | D46: 0.00293828449 | E46: 1 | F46: 1.115834019e-05 | G46: 1 | H46: 0 | I46: 57.14304094 | J46: 1.55329549 | K46: 1.000006439 | L46: 0.003588506802 | M46: 1.000000006 | N46: 0.0001117882652 | O46: 1.000000001 | P46: 0.0001570488048 | Q46: 67.45606051 | R46: -88.97478491 | S46: 91.02521509 | U46: 1000000000 | V46: 436.517449 | X46: 62.56801331 | Y46: -88.7980747 | AA46: 46.15777235 | AB46: -0.1767102084 | AD46: 0 | AE46: 0
A47: 22.909 | B47: 0.022909 | C47: 1.00000519 | D47: 0.003221802527 | E47: 1 | F47: 1.223502682e-05 | G47: 1 | H47: 0 | I47: 62.6552528 | J47: 1.554835295 | K47: 1.000007741 | L47: 0.00393476432 | M47: 1.000000008 | N47: 0.000122574899 | O47: 1.000000002 | P47: 0.0001722027029 | Q47: 66.65618146 | R47: -89.06083916 | S47: 90.93916084 | U47: 1000000000 | V47: 524.822281 | X47: 61.76814184 | Y47: -88.867078 | AA47: 46.15776477 | AB47: -0.1937611601 | AD47: 0 | AE47: 0
A48: 25.119 | B48: 0.025119 | C48: 1.00000624 | D48: 0.003532602952 | E48: 1 | F48: 1.341532318e-05 | G48: 1 | H48: 0 | I48: 68.69804767 | J48: 1.556239358 | K48: 1.000009307 | L48: 0.004314341167 | M48: 1.000000009 | N48: 0.0001343995323 | O48: 1.000000002 | P48: 0.000188814863 | Q48: 65.85644776 | R48: -89.13890712 | S48: 90.86109288 | U48: 1000000000 | V48: 630.964161 | X48: 60.96841726 | Y48: -88.92645423 | AA48: 46.15775565 | AB48: -0.2124528935 | AD48: 0 | AE48: 0
A49: 27.542 | B49: 0.027542 | C49: 1.000007501 | D49: 0.003873357565 | E49: 1 | F49: 1.470937661e-05 | G49: 1 | H49: 0 | I49: 75.32337712 | J49: 1.557519846 | K49: 1.000011189 | L49: 0.004730500232 | M49: 1.000000011 | N49: 0.0001473638248 | O49: 1.000000002 | P49: 0.0002070281047 | Q49: 65.05674536 | R49: -89.2096655 | S49: 90.7903345 | U49: 1000000000 | V49: 758.561764 | X49: 60.16872582 | Y49: -88.97671941 | AA49: 46.15774468 | AB49: -0.2329460927 | AD49: 0 | AE49: 0
A50: 30.2 | B50: 0.0302 | C50: 1.000009019 | D50: 0.004247159977 | E50: 1 | F50: 1.612893666e-05 | G50: 1 | H50: 0 | I50: 82.59139691 | J50: 1.558688232 | K50: 1.000013453 | L50: 0.005187019512 | M50: 1.000000013 | N50: 0.0001615854877 | O50: 1.000000003 | P50: 0.0002270077978 | Q50: 64.25665125 | R50: -89.27374804 | S50: 90.72625196 | U50: 1000000000 | V50: 912.04 | X50: 59.3686449 | Y50: -89.01832123 | AA50: 46.1577315 | AB50: -0.2554268106 | AD50: 0 | AE50: 0
A51: 33.113 | B51: 0.033113 | C51: 1.000010843 | D51: 0.004656822428 | E51: 1 | F51: 1.768468476e-05 | G51: 1 | H51: 0 | I51: 90.55679494 | J51: 1.559753309 | K51: 1.000016173 | L51: 0.005687333298 | M51: 1.000000016 | N51: 0.0001771715312 | O51: 1.000000004 | P51: 0.0002489042787 | Q51: 63.45693438 | R51: -89.33163694 | S51: 90.66836306 | U51: 1000000000 | V51: 1096.470769 | X51: 58.56894388 | Y51: -89.05157276 | AA51: 46.15771565 | AB51: -0.2800641783 | AD51: 0 | AE51: 0
A52: 36.308 | B52: 0.036308 | C52: 1.000013036 | D52: 0.005106141439 | E52: 1 | F52: 1.939104081e-05 | G52: 1 | H52: 0 | I52: 99.29340081 | J52: 1.560724994 | K52: 1.000019445 | L52: 0.006236077885 | M52: 1.000000019 | N52: 0.0001942664193 | O52: 1.000000004 | P52: 0.0002729205015 | Q52: 62.65695686 | R52: -89.38387145 | S52: 90.61612855 | U52: 1000000000 | V52: 1318.270864 | X52: 57.76898542 | Y52: -89.07678493 | AA52: 46.15769659 | AB52: -0.3070865225 | AD52: 0 | AE52: 0
A53: 39.811 | B53: 0.039811 | C53: 1.000015673 | D53: 0.005598772709 | E53: 1 | F53: 2.126189064e-05 | G53: 1 | H53: 0 | I53: 108.8723106 | J53: 1.561611126 | K53: 1.000023378 | L53: 0.006837717466 | M53: 1.000000023 | N53: 0.0002130092652 | O53: 1.000000005 | P53: 0.0002992519032 | Q53: 61.85702699 | R53: -89.43087273 | S53: 90.56912727 | U53: 1000000000 | V53: 1584.915721 | X53: 56.96907846 | Y53: -89.09415903 | AA53: 46.15767368 | AB53: -0.3367137015 | AD53: 0 | AE53: 0
A54: 43.652 | B54: 0.043652 | C54: 1.000018844 | D54: 0.006138934208 | E54: 1 | F54: 2.33132564e-05 | G54: 1 | H54: 0 | I54: 119.3755589 | J54: 1.562419305 | K54: 1.000028106 | L54: 0.007497402776 | M54: 1.000000027 | N54: 0.0002335605841 | O54: 1.000000006 | P54: 0.0003281239885 | Q54: 61.05708092 | R54: -89.47304398 | S54: 90.52695602 | U54: 1000000000 | V54: 1905.497104 | X54: 56.16915993 | Y54: -89.10384459 | AA54: 46.15764614 | AB54: -0.3691993897 | AD54: 0 | AE54: 0
A55: 47.863 | B55: 0.047863 | C55: 1.000022654 | D55: 0.00673112484 | E55: 1 | F55: 2.556222833e-05 | G55: 1 | H55: 0 | I55: 130.8906499 | J55: 1.563156287 | K55: 1.00003379 | L55: 0.008220627446 | M55: 1.000000033 | N55: 0.0002560915925 | O55: 1.000000007 | P55: 0.0003597772953 | Q55: 60.25723301 | R55: -89.51073795 | S55: 90.48926205 | U55: 1000000000 | V55: 2290.866769 | X55: 55.36934513 | Y55: -89.1059238 | AA55: 46.15761303 | AB55: -0.404814158 | AD55: 0 | AE55: 0
A56: 52.481 | B56: 0.052481 | C56: 1.000027237 | D56: 0.007380546217 | E56: 1 | F56: 2.802856705e-05 | G56: 1 | H56: 0 | I56: 143.5187612 | J56: 1.56382854 | K56: 1.000040625 | L56: 0.009013743043 | M56: 1.000000039 | N56: 0.0002808002592 | O56: 1.000000009 | P56: 0.0003944899461 | Q56: 59.45725144 | R56: -89.54428542 | S56: 90.45571458 | U56: 1000000000 | V56: 2754.255361 | X56: 54.56940337 | Y56: -89.10041458 | AA56: 46.15757321 | AB56: -0.4438708396 | AD56: 0 | AE56: 0
A57: 57.544 | B57: 0.057544 | C57: 1.000032745 | D57: 0.008092540002 | E57: 1 | F57: 3.073256726e-05 | G57: 1 | H57: 0 | I57: 157.3638054 | J57: 1.564441583 | K57: 1.000048842 | L57: 0.009883271824 | M57: 1.000000047 | N57: 0.0003078899036 | O57: 1.000000011 | P57: 0.0004325475798 | Q57: 58.65735143 | R57: -89.5739618 | S57: 90.4260382 | U57: 1000000000 | V57: 3311.311936 | X57: 53.76955123 | Y57: -89.08727111 | AA57: 46.15752535 | AB57: -0.4866906926 | AD57: 0 | AE57: 0
A58: 63.096 | B58: 0.063096 | C58: 1.000039369 | D58: 0.008873290862 | E58: 1.000000001 | F58: 3.369772806e-05 | G58: 1 | H58: 0 | I58: 172.5461027 | J58: 1.565000742 | K58: 1.000058721 | L58: 0.01083676512 | M58: 1.000000057 | N58: 0.000337595948 | O58: 1.000000013 | P58: 0.0004742809365 | Q58: 57.8573735 | R58: -89.60002514 | S58: 90.39997486 | U58: 1000000000 | V58: 3981.105216 | X58: 52.96963084 | Y58: -89.06637946 | AA58: 46.15746781 | AB58: -0.5336456758 | AD58: 0 | AE58: 0
A59: 69.183 | B59: 0.069183 | C59: 1.000047331 | D59: 0.009729263713 | E59: 1.000000001 | F59: 3.694861672e-05 | G59: 1 | H59: 0 | I59: 189.1914432 | J59: 1.565510651 | K59: 1.000070596 | L59: 0.01188211592 | M59: 1.000000069 | N59: 0.0003701645159 | O59: 1.000000016 | P59: 0.0005200357898 | Q59: 57.05748065 | R59: -89.62269156 | S59: 90.37730844 | U59: 1000000000 | V59: 4786.287489 | X59: 52.16980718 | Y59: -89.03756695 | AA59: 46.15739863 | AB59: -0.5851246054 | AD59: 0 | AE59: 0
A60: 75.858 | B60: 0.075858 | C60: 1.000056905 | D60: 0.01066790652 | E60: 1.000000001 | F60: 4.051353897e-05 | G60: 1 | H60: 0 | I60: 207.4447591 | J60: 1.565975748 | K60: 1.000084876 | L60: 0.01302841694 | M60: 1.000000082 | N60: 0.000405879184 | O60: 1.000000019 | P60: 0.0005702105312 | Q60: 56.25750183 | R60: -89.64215855 | S60: 90.35784145 | U60: 1000000000 | V60: 5754.436164 | X60: 51.36991153 | Y60: -89.00058312 | AA60: 46.15731545 | AB60: -0.6415754224 | AD60: 0 | AE60: 0
A61: 83.176 | B61: 0.083176 | C61: 1.000068413 | D61: 0.01169694673 | E61: 1.000000001 | F61: 4.442186871e-05 | G61: 1 | H61: 0 | I61: 227.4564523 | J61: 1.566399867 | K61: 1.000102041 | L61: 0.01428510122 | M61: 1.000000099 | N61: 0.0004450342302 | O61: 1.000000022 | P61: 0.0006252185858 | Q61: 55.45763491 | R61: -89.65858695 | S61: 90.34141305 | U61: 1000000000 | V61: 6918.246976 | X61: 50.57014459 | Y61: -88.95512407 | AA61: 46.15721547 | AB61: -0.7034628822 | AD61: 0 | AE61: 0
A62: 91.201 | B62: 0.091201 | C62: 1.000082251 | D62: 0.01282537509 | E62: 1.000000001 | F62: 4.870778648e-05 | G62: 1 | H62: 0 | I62: 249.4015362 | J62: 1.566786718 | K62: 1.00012268 | L62: 0.01566314312 | M62: 1.000000119 | N62: 0.0004879720867 | O62: 1.000000027 | P62: 0.0006855410303 | Q62: 54.65767649 | R62: -89.67212089 | S62: 90.32787911 | U62: 1000000000 | V62: 8317.622401 | X62: 49.7703064 | Y62: -88.90079317 | AA62: 46.15709525 | AB62: -0.7713277211 | AD62: 0 | AE62: 0
A63: 100 | B63: 0.1 | C63: 1.000098887 | D63: 0.01406260113 | E63: 1.000000001 | F63: 5.3407075e-05 | G63: 1 | H63: 0 | I63: 273.4632284 | J63: 1.56713952 | K63: 1.000147492 | L63: 0.01717402666 | M63: 1.000000143 | N63: 0.0005350512372 | O63: 1.000000033 | P63: 0.0007516814919 | Q63: 53.85775099 | R63: -89.6828733 | S63: 90.3171267 | U63: 1000000000 | V63: 10000 | X63: 48.97052543 | Y63: -88.83713743 | AA63: 46.15695072 | AB63: -0.8457358717 | AD63: 0 | AE63: 0
A64: 109.65 | B64: 0.10965 | C64: 1.000118891 | D64: 0.01541943651 | E64: 1.000000002 | F64: 5.856085773e-05 | G64: 1 | H64: 0 | I64: 299.8520926 | J64: 1.567461343 | K64: 1.000177328 | L64: 0.0188309457 | M64: 1.000000172 | N64: 0.0005866836703 | O64: 1.000000039 | P64: 0.0008242187661 | Q64: 53.05767312 | R64: -89.690938 | S64: 90.309062 | U64: 1000000000 | V64: 12023.1225 | X64: 48.17062135 | Y64: -88.76360039 | AA64: 46.15677692 | AB64: -0.9273376024 | AD64: 0 | AE64: 0
A65: 120.23 | B65: 0.12023 | C65: 1.00014294 | D65: 0.01690696884 | E65: 1.000000002 | F65: 6.421132624e-05 | G65: 1 | H65: 0 | I65: 328.7841619 | J65: 1.567754813 | K65: 1.000213196 | L65: 0.02064742794 | M65: 1.000000207 | N65: 0.0006432920752 | O65: 1.000000047 | P65: 0.0009037466825 | Q65: 52.25769928 | R65: -89.69638144 | S65: 90.30361856 | U65: 1000000000 | V65: 14455.2529 | X65: 47.37085643 | Y65: -88.67958164 | AA65: 46.156568 | AB65: -1.016799793 | AD65: 0 | AE65: 0
A66: 131.83 | B66: 0.13183 | C66: 1.00017185 | D66: 0.01853782541 | E66: 1.000000002 | F66: 7.040654692e-05 | G66: 1 | H66: 0 | I66: 360.5055505 | J66: 1.568022441 | K66: 1.000256314 | L66: 0.02263887712 | M66: 1.000000249 | N66: 0.0007053579964 | O66: 1.000000057 | P66: 0.0009909417558 | Q66: 51.45780086 | R66: -89.69925201 | S66: 90.30074799 | U66: 1000000000 | V66: 17379.1489 | X66: 46.57120916 | Y66: -88.58437007 | AA66: 46.15631685 | AB66: -1.114881941 | AD66: 0 | AE66: 0
A67: 144.54 | B67: 0.14454 | C67: 1.000206581 | D67: 0.02032462455 | E67: 1.000000003 | F67: 7.719458612e-05 | G67: 1 | H67: 0 | I67: 395.2623725 | J67: 1.568266359 | K67: 1.000308112 | L67: 0.02482068063 | M67: 1.000000299 | N67: 0.0007733629779 | O67: 1.000000068 | P67: 0.001086480501 | Q67: 50.65847815 | R67: -89.69957685 | S67: 90.30042315 | U67: 1000000000 | V67: 20891.8116 | X67: 45.77218816 | Y67: -88.47723381 | AA67: 46.15601515 | AB67: -1.222343032 | AD67: 0 | AE67: 0
A68: 158.49 | B68: 0.15849 | C68: 1.000248375 | D68: 0.02228559574 | E68: 1.000000004 | F68: 8.464487304e-05 | G68: 1 | H68: 0 | I68: 433.4101265 | J68: 1.568489041 | K68: 1.000370444 | L68: 0.02721507021 | M68: 1.00000036 | N68: 0.0008480025836 | O68: 1.000000082 | P68: 0.001191340108 | Q68: 49.85838418 | R68: -89.69736024 | S68: 90.30263976 | U68: 1000000000 | V68: 25119.0801 | X68: 44.97245724 | Y68: -88.35708069 | AA68: 46.15565209 | AB68: -1.340279547 | AD68: 0 | AE68: 0
A69: 173.78 | B69: 0.17378 | C69: 1.000298602 | D69: 0.02443473516 | E69: 1.000000004 | F69: 9.281081476e-05 | G69: 1 | H69: 0 | I69: 475.222273 | J69: 1.568692047 | K69: 1.000445351 | L69: 0.02983909899 | M69: 1.000000432 | N69: 0.0009298118609 | O69: 1.000000098 | P69: 0.001306272259 | Q69: 49.05864297 | R69: -89.69258701 | S69: 90.30741299 | U69: 1000000000 | V69: 30199.4884 | X69: 44.17315231 | Y69: -88.22305359 | AA69: 46.15521581 | AB69: -1.469533419 | AD69: 0 | AE69: 0
A70: 190.55 | B70: 0.19055 | C70: 1.000359003 | D70: 0.02679164086 | E70: 1.000000005 | F70: 0.0001017671812 | G70: 1 | H70: 0 | I70: 521.0816572 | J70: 1.568877241 | K70: 1.000535428 | L70: 0.0327166475 | M70: 1.00000052 | N70: 0.001019539877 | O70: 1.000000118 | P70: 0.001432329315 | Q70: 48.25871963 | R70: -89.68521762 | S70: 90.31478238 | U70: 1000000000 | V70: 36309.3025 | X70: 43.3737536 | Y70: -88.07393407 | AA70: 46.15469118 | AB70: -1.611283544 | AD70: 0 | AE70: 0
A71: 208.93 | B71: 0.20893 | C71: 1.000431585 | D71: 0.02937447785 | E71: 1.000000006 | F71: 0.0001115834014 | G71: 1 | H71: 0 | I71: 571.3437781 | J71: 1.569046066 | K71: 1.000643667 | L71: 0.03586983022 | M71: 1.000000625 | N71: 0.001117882191 | O71: 1.000000142 | P71: 0.001570488467 | Q71: 47.45919359 | R71: -89.67520031 | S71: 90.32479969 | U71: 1000000000 | V71: 43651.7449 | X71: 42.57485795 | Y71: -87.9085776 | AA71: 46.15406079 | AB71: -1.766622711 | AD71: 0 | AE71: 0
A72: 229.09 | B72: 0.22909 | C72: 1.00051887 | D72: 0.03220699611 | E72: 1.000000007 | F72: 0.0001223502676 | G72: 1 | H72: 0 | I72: 626.4735193 | J72: 1.569200089 | K72: 1.000773827 | L72: 0.0393275583 | M72: 1.000000751 | N72: 0.001225748383 | O72: 1.000000171 | P72: 0.001722027581 | Q72: 46.65945991 | R72: -89.66244925 | S72: 90.33755075 | U72: 1000000000 | V72: 52482.2281 | X72: 41.77588229 | Y72: -87.72546954 | AA72: 46.15330277 | AB72: -1.936979709 | AD72: 0 | AE72: 0
A73: 251.19 | B73: 0.25119 | C73: 1.000623775 | D73: 0.0353114925 | E73: 1.000000009 | F73: 0.000134153231 | G73: 1 | H73: 0 | I73: 686.9084185 | J73: 1.569340528 | K73: 1.000930256 | L73: 0.04311694032 | M73: 1.000000903 | N73: 0.001343994522 | O73: 1.000000205 | P73: 0.001888149358 | Q73: 45.85998278 | R73: -89.64687155 | S73: 90.35312845 | U73: 1000000000 | V73: 63096.4161 | X73: 40.97731612 | Y73: -87.52317549 | AA73: 46.15239181 | AB73: -2.123696066 | AD73: 0 | AE73: 0
A74: 275.42 | B74: 0.27542 | C74: 1.000749871 | D74: 0.03871441595 | E74: 1.000000011 | F74: 0.000147093765 | G74: 1 | H74: 0 | I74: 753.1680517 | J74: 1.569468601 | K74: 1.001118273 | L74: 0.04727011589 | M74: 1.000001086 | N74: 0.001473637192 | O74: 1.000000247 | P74: 0.002070282006 | Q74: 45.06065675 | R74: -89.62834531 | S74: 90.37165469 | U74: 1000000000 | V74: 75856.1764 | X74: 40.17908495 | Y74: -87.2999821 | AA74: 46.15129696 | AB74: -2.328363212 | AD74: 0 | AE74: 0
A75: 302 | B75: 0.302 | C75: 1.000901523 | D75: 0.04244634501 | E75: 1.000000013 | F75: 0.0001612893653 | G75: 1 | H75: 0 | I75: 825.8540333 | J75: 1.569585459 | K75: 1.001344379 | L75: 0.0518242148 | M75: 1.000001305 | N75: 0.001615853484 | O75: 1.000000297 | P75: 0.002270079242 | Q75: 44.26107171 | R75: -89.60671646 | S75: 90.39328354 | U75: 1000000000 | V75: 91204 | X75: 39.38081646 | Y75: -87.05389527 | AA75: 46.1499804 | AB75: -2.552821188 | AD75: 0 | AE75: 0
A76: 331.13 | B76: 0.33113 | C76: 1.001083728 | D76: 0.04653494131 | E76: 1.000000016 | F76: 0.0001768468458 | G76: 1 | H76: 0 | I76: 905.5132859 | J76: 1.569691981 | K76: 1.001616017 | L76: 0.05681274258 | M76: 1.000001569 | N76: 0.001771713477 | O76: 1.000000356 | P76: 0.002489044453 | Q76: 43.46201315 | R76: -89.58184196 | S76: 90.41815804 | U76: 1000000000 | V76: 109647.0769 | X76: 38.58333945 | Y76: -86.78310705 | AA76: 46.14839885 | AB76: -2.798734904 | AD76: 0 | AE76: 0
A77: 363.08 | B77: 0.36308 | C77: =SQRT(1+(A77/pole1)^2) -> 1.001302808 | D77: =ATAN(A77/pole1) -> 0.05101754938 | E77: =SQRT(1+(A77/Zero1)^2) -> 1.000000019 | F77: =ATAN(A77/Zero1) -> 0.0001939104057 | G77: =IF(VIN_nom>Vout, 1, SQRT(1+(A77/z_RHP)^2)) -> 1 | H77: =IF(VIN_nom>Vout, 0, -ATAN(A77/z_RHP)) -> 0 | I77: =SQRT(1+(A77/Pole2)^2) -> 992.8841546 | J77: =ATAN(A77/Pole2) -> 1.56978916 | K77: =SQRT(1+(A77/Zero2)^2) -> 1.001942597 | L77: =ATAN(A77/Zero2) -> 0.06228093462 | M77: =SQRT(1+(A77/pole4)^2) -> 1.000001887 | N77: =ATAN(A77/pole4) -> 0.001942661774 | O77: =SQRT((1-(V77/pterm2))^2+(A77/pterm1)^2) -> 1.000000429 | P77: =IF((ATAN((A77/pterm1)/(1-A77^2/pterm2))>0),ATAN((A77/pterm1)/(1-A77^2/pterm2)),PI()+ATAN((A77/pterm1)/(1-A77^2/pterm2))) -> 0.002729207211 | Q77: =20*LOG10(((E77*K77*G77)/(C77*I77*O77*M77))*Adc) -> 42.6628657 | R77: =((F77+L77+H77)-(D77+J77+P77+N77))*radconv -> -89.55351737 | S77: =IF(R77>0,R77,R77+180) -> 90.44648263 | U77: 1000000000 | V77: 131827.0864 | X77: =20*LOG10((K77/(I77*M77))*AEA) -> 37.78609323 | Y77: =(L77-(J77+N77))*radconv -> -86.4851653 | AA77: =20*LOG10((E77*G77/(C77*O77))*Acs*Am) -> 46.14649762 | AB77: =(F77+H77-(D77+P77))*radconv -> -3.068352071 | AD77: 0 | AE77: =IF(AD77>0,S75,0) -> 0
A78: 398.11 | B78: =A78/1000 -> 0.39811 | C78: 1.001566119 | D78: 0.05592991986 | E78: 1.000000023 | F78: 0.0002126189033 | G78: 1 | H78: 0 | I78: 1088.677639 | J78: 1.569877781 | K78: 1.002335066 | L78: 0.0682719689 | M78: 1.000002269 | N78: 0.002130089462 | O78: 1.000000515 | P78: 0.002992521927 | Q78: 41.86396506 | R78: -89.52154584 | S78: 90.47845416 | U78: =IF(Q78<0,A78,1000000000) -> 1000000000 | V78: =A78^2 -> 158491.5721 | X78: 36.98947712 | Y78: -86.15772077 | AA78: 46.14421308 | AB78: -3.363825071 | AD78: =SUM((Q79<0)*(Q78>0))*A78 -> 0 | AE78: 0
A79: 436.52 | B79: 0.43652 | C79: 1.001882601 | D79: 0.06131316595 | E79: 1.000000027 | F79: 0.0002331325598 | G79: 1 | H79: 0 | I79: 1193.714122 | J79: 1.569958605 | K79: 1.002806719 | L79: 0.07483541767 | M79: 1.000002728 | N79: 0.002335601637 | O79: 1.00000062 | P79: 0.003281243701 | Q79: 41.06528165 | R79: -89.48569826 | S79: 90.51430174 | U79: 1000000000 | V79: 190549.7104 | X79: 36.19353878 | Y79: -85.79806871 | AA79: 46.14146803 | AB79: -3.687629546 | AD79: 0 | AE79: 0
A80: 478.63 | B80: 0.47863 | C80: 1.00226291 | D80: 0.06721087785 | E80: 1.000000033 | F80: 0.0002556222777 | G80: 1 | H80: 0 | I80: 1308.868681 | J80: 1.570032308 | K80: 1.003373398 | L80: 0.08202368131 | M80: 1.000003279 | N80: 0.002560910383 | O80: 1.000000745 | P80: 0.003597777985 | Q80: 40.2669714 | R80: -89.44573471 | S80: 90.55426529 | U80: 1000000000 | V80: 229086.6769 | X80: 35.39852606 | Y80: -85.40334365 | AA80: 46.13817049 | AB80: -4.042391059 | AD80: 0 | AE80: 0
A81: 524.81 | B81: 0.52481 | C81: 1.002720023 | D81: 0.07367321918 | E81: 1.000000039 | F81: 0.0002802856632 | G81: 1 | H81: 0 | I81: 1435.153122 | J81: 1.570099537 | K81: 1.004054379 | L81: 0.08989692025 | M81: 1.000003942 | N81: 0.002807995286 | O81: 1.000000896 | P81: 0.003944906094 | Q81: 39.46885358 | R81: -89.40138095 | S81: 90.59861905 | U81: 1000000000 | V81: 275425.5361 | X81: 34.60437005 | Y81: -84.97024914 | AA81: 46.13420868 | AB81: -4.431131812 | AD81: 0 | AE81: 0
A82: 575.44 | B82: 0.57544 | C82: 1.003269259 | D82: 0.08075118807 | E82: 1.000000047 | F82: 0.000307325663 | G82: 1 | H82: 0 | I82: 1573.606598 | J82: 1.570160844 | K82: 1.004872401 | L82: 0.09851598186 | M82: 1.00000474 | N82: 0.003078889405 | O82: 1.000001077 | P82: 0.004325484541 | Q82: 38.67120391 | R82: -89.35237282 | S82: 90.64762718 | U82: 1000000000 | V82: 331131.1936 | X82: 33.81147824 | Y82: -84.495447 | AA82: 46.12945081 | AB82: -4.856925818 | AD82: 0 | AE82: 0
A83: 630.96 | B83: 0.63096 | C83: 1.003929252 | D83: 0.08850343293 | E83: 1.000000057 | F83: 0.000336977268 | G83: 1 | H83: 0 | I83: 1725.432339 | J83: 1.570216762 | K83: 1.005855093 | L83: 0.1079506015 | M83: 1.000005699 | N83: 0.003375946783 | O83: 1.000001294 | P83: 0.004742820891 | Q83: 37.8739364 | R83: -89.29841654 | S83: 90.70158346 | U83: 1000000000 | V83: 398110.5216 | X83: 33.01992461 | Y83: -83.97510711 | AA83: 46.12373694 | AB83: -5.32330943 | AD83: 0 | AE83: 0
A84: 691.83 | B84: 0.69183 | C84: 1.004722078 | D84: 0.09699042408 | E84: 1.000000068 | F84: 0.0003694861505 | G84: 1 | H84: 0 | I84: 1891.888268 | J84: 1.570267754 | K84: 1.007035152 | L84: 0.1182721723 | M84: 1.000006851 | N84: 0.003701628421 | O84: 1.000001556 | P84: 0.005200373091 | Q84: 37.07730069 | R84: -89.23923789 | S84: 90.76076211 | U84: 1000000000 | V84: 478628.7489 | X84: 32.23014782 | Y84: -83.4053065 | AA84: 46.11687802 | AB84: -5.833931393 | AD84: 0 | AE84: 0
A85: 758.58 | B85: 0.75858 | C85: 1.005674543 | D85: 0.1062811234 | E85: 1.000000082 | F85: 0.0004051353677 | G85: 1 | H85: 0 | I85: 2074.423729 | J85: 1.570314265 | K85: 1.008452223 | L85: 0.1295616896 | M85: 1.000008237 | N85: 0.004058769775 | O85: 1.000001871 | P85: 0.005702125341 | Q85: 36.28123001 | R85: -89.17454736 | S85: 90.82545264 | U85: 1000000000 | V85: 575443.6164 | X85: 31.44230998 | Y85: -82.78159238 | AA85: 46.10864519 | AB85: -6.392954988 | AD85: 0 | AE85: 0
A86: 831.76 | B86: 0.83176 | C86: 1.006818308 | D86: 0.1164456138 | E86: 1.000000099 | F86: 0.0004442186582 | G86: 1 | H86: 0 | I86: 2274.54276 | J86: 1.570356678 | K86: 1.010153052 | L86: 0.1419005699 | M86: 1.000009903 | N86: 0.004450313215 | O86: 1.000002249 | P86: 0.006252212261 | Q86: 35.48604383 | R86: -89.10410621 | S86: 90.89589379 | U86: 1000000000 | V86: 691824.6976 | X86: 30.65699988 | Y86: -82.09949047 | AA86: 46.0987691 | AB86: -7.004615742 | AD86: 0 | AE86: 0
A87: 912.01 | B87: 0.91201 | C87: 1.008191861 | D87: 0.1275643131 | E87: 1.000000119 | F87: 0.0004870778266 | G87: 1 | H87: 0 | I87: 2493.995514 | J87: 1.570395364 | K87: 1.012194358 | L87: 0.1553815646 | M87: 1.000011906 | N87: 0.004879682524 | O87: 1.000002704 | P87: 0.006855445109 | Q87: 34.69168438 | R87: -89.02768129 | S87: 90.97231871 | U87: 1000000000 | V87: 831762.2401 | X87: 29.87448587 | Y87: -81.35390395 | AA87: 46.08692366 | AB87: -7.673777335 | AD87: 0 | AE87: 0
A88: 1000 | B88: 1 | C88: 1.009840721 | D88: 0.1397189568 | E88: 1.000000143 | F88: 0.0005340706997 | G88: 1 | H88: 0 | I88: 2734.614183 | J88: 1.570430644 | K88: 1.01464305 | L88: 0.1700974578 | M88: 1.000014314 | N88: 0.005350461826 | O88: 1.000003252 | P88: 0.007516860801 | Q88: 33.89844466 | R88: -88.94513144 | S88: 91.05486856 | U88: 1000000000 | V88: 1000000 | X88: 29.09544454 | Y88: -80.53974048 | AA88: 46.07272527 | AB88: -8.405390956 | AD88: 0 | AE88: 0
A89: 1096.5 | B89: 1.0965 | C89: 1.01181998 | D89: 0.1530014084 | E89: 1.000000171 | F89: 0.000585608511 | G89: 1 | H89: 0 | I89: 2998.504417 | J89: 1.570462827 | K89: 1.017579892 | L89: 0.1861513004 | M89: 1.00001721 | N89: 0.005866770066 | O89: 1.000003909 | P89: 0.00824224815 | Q89: 33.10633861 | R89: -88.85637738 | S89: 91.14362262 | U89: 1000000000 | V89: 1202312.25 | X89: 28.32035139 | Y89: -79.65134927 | AA89: 46.05571238 | AB89: -9.205028108 | AD89: 0 | AE89: 0
A90: 1202.3 | B90: 1.2023 | C90: 1.014194265 | D90: 0.1675015009 | E90: 1.000000206 | F90: 0.0006421131751 | G90: 1 | H90: 0 | I90: 3287.826564 | J90: 1.570492174 | K90: 1.021099284 | L90: 0.2036411532 | M90: 1.000020691 | N90: 0.006432832905 | O90: 1.0000047 | P90: 0.009037546566 | Q90: 32.31584878 | R90: -88.76152098 | S90: 91.23847902 | U90: 1000000000 | V90: 1445525.29 | X90: 27.55022611 | Y90: -78.68336901 | AA90: 46.03534782 | AB90: -10.07815198 | AD90: 0 | AE90: =IF(AD90>0,S90,0) -> 0
A91: 1318.3 | B91: 1.3183 | C91: 1.017041283 | D91: 0.1833180106 | E91: 1.000000248 | F91: 0.000704065354 | G91: 1 | H91: 0 | I91: 3605.041775 | J91: 1.570518937 | K91: 1.02531429 | L91: 0.2226726988 | M91: 1.000024876 | N91: 0.007053464158 | O91: 1.000005651 | P91: 0.009909522678 | Q91: 31.52720864 | R91: -88.66081691 | S91: 91.33918309 | U91: 1000000000 | V91: 1737914.89 | X91: 26.7859425 | Y91: -77.63003473 | AA91: 46.01099129 | AB91: -11.03078218 | AD91: 0 | AE91: 0
A92: 1445.4 | B92: 1.4454 | C92: 1.020451084 | D92: 0.2005418727 | E92: 1.000000298 | F92: 0.0007719457094 | G92: 1 | H92: 0 | I92: 3952.611202 | J92: 1.570543329 | K92: 1.030355245 | L92: 0.2433382646 | M92: 1.000029904 | N92: 0.007733477146 | O92: 1.000006794 | P92: 0.01086494356 | Q92: 30.7412069 | R92: -88.55483357 | S92: 91.44516643 | U92: 1000000000 | V92: 2089181.16 | X92: 26.02902244 | Y92: -76.48634446 | AA92: 45.98190961 | AB92: -12.06848911 | AD92: 0 | AE92: 0
A93: 1584.9 | B93: 1.5849 | C93: 1.024539519 | D93: 0.2193079318 | E93: 1.000000358 | F93: 0.0008464485303 | G93: 1 | H93: 0 | I93: 4334.089844 | J93: 1.570565598 | K93: 1.036389209 | L93: 0.2657778909 | M93: 1.000035955 | N93: 0.008479824608 | O93: 1.000008169 | P93: 0.01191358373 | Q93: 29.95685413 | R93: -88.44420608 | S93: 91.55579392 | U93: 1000000000 | V93: 2511908.01 | X93: 25.27941156 | Y93: -75.24468701 | AA93: 45.94716772 | AB93: -13.19951906 | AD93: 0 | AE93: 0
A94: 1737.8 | B94: 1.7378 | C94: 1.029431591 | D94: 0.2396973888 | E94: 1.000000431 | F94: 0.0009281078837 | G94: 1 | H94: 0 | I94: 4752.212314 | J94: 1.570585898 | K94: 1.043594778 | L94: 0.2900613317 | M94: 1.000043227 | N94: 0.009297853346 | O94: 1.000009821 | P94: 0.01306296338 | Q94: 29.17562349 | R94: -88.33030584 | S94: 91.66969416 | U94: 1000000000 | V94: 3019948.84 | X94: 24.53957019 | Y94: -73.90138108 | AA94: 45.90577846 | AB94: -14.42892476 | AD94: 0 | AE94: 0
A95: 1905.5 | B95: 1.9055 | C95: 1.035284292 | D95: 0.2618286257 | E95: 1.000000518 | F95: 0.001017671464 | G95: 1 | H95: 0 | I95: 5210.807072 | J95: 1.570604418 | K95: 1.052195005 | L95: 0.3162956378 | M95: 1.000051972 | N95: 0.01019504906 | O95: 1.000011809 | P95: 0.01432361058 | Q95: 28.39739198 | R95: -88.21478206 | S95: 91.78521794 | U95: 1000000000 | V95: 3630930.25 | X95: 23.81059783 | Y95: -72.45073268 | AA95: 45.8565193 | AB95: -15.76404938 | AD95: 0 | AE95: 0
A96: 2089.3 | B96: 2.0893 | C96: 1.04227427 | D96: 0.2857860265 | E96: 1.000000623 | F96: 0.001115833556 | G96: 1 | H96: 0 | I96: 5713.429117 | J96: 1.570621301 | K96: 1.062438194 | L96: 0.3445391154 | M96: 1.000062481 | N96: 0.01117836094 | O96: 1.000014198 | P96: 0.01570530309 | Q96: 27.6231448 | R96: -88.10005574 | S96: 91.89994426 | U96: 1000000000 | V96: 4365174.49 | X96: 23.09481834 | Y96: -70.88980753 | AA96: 45.79805161 | AB96: -17.21024821 | AD96: 0 | AE96: 0
A97: 2290.9 | B97: 2.2909 | C97: 1.050619262 | D97: 0.3116804338 | E97: 1.000000748 | F97: 0.001223502072 | G97: 1 | H97: 0 | I97: 6264.727292 | J97: 1.570636703 | K97: 1.074627982 | L97: 0.3748717505 | M97: 1.00007512 | N97: 0.01225687614 | O97: 1.000017072 | P97: 0.01722082741 | Q97: 26.85272718 | R97: -87.98910508 | S97: 92.01089492 | U97: 1000000000 | V97: 5248222.81 | X97: 22.39369143 | Y97: -69.21455242 | AA97: 45.7287609 | AB97: -18.77455266 | AD97: 0 | AE97: 0
A98: 2511.9 | B98: 2.5119 | C98: 1.060562999 | D98: 0.3395776627 | E98: 1.0000009 | F98: 0.001341531513 | G98: 1 | H98: 0 | I98: 6869.076979 | J98: 1.570650747 | K98: 1.089099494 | L98: 0.4073100121 | M98: 1.000090312 | N98: 0.01343914417 | O98: 1.000020526 | P98: 0.01888222069 | Q98: 26.08700826 | R98: -87.88589493 | S98: 92.11410507 | U98: 1000000000 | V98: 6309641.61 | X98: 21.70982345 | Y98: -67.42452055 | AA98: 45.64690996 | AB98: -20.46137437 | AD98: 0 | AE98: 0
A99: 2754.2 | B99: 2.7542 | C99: 1.072394745 | D99: 0.3695431642 | E99: 1.000001082 | F99: 0.0014709366 | G99: 1 | H99: 0 | I99: 7531.673944 | J99: 1.570663554 | K99: 1.106245752 | L99: 0.4418590118 | M99: 1.000108575 | N99: 0.014735316 | O99: 1.00002468 | P99: 0.0207037785 | Q99: 25.32626969 | R99: -87.79523202 | S99: 92.20476798 | U99: 1000000000 | V99: 7585617.64 | X99: 21.04548349 | Y99: -65.52000767 | AA99: 45.55051135 | AB99: -22.27522435 | AD99: 0 | AE99: 0
A100: 3020 | B100: 3.02 | C100: 1.086455636 | D100: 0.4016322339 | E100: 1.000001301 | F100: 0.001612892268 | G100: 1 | H100: 0 | I100: 8258.53434 | J100: 1.57067524 | K100: 1.126524097 | L100: 0.478500651 | M100: 1.000130541 | N100: 0.0161571428 | O100: 1.000029678 | P100: 0.02270205595 | Q100: 24.57043904 | R100: -87.72288262 | S100: 92.27711738 | U100: 1000000000 | V100: 9120400 | X100: 20.40284075 | Y100: -63.5027306 | AA100: 45.43732344 | AB100: -24.22015202 | AD100: 0 | AE100: 0
A101: 3311.3 | B101: 3.3113 | C101: 1.103115174 | D101: 0.435821244 | E101: 1.000001564 | F101: 0.001768466633 | G101: 1 | H101: 0 | I101: 9055.127392 | J101: 1.570685892 | K101: 1.150419304 | L101: 0.5171165912 | M101: 1.000156936 | N101: 0.01771529987 | O101: 1.000035686 | P101: 0.02489211002 | Q101: 23.82046446 | R101: -87.67569146 | S101: 92.32430854 | U101: 1000000000 | V101: 10964707.69 | X101: 19.7850933 | Y101: -61.38008635 | AA101: 45.30509632 | AB101: -26.29560511 | AD101: 0 | AE101: 0
A102: 3630.8 | B102: 3.6308 | C102: 1.122822932 | D102: 0.4721063438 | E102: 1.00000188 | F102: 0.00193910165 | G102: 1 | H102: 0 | I102: 9928.836561 | J102: 1.57069561 | K102: 1.17851464 | L102: 0.5576033684 | M102: 1.000188679 | N102: 0.01942419889 | O102: 1.000042914 | P102: 0.02729426758 | Q102: 23.07582094 | R102: -87.6612794 | S102: 92.3387206 | U102: 1000000000 | V102: 13182708.64 | X102: 19.19431811 | Y102: -59.15883439 | AA102: 45.15122798 | AB102: -28.50244501 | AD102: 0 | AE102: 0
A103: 3981.1 | B103: 3.9811 | C103: 1.1460668 | D103: 0.5103993414 | E103: 1.00000226 | F103: 0.002126185861 | G103: 1 | H103: 0 | I103: 10886.77184 | J103: 1.570704472 | K103: 1.211428238 | L103: 0.5997585469 | M103: 1.000226839 | N103: 0.0212977061 | O103: 1.000051607 | P103: 0.02992811329 | Q103: 22.33668322 | R103: -87.68803366 | S103: 92.31196634 | U103: 1000000000 | V103: 15849157.21 | X103: 18.63322575 | Y103: -56.8513724 | AA103: 44.97318262 | AB103: -30.83666127 | AD103: 0 | AE103: 0
A104: 4365.2 | B104: 4.3652 | C104: 1.173403 | D104: 0.5505782676 | E104: 1.000002718 | F104: 0.002331321416 | G104: 1 | H104: 0 | I104: 11937.13707 | J104: 1.570712555 | K104: 1.249852611 | L104: 0.6433438588 | M104: 1.000272716 | N104: 0.02335181327 | O104: 1.000062064 | P104: 0.03281625181 | Q104: 21.60265373 | R104: -87.76474164 | S104: 92.23525836 | U104: 1000000000 | V104: 19054971.04 | X104: 18.10402836 | Y104: -54.47227273 | AA104: 44.76835052 | AB104: -33.29246891 | AD104: 0 | AE104: 0
A105: 4786.3 | B105: 4.7863 | C105: 1.205443529 | D105: 0.5924588227 | E105: 1.000003267 | F105: 0.002556217265 | G105: 1 | H105: 0 | I105: 13088.68303 | J105: 1.570719925 | K105: 1.29453374 | L105: 0.6880608573 | M105: 1.000327861 | N105: 0.0256035636 | O105: 1.000074643 | P105: 0.0359828081 | Q105: 20.87325295 | R105: -87.90020821 | S105: 92.09979179 | U105: 1000000000 | V105: 22908667.69 | X105: 17.60872558 | Y105: -52.03961552 | AA105: 44.53425252 | AB105: -35.8605927 | AD105: 0 | AE105: 0
A106: 5248.1 | B106: 5.2481 | C106: 1.242877471 | D106: 0.635820806 | E106: 1.000003928 | F106: 0.002802849366 | G106: 1 | H106: 0 | I106: 14351.52777 | J106: 1.570726648 | K106: 1.346298498 | L106: 0.7335873361 | M106: 1.000394166 | N106: 0.0280726499 | O106: 1.000089781 | P106: 0.03945568882 | Q106: 20.14743863 | R106: -88.1028956 | S106: 91.8971044 | U106: 1000000000 | V106: 27542553.61 | X106: 17.14866591 | Y106: -49.57299384 | AA106: 44.26849787 | AB106: -38.52990176 | AD106: 0 | AE106: 0
A107: 5370.3 | B107: 5.3703 | C107: 1.253159241 | D107: 0.6468549775 | E107: 1.000004113 | F107: 0.002868112287 | G107: 1 | H107: 0 | I107: 14685.6976 | J107: 1.570728233 | K107: 1.360440587 | L107: 0.7450470719 | M107: 1.000412732 | N107: 0.02872595536 | O107: 1.000094022 | P107: 0.04037472196 | Q107: 19.96651877 | R107: -88.16495249 | S107: 91.83504751 | U107: 1000000000 | V107: 28840122.09 | X107: 17.03934017 | Y107: -48.95392183 | AA107: 44.19690374 | AB107: -39.21103065 | AD107: 0 | AE107: 0
A108: 5432.85 | B108: 5.43285 | C108: 1.258480433 | D108: 0.6524328827 | E108: 1.000004209 | F108: 0.002901518134 | G108: 1 | H108: 0 | I108: 14856.7477 | J108: 1.570729017 | K108: 1.367747486 | L108: 0.7508208362 | M108: 1.000422401 | N108: 0.02906035063 | O108: 1.000096231 | P108: 0.04084515216 | Q108: 19.8755559 | R108: -88.19797459 | S108: 91.80202541 | U108: 1000000000 | V108: 29515859.12 | X108: 16.98519979 | Y108: -48.64231386 | AA108: 44.16008126 | AB108: -39.55566073 | AD108: 0 | AE108: 0
A109: 5495.4 | B109: 5.4954 | C109: 1.26384045 | D109: 0.6579636463 | E109: 1.000004307 | F109: 0.002934923975 | G109: 1 | H109: 0 | I109: 15027.79781 | J109: 1.570729783 | K109: 1.375099495 | L109: 0.7565330502 | M109: 1.000432181 | N109: 0.02939473939 | O109: 1.000098466 | P109: 0.04131558826 | Q109: 19.78566879 | R109: -88.2318212 | S109: 91.7681788 | U109: 1000000000 | V109: 30199421.16 | X109: 16.93224692 | Y109: -48.33423107 | AA109: 44.12314702 | AB109: -39.89759013 | AD109: 0 | AE109: 0
A110: 5559.4 | B110: 5.5594 | C110: 1.269364393 | D110: 0.6635740999 | E110: 1.000004408 | F110: 0.002969104206 | G110: 1 | H110: 0 | I110: 15202.8131 | J110: 1.570730549 | K110: 1.382667874 | L110: 0.7623146128 | M110: 1.000442304 | N110: 0.02973687296 | O110: 1.00010078 | P110: 0.04179693593 | Q110: 19.69478321 | R110: -88.26728489 | S110: 91.73271511 | U110: 1000000000 | V110: 30906928.36 | X110: 16.87926176 | Y110: -48.02261864 | AA110: 44.0852466 | AB110: -40.24466625 | AD110: 0 | AE110: 0
A111: 5623.4 | B111: 5.6234 | C111: 1.274927944 | D111: 0.6691357614 | E111: 1.00000451 | F111: 0.003003284429 | G111: 1 | H111: 0 | I111: 15377.8284 | J111: 1.570731298 | K111: 1.390281967 | L111: 0.7680330375 | M111: 1.000452544 | N111: 0.03007899958 | O111: 1.00010312 | P111: 0.04227828991 | Q111: 19.60496757 | R111: -88.30356949 | S111: 91.69643051 | U111: 1000000000 | V111: 31622627.56 | X111: 16.82745213 | Y111: -47.71462234 | AA111: 44.04724059 | AB111: -40.58894715 | AD111: 0 | AE111: 0
A112: 5688.9 | B112: 5.6889 | C112: 1.280662365 | D112: 0.6747775603 | E112: 1.000004616 | F112: 0.003038265744 | G112: 1 | H112: 0 | I112: 15556.94562 | J112: 1.570732047 | K112: 1.39812107 | L112: 0.7738208025 | M112: 1.000463145 | N112: 0.03042913749 | O112: 1.000105544 | P112: 0.04277093225 | Q112: 19.51412662 | R112: -88.34153262 | S112: 91.65846738 | U112: 1000000000 | V112: 32363583.21 | X112: 16.77561145 | Y112: -47.40311215 | AA112: 44.00824032 | AB112: -40.93842046 | AD112: 0 | AE112: 0
A113: 5754.4 | B113: 5.7544 | C113: 1.286437185 | D113: 0.6803688838 | E113: 1.000004722 | F113: 0.003073247051 | G113: 1 | H113: 0 | I113: 15736.06283 | J113: 1.570732778 | K113: 1.406006483 | L113: 0.7795438375 | M113: 1.000473869 | N113: 0.03077926793 | O113: 1.000107996 | P113: 0.04326358135 | Q113: 19.42435029 | R113: -88.38031145 | S113: 91.61968855 | U113: 1000000000 | V113: 33113119.36 | X113: 16.72493425 | Y113: -47.09530932 | AA113: 43.96914119 | AB113: -41.28500213 | AD113: 0 | AE113: 0
A114: 5821.4 | B114: 5.8214 | C114: 1.292385485 | D114: 0.6860363738 | E114: 1.000004833 | F114: 0.00310902945 | G114: 1 | H114: 0 | I114: 15919.28197 | J114: 1.57073351 | K114: 1.414119586 | L114: 0.7853317053 | M114: 1.000484965 | N114: 0.03113740882 | O114: 1.000110533 | P114: 0.04376751958 | Q114: 19.33359154 | R114: -88.42079953 | S114: 91.57920047 | U114: 1000000000 | V114: 33888697.96 | X114: 16.67426631 | Y114: -46.78425079 | AA114: 43.92905038 | AB114: -41.63654874 | AD114: 0 | AE114: 0
A115: 5888.4 | B115: 5.8884 | C115: 1.298374917 | D115: 0.6916517542 | E115: 1.000004945 | F115: 0.00314481184 | G115: 1 | H115: 0 | I115: 16102.50111 | J115: 1.570734225 | K115: 1.422279519 | L115: 0.7910533503 | M115: 1.00049619 | N115: 0.03149554172 | O115: 1.000113101 | P115: 0.04427146506 | Q115: 19.24389099 | R115: -88.46209525 | S115: 91.53790475 | U115: 1000000000 | V115: 34673254.56 | X115: 16.62474799 | Y115: -46.47698513 | AA115: 43.88886815 | AB115: -41.98511011 | AD115: 0 | AE115: 0
A116: 5957 | B116: 5.957 | C116: 1.304549404 | D116: 0.6973476247 | E116: 1.000005061 | F116: 0.003181448727 | G116: 1 | H116: 0 | I116: 16290.09563 | J116: 1.57073494 | K116: 1.430682001 | L116: 0.7968438135 | M116: 1.000507815 | N116: 0.03186221868 | O116: 1.00011576 | P116: 0.04478745265 | Q116: 19.15311692 | R116: -88.50519027 | S116: 91.49480973 | U116: 1000000000 | V116: 35485849 | X116: 16.57520429 | Y116: -46.16626605 | AA116: 43.84763778 | AB116: -42.33892422 | AD116: 0 | AE116: 0
A117: 6025.6 | B117: 6.0256 | C117: 1.310765815 | D117: 0.7029896505 | E117: 1.000005178 | F117: 0.003218085605 | G117: 1 | H117: 0 | I117: 16477.69015 | J117: 1.570735639 | K117: 1.439131892 | L117: 0.8025664691 | M117: 1.000519575 | N117: 0.03222888706 | O117: 1.000118451 | P117: 0.04530344801 | Q117: 19.06339668 | R117: -88.54908434 | S117: 91.45091566 | U117: 1000000000 | V117: 36307855.36 | X117: 16.52679791 | Y117: -45.85943063 | AA117: 43.80632392 | AB117: -42.68965371 | AD117: 0 | AE117: 0
A118: 6095.8 | B118: 6.0958 | C118: 1.317169998 | D118: 0.7087079491 | E118: 1.000005299 | F118: 0.003255576979 | G118: 1 | H118: 0 | I118: 16669.66005 | J118: 1.570736338 | K118: 1.44782708 | L118: 0.8083532505 | M118: 1.000531749 | N118: 0.0326040985 | O118: 1.000121237 | P118: 0.04583148639 | Q118: 18.97264712 | R118: -88.59480491 | S118: 91.40519509 | U118: 1000000000 | V118: 37158777.64 | X118: 16.47840596 | Y118: -45.54941055 | AA118: 43.76396631 | AB118: -43.04539436 | AD118: 0 | AE118: 0
A119: 6166 | B119: 6.166 | C119: 1.323616833 | D119: 0.7143707281 | E119: 1.000005422 | F119: 0.003293068344 | G119: 1 | H119: 0 | I119: 16861.62995 | J119: 1.570737021 | K119: 1.456570171 | L119: 0.8140707509 | M119: 1.000544064 | N119: 0.03297930076 | O119: 1.000124055 | P119: 0.0463595331 | Q119: 18.88294588 | R119: -88.64131299 | S119: 91.35868701 | U119: 1000000000 | V119: 38019556 | X119: 16.43113716 | Y119: -45.24335855 | AA119: 43.72153386 | AB119: -43.39795445 | AD119: 0 | AE119: 0
A120: 6237.8 | B120: 6.2378 | C120: 1.33025408 | D120: 0.7201056067 | E120: 1.000005549 | F120: 0.003331414203 | G120: 1 | H120: 0 | I120: 17057.97524 | J120: 1.570737703 | K120: 1.465561194 | L120: 0.8198478036 | M120: 1.000556805 | N120: 0.03336304503 | O120: 1.000126972 | P120: 0.04689962378 | Q120: 18.79225708 | R120: -88.6896705 | S120: 91.3103295 | U120: 1000000000 | V120: 38910148.84 | X120: 16.38391895 | Y120: -44.93438385 | AA120: 43.67806328 | AB120: -43.75528665 | AD120: 0 | AE120: 0
A121: 6309.6 | B121: 6.3096 | C121: 1.336934642 | D121: 0.7257833571 | E121: 1.000005678 | F121: 0.003369760052 | G121: 1 | H121: 0 | I121: 17254.32052 | J121: 1.57073837 | K121: 1.474600532 | L121: 0.8255542178 | M121: 1.000569693 | N121: 0.03374677946 | O121: 1.000129923 | P121: 0.04743972337 | Q121: 18.70261009 | R121: -88.73880114 | S121: 91.26119886 | U121: 1000000000 | V121: 39811052.16 | X121: 16.33780802 | Y121: -44.62945499 | AA121: 43.63452722 | AB121: -44.10934615 | AD121: 0 | AE121: 0
A122: 6383.05 | B122: 6.38305 | C122: 1.343812873 | D122: 0.7315329819 | E122: 1.000005811 | F122: 0.003408987098 | G122: 1 | H122: 0 | I122: 17455.17792 | J122: 1.570739037 | K122: 1.483896671 | L122: 0.8313196383 | M122: 1.00058303 | N122: 0.03413932202 | O122: 1.000132977 | P122: 0.04799224405 | Q122: 18.61195365 | R122: -88.78983491 | S122: 91.21016509 | U122: 1000000000 | V122: 40743327.3 | X122: 16.29174936 | Y122: -44.32164996 | AA122: 43.58992944 | AB122: -44.46818495 | AD122: 0 | AE122: 0
A123: 6456.5 | B123: 6.4565 | C123: 1.350735075 | D123: 0.7372238623 | E123: 1.000005945 | F123: 0.003448214134 | G123: 1 | H123: 0 | I123: 17656.03532 | J123: 1.570739689 | K123: 1.49324152 | L123: 0.8370130851 | M123: 1.000596521 | N123: 0.03453185406 | O123: 1.000136067 | P123: 0.04854477428 | Q123: 18.52233301 | R123: -88.84162575 | S123: 91.15837425 | U123: 1000000000 | V123: 41686392.25 | X123: 16.246782 | Y123: -44.01796726 | AA123: 43.54527617 | AB123: -44.82365848 | AD123: 0 | AE123: 0
A124: 6531.7 | B124: 6.5317 | C124: 1.357867056 | D124: 0.7429900278 | E124: 1.000006084 | F124: 0.003488375771 | G124: 1 | H124: 0 | I124: 17861.67829 | J124: 1.570740341 | K124: 1.502858532 | L124: 0.8427686362 | M124: 1.000610493 | N124: 0.03493372742 | O124: 1.000139268 | P124: 0.04911047895 | Q124: 18.43162306 | R124: -88.89540832 | S124: 91.10459168 | U124: 1000000000 | V124: 42663104.89 | X124: 16.20184011 | Y124: -43.71126149 | AA124: 43.4995081 | AB124: -45.18414683 | AD124: 0 | AE124: 0
A125: 6606.9 | B125: 6.6069 | C125: 1.365043712 | D125: 0.7486957507 | E125: 1.000006225 | F125: 0.003528537397 | G125: 1 | H125: 0 | I125: 18067.32126 | J125: 1.570740978 | K125: 1.512524694 | L125: 0.848450809 | M125: 1.000624627 | N125: 0.0353355895 | O125: 1.000142506 | P125: 0.04967619385 | Q125: 18.3419447 | R125: -88.94993113 | S125: 91.05006887 | U125: 1000000000 | V125: 43651127.61 | X125: 16.15797479 | Y125: -43.40875848 | AA125: 43.45369506 | AB125: -45.54117266 | AD125: 0 | AE125: 0
A126: 6683.85 | B126: 6.68385 | C126: 1.372432892 | D126: 0.7544722889 | E126: 1.000006371 | F126: 0.003569633624 | G126: 1 | H126: 0 | I126: 18277.74981 | J126: 1.570741615 | K126: 1.522465703 | L126: 0.8541903326 | M126: 1.000639257 | N126: 0.0357467916 | O126: 1.000145859 | P126: 0.05025508438 | Q126: 18.25122032 | R126: -89.00646191 | S126: 90.99353809 | U126: 1000000000 | V126: 44673850.82 | X126: 16.11416945 | Y126: -43.10350465 | AA126: 43.40677602 | AB126: -45.90295726 | AD126: 0 | AE126: 0
A127: 6760.8 | B127: 6.7608 | C127: 1.379867377 | D127: 0.7601867701 | E127: 1.000006519 | F127: 0.003610729838 | G127: 1 | H127: 0 | I127: 18488.17836 | J127: 1.570742238 | K127: 1.532456214 | L127: 0.8598552057 | M127: 1.000654056 | N127: 0.03615798161 | O127: 1.000149251 | P127: 0.05083398587 | Q127: 18.16152235 | R127: -89.06371335 | S127: 90.93628665 | U127: 1000000000 | V127: 45708416.64 | X127: 16.07142424 | Y127: -42.80252646 | AA127: 43.35982326 | AB127: -46.26118689 | AD127: 0 | AE127: 0
A128: 6839.55 | B128: 6.83955 | C128: 1.387521915 | D128: 0.7659713267 | E128: 1.000006671 | F128: 0.003652787355 | G128: 1 | H128: 0 | I128: 18703.52921 | J128: 1.570742861 | K128: 1.542730669 | L128: 0.865576438 | M128: 1.000669377 | N128: 0.03657877743 | O128: 1.000152764 | P128: 0.05142644041 | Q128: 18.07076208 | R128: -89.1230225 | S128: 90.8769775 | U128: 1000000000 | V128: 46779444.2 | X128: 16.02874323 | Y128: -42.49886951 | AA128: 43.311744 | AB128: -46.624153 | AD128: 0 | AE128: 0
A129: 6918.3 | B129: 6.9183 | C129: 1.39522237 | D129: 0.7716922212 | E129: 1.000006826 | F129: 0.003694844859 | G129: 1 | H129: 0 | I129: 18918.88006 | J129: 1.57074347 | K129: 1.553054952 | L129: 0.8712217866 | M129: 1.000684874 | N129: 0.0369995603 | O129: 1.000156318 | P129: 0.05201890669 | Q129: 17.9810234 | R129: -89.18303101 | S129: 90.81696899 | U129: 1000000000 | V129: 47862874.89 | X129: 15.98710567 | Y129: -42.19955881 | AA129: 43.26364288 | AB129: -46.9834722 | AD129: 0 | AE129: 0
A130: 6998.9 | B130: 6.9989 | C130: 1.403150485 | D130: 0.7774822947 | E130: 1.000006986 | F130: 0.003737890367 | G130: 1 | H130: 0 | I130: 19139.28995 | J130: 1.570744078 | K130: 1.563672342 | L130: 0.8769223746 | M130: 1.00070092 | N130: 0.03743021464 | O130: 1.000159998 | P130: 0.05262530354 | Q130: 17.89020784 | R130: -89.24514536 | S130: 90.75485464 | U130: 1000000000 | V130: 48984601.21 | X130: 15.94553708 | Y130: -41.89764873 | AA130: 43.21439591 | AB130: -47.34749663 | AD130: 0 | AE130: 0
A131: 7079.5 | B131: 7.0795 | C131: 1.41112511 | D131: 0.783207116 | E131: 1.000007148 | F131: 0.003780935861 | G131: 1 | H131: 0 | I131: 19359.69984 | J131: 1.570744673 | K131: 1.57433986 | L131: 0.8825458903 | M131: 1.00071715 | N131: 0.0378608551 | O131: 1.000163722 | P131: 0.05323171299 | Q131: 17.80040942 | R131: -89.30793608 | S131: 90.69206392 | U131: 1000000000 | V131: 50119320.25 | X131: 15.90499498 | Y131: -41.60015297 | AA131: 43.16513959 | AB131: -47.70778311 | AD131: 0 | AE131: 0
A132: 7161.95 | B132: 7.16195 | C132: 1.419330083 | D132: 0.7889965811 | E132: 1.000007315 | F132: 0.003824969358 | G132: 1 | H132: 0 | I132: 19585.16876 | J132: 1.570745268 | K132: 1.58530304 | L132: 0.8882199911 | M132: 1.000733946 | N132: 0.03830136545 | O132: 1.000167576 | P132: 0.05385205444 | Q132: 17.70957592 | R132: -89.37283944 | S132: 90.62716056 | U132: 1000000000 | V132: 51293527.8 | X132: 15.86455125 | Y132: -41.3003244 | AA132: 43.11474982 | AB132: -48.07251504 | AD132: 0 | AE132: 0
A133: 7244.4 | B133: 7.2444 | C133: 1.427582081 | D133: 0.7947193054 | E133: 1.000007485 | F133: 0.00386900284 | G133: 1 | H133: 0 | I133: 19810.63768 | J133: 1.570745849 | K133: 1.596316557 | L133: 0.8938159749 | M133: 1.000750936 | N133: 0.03874186092 | O133: 1.000171476 | P133: 0.05447240937 | Q133: 17.61975423 | R133: -89.43839375 | S133: 90.56160625 | U133: 1000000000 | V133: 52481331.36 | X133: 15.82511557 | Y133: -41.00496997 | AA133: 43.06436382 | AB133: -48.43342378 | AD133: 0 | AE133: 0
A134: 7328.75 | B134: 7.32875 | C134: 1.436072059 | D134: 0.8005056525 | E134: 1.00000766 | F134: 0.003914051025 | G134: 1 | H134: 0 | I134: 20041.30238 | J134: 1.57074643 | K134: 1.607634885 | L134: 0.8994613888 | M134: 1.000768518 | N134: 0.03919249173 | O134: 1.000175513 | P134: 0.05510707404 | Q134: 17.52888358 | R134: -89.50610369 | S134: 90.49389631 | U134: 1000000000 | V134: 53710576.56 | X134: 15.78578133 | Y134: -40.70736411 | AA134: 43.0128274 | AB134: -48.79873958 | AD134: 0 | AE134: 0
A135: 7413.1 | B135: 7.4131 | C135: 1.444609552 | D135: 0.8062237957 | E135: 1.000007837 | F135: 0.003959099195 | G135: 1 | H135: 0 | I135: 20271.96707 | J135: 1.570746998 | K135: 1.619003732 | L135: 0.9050276924 | M135: 1.000786303 | N135: 0.03964310661 | O135: 1.000179597 | P135: 0.05574175315 | Q135: 17.43901982 | R135: -89.57443769 | S135: 90.42556231 | U135: 1000000000 | V135: 54954051.61 | X135: 15.7474365 | Y135: -40.41428927 | AA135: 42.96130847 | AB135: -49.16014842 | AD135: 0 | AE135: 0
A136: 7499.45 | B136: 7.49945 | C136: 1.453397821 | D136: 0.8120077395 | E136: 1.000008021 | F136: 0.004005215473 | G136: 1 | H136: 0 | I136: 20508.10098 | J136: 1.570747566 | K136: 1.630693369 | L136: 0.9106454022 | M136: 1.00080472 | N136: 0.04010438921 | O136: 1.000183828 | P136: 0.0563914961 | Q136: 17.34804238 | R136: -89.64500954 | S136: 90.35499046 | U136: 1000000000 | V136: 56241750.3 | X136: 15.70917466 | Y136: -40.11888029 | AA136: 42.90859287 | AB136: -49.52612925 | AD136: 0 | AE136: 0
A137: 7585.8 | B137: 7.5858 | C137: 1.462234127 | D137: 0.8177219676 | E137: 1.000008207 | F137: 0.004051331734 | G137: 1 | H137: 0 | I137: 20744.2349 | J137: 1.570748121 | K137: 1.642433736 | L137: 0.9161829723 | M137: 1.000823351 | N137: 0.04056565473 | O137: 1.000188108 | P137: 0.05704125452 | Q137: 17.25806846 | R137: -89.71617782 | S137: 90.28382218 | U137: 1000000000 | V137: 57544361.64 | X137: 15.67188451 | Y137: -39.82806127 | AA137: 42.8559091 | AB137: -49.88811655 | AD137: 0 | AE137: 0
A138: 7674.15 | B138: 7.67415 | C138: 1.471323911 | D138: 0.8234973141 | E138: 1.000008399 | F138: 0.004098516101 | G138: 1 | H138: 0 | I138: 20985.83805 | J138: 1.570748676 | K138: 1.654497406 | L138: 0.9217672846 | M138: 1.000842633 | N138: 0.04103758601 | O138: 1.00019254 | P138: 0.05770607856 | Q138: 17.16702352 | R138: -89.78958289 | S138: 90.21041711 | U138: 1000000000 | V138: 58892578.22 | X138: 15.63470394 | Y138: -39.53517521 | AA138: 42.80204474 | AB138: -50.25440768 | AD138: 0 | AE138: 0
A139: 7762.5 | B139: 7.7625 | C139: 1.480462167 | D139: 0.8292015515 | E139: 1.000008593 | F139: 0.00414570045 | G139: 1 | H139: 0 | I139: 21227.4412 | J139: 1.570749218 | K139: 1.666611923 | L139: 0.9272705823 | M139: 1.000862138 | N139: 0.04150949899 | O139: 1.000197024 | P139: 0.05837091918 | Q139: 17.07697787 | R139: -89.86355468 | S139: 90.13644532 | U139: 1000000000 | V139: 60256406.25 | X139: 15.59847595 | Y139: -39.24692918 | AA139: 42.74822708 | AB139: -50.6166255 | AD139: 0 | AE139: 0
A140: 7852.9 | B140: 7.8529 | C140: 1.4898617 | D140: 0.8349655234 | E140: 1.000008795 | F140: 0.004193979606 | G140: 1 | H140: 0 | I140: 21474.6503 | J140: 1.57074976 | K140: 1.679059017 | L140: 0.9328192031 | M140: 1.000882327 | N140: 0.0419923427 | O140: 1.000201666 | P140: 0.05905120357 | Q140: 16.98585172 | R140: -89.9398006 | S140: 90.0601994 | U140: 1000000000 | V140: 61668038.41 | X140: 15.56236121 | Y140: -38.9567126 | AA140: 42.69321566 | AB140: -50.983088 | AD140: 0 | AE140: 0
A141: 7943.3 | B141: 7.9433 | C141: =SQRT(1+(A141/pole1)^2) -> 1.499310111 | D141: =ATAN(A141/pole1) -> 0.8406570352 | E141: =SQRT(1+(A141/Zero1)^2) -> 1.000008998 | F141: =ATAN(A141/Zero1) -> 0.004242258743 | G141: =IF(VIN_nom>Vout, 1, SQRT(1+(A141/z_RHP)^2)) -> 1 | H141: =IF(VIN_nom>Vout, 0, -ATAN(A141/z_RHP)) -> 0 | I141: =SQRT(1+(A141/Pole2)^2) -> 21721.85941 | J141: =ATAN(A141/Pole2) -> 1.57075029 | K141: =SQRT(1+(A141/Zero2)^2) -> 1.691557044 | L141: =ATAN(A141/Zero2) -> 0.9382859984 | M141: =SQRT(1+(A141/pole4)^2) -> 1.000902749 | N141: =ATAN(A141/pole4) -> 0.04247516682 | O141: =SQRT((1-(V141/pterm2))^2+(A141/pterm1)^2) -> 1.000206364 | P141: =IF((ATAN((A141/pterm1)/(1-A141^2/pterm2))>0),ATAN((A141/pterm1)/(1-A141^2/pterm2)),PI()+ATAN((A141/pterm1)/(1-A141^2/pterm2))) -> 0.05973150571 | Q141: =20*LOG10(((E141*K141*G141)/(C141*I141*O141*M141))*Adc) -> 16.89572096 | R141: =((F141+L141+H141)-(D141+J141+P141+N141))*radconv -> -90.0165823 | S141: =IF(R141>0,R141,R141+180) -> 89.9834177 | U141: 1000000000 | V141: 63096014.89 | X141: =20*LOG10((K141/(I141*M141))*AEA) -> 15.52717975 | Y141: =(L141-(J141+N141))*radconv -> -38.67118245 | AA141: =20*LOG10((E141*G141/(C141*O141))*Acs*Am) -> 42.63826636 | AB141: =(F141+H141-(D141+P141))*radconv -> -51.34539985 | AD141: 0 | AE141: 0
A142: 8035.8 | B142: =A142/1000 -> 8.0358 | C142: 1.509027644 | D142: 0.8464067956 | E142: 1.000009209 | F142: 0.004291659388 | G142: 1 | H142: 0 | I142: 21974.8112 | J142: 1.57075082 | K142: 1.704396952 | L142: 0.9437966299 | M142: 1.000923886 | N142: 0.04296918648 | O142: 1.000211227 | P142: 0.06042762992 | Q142: 16.80450154 | R142: -90.09567351 | S142: 89.90432649 | U142: =IF(Q142<0,A142,1000000000) -> 1000000000 | V142: =A142^2 -> 64574081.64 | X142: 15.49211526 | Y142: -38.38378213 | AA142: 42.58211143 | AB142: -51.71189139 | AD142: =SUM((Q143<0)*(Q142>0))*A142 -> 0 | AE142: 0
A143: 8128.3 | B143: 8.1283 | C143: 1.518794426 | D143: 0.8520827926 | E143: 1.000009422 | F143: 0.004341060012 | G143: 1 | H143: 0 | I143: 22227.763 | J143: 1.570751338 | K143: 1.717287843 | L143: 0.9492246926 | M143: 1.000945268 | N143: 0.04346318515 | O143: 1.000216148 | P143: 0.06112377316 | Q143: 16.71427396 | R143: -90.17526844 | S143: 89.82473156 | U143: 1000000000 | V143: 66069260.89 | X143: 15.45796454 | Y143: -38.10111075 | AA143: 42.52603457 | AB143: -52.07415769 | AD143: 0 | AE143: 0
A144: 8222.95 | B144: 8.22295 | C144: 1.528838214 | D144: 0.8578154602 | E144: 1.000009643 | F144: 0.004391608845 | G144: 1 | H144: 0 | I144: 22486.59421 | J144: 1.570751856 | K144: 1.730529945 | L144: 0.9546950463 | M144: 1.0009674 | N144: 0.04396864398 | O144: 1.000221244 | P144: 0.06183611694 | Q144: 16.62295084 | R144: -90.25720631 | S144: 89.74279369 | U144: 1000000000 | V144: 67616906.7 | X144: 15.42393445 | Y144: -37.8166729 | AA144: 42.46874154 | AB144: -52.4405334 | AD144: 0 | AE144: 0
A145: 8270.275 | B145: 8.270275 | C145: 1.533878764 | D145: 0.8606535945 | E145: 1.000009755 | F145: 0.004416883253 | G145: 1 | H145: 0 | I145: 22616.00982 | J145: 1.57075211 | K145: 1.737170194 | L145: 0.9573989081 | M145: 1.000978562 | N145: 0.04422136498 | O145: 1.000223814 | P145: 0.06219229645 | Q145: 16.57766151 | R145: -90.29835344 | S145: 89.70164656 | U145: 1000000000 | V145: 68397448.58 | X145: 15.40725658 | Y145: -37.67624746 | AA145: 42.44013009 | AB145: -52.62210598 | AD145: 0 | AE145: 0
A146: 8317.6 | B146: 8.3176 | C146: 1.538931588 | D146: 0.8634731142 | E146: 1.000009866 | F146: 0.004442157655 | G146: 1 | H146: 0 | I146: 22745.42543 | J146: 1.570752362 | K146: 1.743823046 | L146: 0.9600821585 | M146: 1.000989788 | N146: 0.04447408033 | O146: 1.0002264 | P146: 0.06254848109 | Q146: 16.53261631 | R146: -90.3396148 | S146: 89.6603852 | U146: 1000000000 | V146: 69182469.76 | X146: 15.39079844 | Y146: -37.53700248 | AA146: 42.41154302 | AB146: -52.80261232 | AD146: 0 | AE146: 0
A147: 8366.05 | B147: 8.36605 | C147: 1.544117117 | D147: 0.8663405197 | E147: 1.000009982 | F147: 0.00446803287 | G147: 1 | H147: 0 | I147: 22877.91747 | J147: 1.570752617 | K147: 1.750646954 | L147: 0.9628080475 | M147: 1.001001346 | N147: 0.04473279728 | O147: 1.000229062 | P147: 0.06291313821 | Q147: 16.48675012 | R147: -90.38197185 | S147: 89.61802815 | U147: 1000000000 | V147: 69990792.6 | X147: 15.37417284 | Y147: -37.39565852 | AA147: 42.38230244 | AB147: -52.98631333 | AD147: 0 | AE147: 0
A148: 8414.5 | B148: 8.4145 | C148: 1.549315256 | D148: 0.8691887075 | E148: 1.000010098 | F148: 0.004493908078 | G148: 1 | H148: 0 | I148: 23010.40952 | J148: 1.570752868 | K148: =SQRT(1+(A148/Zero2)^2) -> 1.75748377 | L148: =ATAN(A148/Zero2) -> 0.9655127484 | M148: 1.001012972 | N148: 0.04499150825 | O148: 1.000231741 | P148: 0.06327780076 | Q148: 16.44113362 | R148: -90.42444159 | S148: 89.57555841 | U148: 1000000000 | V148: 70803810.25 | X148: 15.35776979 | Y148: -37.25552804 | AA148: 42.35308898 | AB148: -53.16891355 | AD148: 0 | AE148: 0
A149: 8462.95 | B149: 8.46295 | C149: 1.55452588 | D149: 0.8720178244 | E149: 1.000010214 | F149: 0.00451978328 | G149: 1 | H149: 0 | I149: 23142.90157 | J149: 1.570753117 | K149: 1.764333343 | L149: 0.9681964682 | M149: 1.001024665 | N149: 0.04525021318 | O149: 1.000234435 | P149: 0.06364246877 | Q149: 16.39576376 | R149: -90.46702059 | S149: 89.53297941 | U149: 1000000000 | V149: 71621522.7 | X149: 15.3415855 | Y149: -37.11659917 | AA149: 42.32390341 | AB149: -53.35042141 | AD149: 0 | AE149: 0
A150: 8511.4 | B150: 8.5114 | C150: 1.559748863 | D150: 0.8748280165 | E150: 1.000010332 | F150: 0.004545658477 | G150: 1 | H150: 0 | I150: 23275.39362 | J150: 1.570753363 | K150: 1.771195524 | L150: 0.9708594119 | M150: 1.001036425 | N150: 0.04550891206 | O150: 1.000237145 | P150: 0.06400714227 | Q150: 16.35063755 | R150: -90.50970546 | S150: 89.49029454 | U150: 1000000000 | V150: 72443929.96 | X150: 15.32561623 | Y150: -36.97886019 | AA150: 42.29474648 | AB150: -53.53084527 | AD150: 0 | AE150: 0
A151: 8560.95 | B151: 8.56095 | C151: 1.565103081 | D151: 0.8776825879 | E151: 1.000010452 | F151: 0.004572121132 | G151: 1 | H151: 0 | I151: 23410.89374 | J151: 1.570753612 | K151: 1.778226393 | L151: 0.973561537 | M151: 1.001048521 | N151: 0.04577347808 | O151: 1.000239933 | P151: 0.06438010097 | Q151: 16.30473578 | R151: -90.55346551 | S151: 89.44653449 | U151: 1000000000 | V151: 73289864.9 | X151: 15.309503 | Y151: -36.83921258 | AA151: 42.26495793 | AB151: -53.71425293 | AD151: 0 | AE151: 0
A152: 8610.5 | B152: 8.6105 | C152: 1.570469966 | D152: 0.880517672 | E152: 1.000010574 | F152: 0.004598583782 | G152: 1 | H152: 0 | I152: 23546.39387 | J152: 1.570753857 | K152: 1.785270144 | L152: 0.9762423593 | M152: 1.001060687 | N152: 0.04603803769 | O152: 1.000242738 | P152: 0.06475306548 | Q152: 16.25908273 | R152: -90.59732939 | S152: 89.40267061 | U152: 1000000000 | V152: 74140710.25 | X152: 15.29360703 | Y152: -36.70078502 | AA152: 42.23520085 | AB152: -53.89654437 | AD152: 0 | AE152: 0
A153: 8660.05 | B153: 8.66005 | C153: 1.575849388 | D153: 0.8833334226 | E153: 1.000010696 | F153: 0.004625046424 | G153: 1 | H153: 0 | I153: 23681.89399 | J153: 1.5707541 | K153: 1.792326623 | L153: 0.9789020915 | M153: 1.001072923 | N153: 0.04630259085 | O153: 1.00024556 | P153: 0.06512603583 | Q153: 16.21367539 | R153: -90.64129372 | S153: 89.35870628 | U153: 1000000000 | V153: 74996466 | X153: 15.27792457 | Y153: -36.56356529 | AA153: 42.20547597 | AB153: -54.07772843 | AD153: 0 | AE153: 0
A154: 8709.6 | B154: 8.7096 | C154: 1.581241219 | D154: 0.8861299925 | E154: 1.000010818 | F154: 0.004651509061 | G154: 1 | H154: 0 | I154: 23817.39411 | J154: 1.570754341 | K154: 1.799395683 | L154: 0.9815409443 | M154: 1.00108523 | N154: 0.04656713753 | O154: 1.000248398 | P154: 0.06549901206 | Q154: 16.1685108 | R154: -90.68535518 | S154: 89.31464482 | U154: 1000000000 | V154: 75857132.16 | X154: 15.26245195 | Y154: -36.42754133 | AA154: 42.17578401 | AB154: -54.25781385 | AD154: 0 | AE154: =IF(AD154>0,S154,0) -> 0
A155: 8760.325 | B155: 8.760325 | C155: 1.58677363 | D155: 0.888973169 | E155: 1.000010945 | F155: 0.00467859921 | G155: 1 | H155: 0 | I155: 23956.10741 | J155: 1.570754584 | K155: 1.806645251 | L155: 0.9842209631 | M155: 1.0010979 | N155: 0.04683795076 | O155: 1.000251321 | P155: 0.06588083895 | Q155: 16.12252365 | R155: -90.73055873 | S155: 89.26944127 | U155: 1000000000 | V155: 76743294.11 | X155: 15.24682603 | Y155: -36.28951795 | AA155: 42.14542277 | AB155: -54.44104078 | AD155: 0 | AE155: 0
A156: 8811.05 | B156: 8.81105 | C156: 1.592318779 | D156: 0.8917965659 | E156: 1.000011072 | F156: 0.004705689352 | G156: 1 | H156: 0 | I156: 24094.8207 | J156: 1.570754824 | K156: 1.813907691 | L156: 0.9868795407 | M156: 1.001110644 | N156: 0.04710875711 | O156: 1.000254261 | P156: 0.06626267208 | Q156: 16.07678482 | R156: -90.77585728 | S156: 89.22414272 | U156: 1000000000 | V156: 77634602.1 | X156: 15.23141248 | Y156: -36.1527225 | AA156: 42.11509749 | AB156: -54.62313478 | AD156: 0 | AE156: 0
A157: 8861.775 | B157: 8.861775 | C157: 1.597876533 | D157: 0.8946003442 | E157: 1.0000112 | F157: 0.004732779488 | G157: 1 | H157: 0 | I157: 24233.534 | J157: 1.570755062 | K157: 1.82118285 | L157: 0.9895168961 | M157: 1.001123462 | N157: 0.04737955655 | O157: 1.000257218 | P157: 0.06664451147 | Q157: 16.03129134 | R157: -90.82124753 | S157: 89.17875247 | U157: 1000000000 | V157: 78531056.15 | X157: 15.2162076 | Y157: -36.01714245 | AA157: 42.08480889 | AB157: -54.80410508 | AD157: 0 | AE157: 0
A158: 8912.5 | B158: 8.9125 | C158: 1.603446762 | D158: 0.8973846642 | E158: 1.000011328 | F158: 0.004759869616 | G158: 1 | H158: 0 | I158: 24372.24729 | J158: 1.570755297 | K158: =SQRT(1+(A158/Zero2)^2) -> 1.828470575 | L158: =ATAN(A158/Zero2) -> 0.9921332462 | M158: 1.001136353 | N158: 0.04765034903 | O158: 1.000260193 | P158: 0.06702635716 | Q158: 15.98604026 | R158: -90.86672621 | S158: 89.13327379 | U158: 1000000000 | V158: 79432656.25 | X158: 15.20120776 | Y158: -35.88276535 | AA158: 42.05455764 | AB158: -54.98396086 | AD158: 0 | AE158: 0
A159: 8964.4 | B159: 8.9644 | C159: 1.609158795 | D159: 0.9002135068 | E159: 1.000011461 | F159: 0.004787587257 | G159: 1 | H159: 0 | I159: 24514.17376 | J159: 1.570755534 | K159: 1.835939964 | L159: 0.9947886847 | M159: 1.001149618 | N159: 0.04792740694 | O159: 1.000263255 | P159: 0.06741705452 | Q159: 15.93998887 | R159: -90.9133466 | S159: 89.0866534 | U159: 1000000000 | V159: 80360467.36 | X159: 15.18606899 | Y159: -35.74650779 | AA159: 42.02364504 | AB159: -55.16683881 | AD159: 0 | AE159: 0
A160: 9016.3 | B160: 9.0163 | C160: 1.614883614 | D160: 0.903022315 | E160: 1.000011594 | F160: 0.00481530489 | G160: 1 | H160: 0 | I160: 24656.10023 | J160: 1.570755769 | K160: 1.843422195 | L160: 0.9974225855 | M160: 1.001162961 | N160: 0.04820445749 | O160: 1.000266336 | P160: 0.06780775856 | Q160: 15.89418523 | R160: -90.96005293 | S160: 89.03994707 | U160: 1000000000 | V160: 81293665.69 | X160: 15.17113743 | Y160: -35.61148367 | AA160: 41.99277295 | AB160: -55.34856925 | AD160: 0 | AE160: 0
A161: 9068.2 | B161: 9.0682 | C161: 1.620621084 | D161: 0.9058112571 | E161: 1.000011728 | F161: 0.004843022515 | G161: 1 | H161: 0 | I161: 24798.02669 | J161: 1.570756001 | K161: 1.850917111 | L161: 1.000035173 | M161: 1.00117638 | N161: 0.04848150064 | O161: 1.000269434 | P161: 0.06819846931 | Q161: 15.84862636 | R161: -91.00684196 | S161: 88.99315804 | U161: 1000000000 | V161: 82232251.24 | X161: 15.15640944 | Y161: -35.47768012 | AA161: 41.96194207 | AB161: -55.52916184 | AD161: 0 | AE161: 0
A162: 9120.1 | B162: 9.1201 | C162: 1.62637107 | D162: 0.9085805001 | E162: 1.000011862 | F162: 0.004870740133 | G162: 1 | H162: 0 | I162: 24939.95316 | J162: 1.57075623 | K162: 1.858424558 | L162: 1.002626671 | M162: 1.001189876 | N162: 0.04875853633 | O162: 1.000272552 | P162: 0.0685891868 | Q162: 15.80330936 | R162: -91.05371052 | S162: 88.94628948 | U162: 1000000000 | V162: 83176224.01 | X162: 15.14188146 | Y162: -35.34508438 | AA162: 41.93115305 | AB162: -55.70862614 | AD162: 0 | AE162: 0
A163: 9173.2 | B163: 9.1732 | C163: 1.63226682 | D163: 0.9113935575 | E163: 1.000012001 | F163: 0.004899098613 | G163: 1 | H163: 0 | I163: 25085.16116 | J163: 1.570756463 | K163: 1.8661184 | L163: 1.005256489 | M163: 1.001203764 | N163: 0.04904196973 | O163: 1.00027576 | P163: 0.06898894525 | Q163: 15.75719193 | R163: -91.10174184 | S163: 88.89825816 | U163: 1000000000 | V163: 84147598.24 | X163: 15.12722092 | Y163: -35.21065973 | AA163: 41.89969616 | AB163: -55.8910821 | AD163: 0 | AE163: 0
A164: 9226.3 | B164: 9.2263 | C164: 1.638175394 | D164: 0.9141863445 | E164: 1.00001214 | F164: 0.004927457086 | G164: 1 | H164: 0 | I164: 25230.36917 | J164: 1.570756692 | K164: 1.873825042 | L164: 1.007864693 | M164: 1.001217732 | N164: 0.04932539524 | O164: 1.000278987 | P164: 0.06938871084 | Q164: 15.7113217 | R164: -91.14984994 | S164: 88.85015006 | U164: 1000000000 | V164: 85124611.69 | X164: 15.11276242 | Y164: -35.07747286 | AA164: 41.86828443 | AB164: -56.07237708 | AD164: 0 | AE164: 0
A165: 9279.4 | B165: 9.2794 | C165: 1.644096652 | D165: 0.9169590365 | E165: 1.00001228 | F165: 0.00495581555 | G165: 1 | H165: 0 | I165: 25375.57717 | J165: 1.570756919 | K165: 1.881544326 | L165: 1.010451514 | M165: 1.00123178 | N165: 0.04960881282 | O165: 1.000282233 | P165: 0.06978848362 | Q165: 15.66569575 | R165: -91.19803167 | S165: 88.80196833 | U165: 1000000000 | V165: 86107264.36 | X165: 15.09850238 | Y165: -34.94551057 | AA165: 41.83691852 | AB165: -56.2525211 | AD165: 0 | AE165: 0
A166: 9332.5 | B166: 9.3325 | C166: 1.65003046 | D166: 0.9197118073 | E166: 1.000012421 | F166: 0.004984174006 | G166: 1 | H166: 0 | I166: 25520.78517 | J166: 1.570757143 | K166: 1.889276098 | L166: 1.013017179 | M166: 1.001245909 | N166: 0.04989222242 | O166: 1.000285499 | P166: 0.07018826362 | Q166: 15.62031119 | R166: -91.24628395 | S166: 88.75371605 | U166: 1000000000 | V166: 87095556.25 | X166: 15.08443728 | Y166: -34.81475982 | AA166: 41.80559906 | AB166: -56.43152413 | AD166: 0 | AE166: 0
A167: 9386.85 | B167: 9.38685 | C167: 1.656116807 | D167: 0.9225089297 | E167: 1.000012566 | F167: 0.005013200026 | G167: 1 | H167: 0 | I167: 25669.41144 | J167: 1.57075737 | K167: 1.897202653 | L167: 1.015621567 | M167: 1.001260454 | N167: 0.05018229531 | O167: 1.000288862 | P167: 0.07059746217 | Q167: 15.57410528 | R167: -91.29574204 | S167: 88.70425796 | U167: 1000000000 | V167: 88112952.92 | X167: 15.07023937 | Y167: -34.68217232 | AA167: 41.77359106 | AB167: -56.61356972 | AD167: 0 | AE167: 0
A168: 9441.2 | B168: 9.4412 | C168: 1.662216016 | D168: 0.9252855467 | E168: 1.000012712 | F168: 0.005042226038 | G168: 1 | H168: 0 | I168: 25818.03771 | J168: 1.570757594 | K168: 1.905141969 | L168: 1.018204266 | M168: 1.001275083 | N168: 0.05047235976 | O168: 1.000292244 | P168: 0.07100666837 | Q168: 15.52814634 | R168: -91.34526776 | S168: 88.65473224 | U168: 1000000000 | V168: 89136257.44 | X168: 15.05623849 | Y168: -34.55082688 | AA168: 41.741633 | AB168: -56.79444088 | AD168: 0 | AE168: 0
A169: 9495.55 | B169: 9.49555 | C169: 1.668327946 | D169: 0.9280418404 | E169: 1.000012859 | F169: 0.005071252041 | G169: 1 | H169: 0 | I169: 25966.66398 | J169: 1.570757816 | K169: 1.913093887 | L169: 1.020765512 | M169: 1.001289796 | N169: 0.0507624157 | O169: 1.000295647 | P169: 0.07141588227 | Q169: 15.48243144 | R169: -91.39485804 | S169: 88.60514196 | U169: 1000000000 | V169: 90165469.8 | X169: 15.04243111 | Y169: -34.42071 | AA169: 41.70972548 | AB169: -56.97414804 | AD169: 0 | AE169: 0
A170: 9549.9 | B170: 9.5499 | C170: 1.674452459 | D170: 0.9307779918 | E170: 1.000013007 | F170: 0.005100278036 | G170: 1 | H170: 0 | I170: 26115.29026 | J170: 1.570758035 | K170: 1.921058251 | L170: 1.023305537 | M170: 1.001304594 | N170: 0.0510524631 | O170: 1.00029907 | P170: 0.07182510391 | Q170: 15.43695772 | R170: -91.4445099 | S170: 88.5554901 | U170: 1000000000 | V170: 91200590.01 | X170: 15.02881377 | Y170: -34.29180833 | AA170: 41.6778691 | AB170: -57.15270157 | AD170: 0 | AE170: 0
A171: 9605.525 | B171: 9.605525 | C171: 1.680733531 | D171: 0.9335576615 | E171: 1.000013159 | F171: 0.005129984944 | G171: 1 | H171: 0 | I171: 26267.40316 | J171: 1.570758257 | K171: 1.929222179 | L171: 1.025883416 | M171: 1.001319826 | N171: 0.05134930583 | O171: 1.000302595 | P171: 0.07224393357 | Q171: 15.39066403 | R171: -91.49538727 | S171: 88.50461273 | U171: 1000000000 | V171: 92266110.53 | X171: 15.01507022 | Y171: -34.16112727 | AA171: 41.64531896 | AB171: -57.33426 | AD171: 0 | AE171: 0
A172: 9661.15 | B172: 9.66115 | C172: 1.687027493 | D172: 0.9363166116 | E172: 1.000013311 | F172: 0.005159691843 | G172: 1 | H172: 0 | I172: 26419.51606 | J172: 1.570758476 | K172: 1.937398818 | L172: 1.028439553 | M172: 1.001335146 | N172: 0.0516461395 | O172: 1.00030614 | P172: 0.07266277144 | Q172: 15.34461709 | R172: -91.54632307 | S172: 88.45367693 | U172: 1000000000 | V172: 93337819.32 | X172: 15.00151865 | Y172: -34.03169131 | AA172: 41.61282359 | AB172: -57.51463176 | AD172: 0 | AE172: 0
A173: 9716.775 | B173: 9.716775 | C173: 1.6933342 | D173: 0.9390550313 | E173: 1.000013465 | F173: 0.005189398733 | G173: 1 | H173: 0 | I173: 26571.62897 | J173: 1.570758693 | K173: 1.94558801 | L173: 1.030974188 | M173: 1.001350554 | N173: 0.05194296407 | O173: 1.000309707 | P173: 0.07308161755 | Q173: 15.29881399 | R173: -91.59731432 | S173: 88.40268568 | U173: 1000000000 | V173: 94415716.4 | X173: 14.98815559 | Y173: -33.90348663 | AA173: 41.58038356 | AB173: -57.69382769 | AD173: 0 | AE173: 0
A174: 9772.4 | B174: 9.7724 | C174: 1.699653512 | D174: 0.9417731084 | E174: 1.00001362 | F174: 0.005219105614 | G174: 1 | H174: 0 | I174: 26723.74187 | J174: 1.570758907 | K174: 1.953789596 | L174: 1.033487559 | M174: 1.001366051 | N174: 0.05223977948 | O174: 1.000313295 | P174: 0.07350047197 | Q174: 15.2532519 | R174: -91.64835816 | S174: 88.35164184 | U174: 1000000000 | V174: 95499801.76 | X174: 14.97497762 | Y174: -33.77649961 | AA174: 41.54799942 | AB174: -57.87185855 | AD174: 0 | AE174: 0
A175: 9829.3 | B175: 9.8293 | C175: 1.706130565 | D175: 0.9445326341 | E175: 1.000013779 | F175: 0.005249493407 | G175: 1 | H175: 0 | I175: 26879.34141 | J175: 1.570759124 | K175: 1.962191835 | L175: 1.036036785 | M175: 1.001381994 | N175: 0.05254338876 | O175: 1.000316987 | P175: 0.07392893572 | Q175: 15.20689191 | R175: -91.70062347 | S175: 88.29937653 | U175: 1000000000 | V175: 96615138.49 | X175: 14.96168566 | Y175: -33.64784767 | AA175: 41.5149314 | AB175: -58.0527758 | AD175: 0 | AE175: 0
A176: 9886.2 | B176: 9.8862 | C176: 1.712620512 | D176: 0.9472712662 | E176: 1.000013939 | F176: 0.00527988119 | G176: 1 | H176: 0 | I176: 27034.94094 | J176: 1.570759338 | K176: 1.970606717 | L176: 1.038564256 | M176: 1.001398029 | N176: 0.05284698835 | O176: 1.000320701 | P176: 0.07435740825 | Q176: 15.16077826 | R176: -91.75293794 | S176: 88.24706206 | U176: 1000000000 | V176: 97736950.44 | X176: 14.94858043 | Y176: -33.52044151 | AA176: 41.48192298 | AB176: -58.23249643 | AD176: 0 | AE176: 0
A177: 9943.1 | B177: 9.9431 | C177: 1.719123207 | D177: 0.9499892004 | E177: 1.0000141 | F177: 0.005310268964 | G177: 1 | H177: 0 | I177: 27190.54048 | J177: 1.570759549 | K177: 1.979034081 | L177: 1.041070217 | M177: 1.001414157 | N177: 0.05315057818 | O177: 1.000324437 | P177: 0.07478588962 | Q177: 15.11490807 | R177: -91.80529874 | S177: 88.19470126 | U177: 1000000000 | V177: 98865237.61 | X177: 14.93565853 | Y177: -33.39426706 | AA177: 41.4489747 | AB177: -58.41103168 | AD177: 0 | AE177: 0
A178: 10000 | B178: 10 | C178: 1.725638506 | D178: 0.9526866309 | E178: 1.000014261 | F178: 0.005340656728 | G178: 1 | H178: 0 | I178: 27346.14002 | J178: 1.570759759 | K178: 1.987473767 | L178: 1.04355491 | M178: 1.001430376 | N178: 0.05345415821 | O178: 1.000328196 | P178: 0.07521437986 | Q178: 15.06927854 | R178: -91.85770309 | S178: 88.14229691 | U178: 1000000000 | V178: 100000000 | X178: 14.92291662 | Y178: -33.26931044 | AA178: 41.41608707 | AB178: -58.58839265 | AD178: 0 | AE178: 0
A179: 10058.25 | B179: 10.05825 | C179: 1.732321293 | D179: 0.9554270216 | E179: 1.000014428 | F179: 0.005371765457 | G179: 1 | H179: 0 | I179: 27505.43128 | J179: 1.57075997 | K179: 1.996126293 | L179: 1.046076775 | M179: 1.001447077 | N179: 0.05376493072 | O179: 1.000332067 | P179: 0.07565304565 | Q179: 15.0228128 | R179: -91.91139309 | S179: 88.08860691 | U179: 1000000000 | V179: 101168393.1 | X179: 14.91005546 | Y179: -33.14263631 | AA179: 41.38248249 | AB179: -58.76875677 | AD179: 0 | AE179: 0
A180: 10116.5 | B180: 10.1165 | C180: 1.739016989 | D180: 0.9581463302 | E180: 1.000014596 | F180: 0.005402874175 | G180: 1 | H180: 0 | I180: 27664.72255 | J180: 1.57076018 | K180: 2.004791404 | L180: 1.048576856 | M180: 1.001463874 | N180: 0.05407569283 | O180: 1.000335961 | P180: 0.07609172085 | Q180: 14.97659346 | R180: -91.96512311 | S180: 88.03487689 | U180: 1000000000 | V180: 102343572.2 | X180: 14.8973761 | Y180: -33.0172096 | AA180: 41.34894251 | AB180: -58.94791351 | AD180: 0 | AE180: 0
A181: 10174.75 | B181: 10.17475 | C181: 1.745725445 | D181: 0.9608447591 | E181: 1.000014764 | F181: 0.005433982883 | G181: 1 | H181: 0 | I181: 27824.01381 | J181: 1.570760387 | K181: 2.013468938 | L181: 1.051055402 | M181: 1.001480768 | N181: 0.05438644448 | O181: 1.000339879 | P181: 0.07653040551 | Q181: 14.93061767 | R181: -92.01889044 | S181: 87.98110956 | U181: 1000000000 | V181: 103525537.6 | X181: 14.88487521 | Y181: -32.89301596 | AA181: 41.31546761 | AB181: -59.12587448 | AD181: 0 | AE181: 0
A182: 10233 | B182: 10.233 | C182: 1.752446516 | D182: 0.963522509 | E182: 1.000014934 | F182: 0.00546509158 | G182: 1 | H182: 0 | I182: 27983.30508 | J182: 1.570760591 | K182: 2.022158735 | L182: 1.053512662 | M182: 1.001497758 | N182: 0.05469718562 | O182: 1.00034382 | P182: 0.0769690997 | Q182: 14.88488261 | R182: -92.07269242 | S182: 87.92730758 | U182: 1000000000 | V182: 104714289 | X182: 14.8725495 | Y182: -32.77004124 | AA182: 41.28205826 | AB182: -59.30265118 | AD182: 0 | AE182: 0
A183: 10292.5 | B183: 10.2925 | C183: 1.759324689 | D183: 0.9662365789 | E183: 1.000015108 | F183: 0.005496867835 | G183: 1 | H183: 0 | I183: 28146.01461 | J183: 1.570760798 | K183: 2.031047505 | L183: 1.056000929 | M183: 1.001515213 | N183: 0.05501458411 | O183: 1.000347869 | P183: 0.07741721781 | Q183: 14.8384118 | R183: -92.12768205 | S183: 87.87231795 | U183: 1000000000 | V183: 105935556.2 | X183: 14.86013684 | Y183: -32.64567149 | AA183: 41.24800011 | AB183: -59.48201056 | AD183: 0 | AE183: 0
A184: 10352 | B184: 10.352 | C184: 1.76621572 | D184: 0.9689294901 | E184: 1.000015283 | F184: 0.005528644079 | G184: 1 | H184: 0 | I184: 28308.72414 | J184: 1.570761002 | K184: 2.039948741 | L184: 1.058467495 | M184: 1.001532769 | N184: 0.0553319715 | O184: 1.000351943 | P184: 0.07786534596 | Q184: 14.79218643 | R184: -92.18270249 | S184: 87.81729751 | U184: 1000000000 | V184: 107163904 | X184: 14.8479003 | Y184: -32.52254427 | AA184: 41.21401129 | AB184: -59.66015822 | AD184: 0 | AE184: 0
A185: 10411.5 | B185: 10.4115 | C185: 1.77311946 | D185: 0.9716014505 | E185: 1.000015459 | F185: 0.005560420312 | G185: 1 | H185: 0 | I185: 28471.43368 | J185: 1.570761204 | K185: 2.048862279 | L185: 1.060912616 | M185: 1.001550425 | N185: 0.05564934774 | O185: 1.000356042 | P185: 0.07831348422 | Q185: 14.74620369 | R185: -92.23775115 | S185: 87.76224885 | U185: 1000000000 | V185: 108399332.2 | X185: 14.83583661 | Y185: -32.40064509 | AA185: 41.18009222 | AB185: -59.83710606 | AD185: 0 | AE185: 0
A186: 10471 | B186: 10.471 | C186: 1.78003576 | D186: 0.9742526661 | E186: 1.000015637 | F186: 0.005592196533 | G186: 1 | H186: 0 | I186: 28634.14321 | J186: 1.570761403 | K186: 2.057787961 | L186: 1.063336539 | M186: 1.001568183 | N186: 0.05596671275 | O186: 1.000360165 | P186: 0.07876163264 | Q186: 14.70046079 | R186: -92.29282553 | S186: 87.70717447 | U186: 1000000000 | V186: 109641841 | X186: 14.82394259 | Y186: -32.27995964 | AA186: 41.14624334 | AB186: -60.01286589 | AD186: 0 | AE186: 0
A187: 10532 | B187: 10.532 | C187: 1.787139308 | D187: 0.9769493964 | E187: 1.000015819 | F187: 0.005624773824 | G187: 1 | H187: 0 | I187: 28800.95466 | J187: 1.570761606 | K187: 2.066951102 | L187: 1.065799822 | M187: 1.001586493 | N187: 0.05629206685 | O187: 1.000364417 | P187: 0.07922108953 | Q187: 14.65381086 | R187: -92.34931249 | S187: 87.65068751 | U187: 1000000000 | V187: 110923024 | X187: 14.8119216 | Y187: -32.15747693 | AA187: 41.11161441 | AB187: -60.19183556 | AD187: 0 | AE187: 0
A188: 10593 | B188: 10.593 | C188: 1.79425575 | D188: 0.9796247543 | E188: 1.000016003 | F188: 0.005657351104 | G188: 1 | H188: 0 | I188: 28967.76612 | J188: 1.570761806 | K188: 2.076126674 | L188: 1.068241346 | M188: 1.001604909 | N188: 0.05661740901 | O188: 1.000368695 | P188: 0.07968055721 | Q188: 14.60740729 | R188: -92.40582138 | S188: 87.59417862 | U188: 1000000000 | V188: 112211649 | X188: 14.80007237 | Y188: -32.03624008 | AA188: 41.07706007 | AB188: -60.36958129 | AD188: 0 | AE188: 0
A189: 10654 | B189: 10.654 | C189: 1.801384933 | D189: 0.982278955 | E189: 1.000016188 | F189: 0.005689928371 | G189: 1 | H189: 0 | I189: 29134.57757 | J189: 1.570762003 | K189: 2.085314512 | L189: 1.07066137 | M189: 1.001623431 | N189: 0.05694273918 | O189: 1.000372999 | P189: 0.08014003576 | Q189: 14.56124727 | R189: -92.46234972 | S189: 87.53765028 | U189: 1000000000 | V189: 113507716 | X189: 14.78839169 | Y189: -31.91623429 | AA189: 41.04258073 | AB189: -60.54611543 | AD189: 0 | AE189: 0
A190: 10715 | B190: 10.715 | C190: 1.808526706 | D190: 0.9849122115 | E190: 1.000016374 | F190: 0.005722505626 | G190: 1 | H190: 0 | I190: 29301.38902 | J190: 1.570762199 | K190: 2.094514456 | L190: 1.073060148 | M190: 1.001642059 | N190: 0.05726805728 | O190: 1.000377328 | P190: 0.08059952523 | Q190: 14.51532803 | R190: -92.51889514 | S190: 87.48110486 | U190: 1000000000 | V190: 114811225 | X190: 14.77687643 | Y190: -31.79744495 | AA190: 41.00817675 | AB190: -60.72145019 | AD190: 0 | AE190: 0
A191: 10777.5 | B191: 10.7775 | C191: 1.815856999 | D191: 0.9875887177 | E191: 1.000016565 | F191: 0.005755883948 | G191: 1 | H191: 0 | I191: 29472.3024 | J191: 1.570762397 | K191: 2.103953018 | L191: 1.075496141 | M191: 1.001661255 | N191: 0.05760136242 | O191: 1.000381791 | P191: 0.08107032502 | Q191: 14.46852651 | R191: -92.5768463 | S191: 87.4231537 | U191: 1000000000 | V191: 116154506.2 | X191: 14.76524636 | Y191: -31.6769812 | AA191: 40.9730053 | AB191: -60.8998651 | AD191: 0 | AE191: 0
A192: 10840 | B192: 10.84 | C192: 1.823200196 | D192: 0.9902436828 | E192: 1.000016758 | F192: 0.005789262258 | G192: 1 | H192: 0 | I192: 29643.21577 | J192: 1.570762592 | K192: 2.113403954 | L192: 1.07791036 | M192: 1.001680562 | N192: 0.05793465475 | O192: 1.00038628 | P192: 0.0815411364 | Q192: 14.42197203 | R192: -92.63481054 | S192: 87.36518946 | U192: 1000000000 | V192: 117505600 | X192: 14.75378348 | Y192: -31.55776408 | AA192: 40.9379137 | AB192: -61.07704646 | AD192: 0 | AE192: 0
A193: 10902.5 | B193: 10.9025 | C193: 1.830556141 | D193: 0.9928773288 | E193: 1.000016952 | F193: 0.005822640554 | G193: 1 | H193: 0 | I193: 29814.12915 | J193: 1.570762786 | K193: 2.122867097 | L193: 1.080303069 | M193: 1.001699981 | N193: 0.0582679342 | O193: 1.000390797 | P193: 0.08201195945 | Q193: 14.37566178 | R193: -92.69278552 | S193: 87.30721448 | U193: 1000000000 | V193: 118864506.2 | X193: 14.74248464 | Y193: -31.43977852 | AA193: 40.90290229 | AB193: -61.253007 | AD193: 0 | AE193: 0
A194: 10965 | B194: 10.965 | C194: 1.837924682 | D194: 0.9954898753 | E194: 1.000017147 | F194: 0.005856018838 | G194: 1 | H194: 0 | I194: 29985.04252 | J194: 1.570762977 | K194: 2.132342286 | L194: 1.082674528 | M194: 1.001719511 | N194: 0.05860120068 | O194: 1.000395341 | P194: 0.08248279422 | Q194: 14.32959299 | R194: -92.75076897 | S194: 87.24923103 | U194: 1000000000 | V194: 120231225 | X194: 14.73134675 | Y194: -31.32300967 | AA194: 40.86797138 | AB194: -61.4277593 | AD194: 0 | AE194: 0
A195: 11028.75 | B195: 11.02875 | C195: 1.845453412 | D195: 0.9981331615 | E195: 1.000017347 | F195: 0.005890064674 | G195: 1 | H195: 0 | I195: 30159.37417 | J195: 1.57076317 | K195: 2.142019223 | L195: 1.085071788 | M195: 1.001739546 | N195: 0.05894111907 | O195: 1.000400004 | P195: 0.08296305785 | Q195: 14.28284876 | R195: -92.80991856 | S195: 87.19008144 | U195: 1000000000 | V195: 121633326.6 | X195: 14.7201488 | Y195: -31.20514372 | AA195: 40.83242512 | AB195: -61.60477484 | AD195: 0 | AE195: 0
A196: 11092.5 | B196: 11.0925 | C196: 1.852994932 | D196: 1.00075495 | E196: 1.000017548 | F196: 0.005924110497 | G196: 1 | H196: 0 | I196: 30333.70581 | J196: 1.57076336 | K196: 2.151708358 | L196: 1.087447472 | M196: 1.001759696 | N196: 0.05928102382 | O196: 1.000404695 | P196: 0.08344333381 | Q196: 14.23635011 | R196: -92.86907244 | S196: 87.13092756 | U196: 1000000000 | V196: 123043556.2 | X196: 14.70911203 | Y196: -31.08851308 | AA196: 40.79696323 | AB196: -61.78055936 | AD196: 0 | AE196: 0
A197: 11156.25 | B197: 11.15625 | C197: 1.860549086 | D197: 1.003355466 | E197: 1.00001775 | F197: 0.005958156305 | G197: 1 | H197: 0 | I197: 30508.03745 | J197: 1.570763549 | K197: 2.161409529 | L197: 1.089801843 | M197: 1.001779963 | N197: 0.05962091486 | O197: 1.000409414 | P197: 0.08392362219 | Q197: 14.19009425 | R197: -92.92822845 | S197: 87.07177155 | U197: 1000000000 | V197: 124461914.1 | X197: 14.6982334 | Y197: -30.97310266 | AA197: 40.761586 | AB197: -61.95512579 | AD197: 0 | AE197: 0
A198: 11220 | B198: 11.22 | C198: 1.86811572 | D198: 1.005934934 | E198: 1.000017954 | F198: 0.0059922021 | G198: 1 | H198: 0 | I198: 30682.36909 | J198: 1.570763735 | K198: 2.171122573 | L198: 1.092135162 | M198: 1.001800345 | N198: 0.05996079211 | O198: 1.000414161 | P198: 0.08440392305 | Q198: 14.14407845 | R198: -92.98738449 | S198: 87.01261551 | U198: 1000000000 | V198: 125888400 | X198: 14.68750992 | Y198: -30.85889756 | AA198: 40.72629369 | AB198: -62.12848693 | AD198: 0 | AE198: 0
A199: 11285.5 | B199: 11.2855 | C199: 1.875902906 | D199: 1.008563519 | E199: 1.000018164 | F199: 0.006027182471 | G199: 1 | H199: 0 | I199: 30861.48631 | J199: 1.570763924 | K199: 2.181114451 | L199: 1.094510873 | M199: 1.001821407 | N199: 0.06030998488 | O199: 1.000419069 | P199: 0.08489742171 | Q199: 14.09704672 | R199: -93.04816231 | S199: 86.95183769 | U199: 1000000000 | V199: 127362510.2 | X199: 14.67665059 | Y199: -30.74279741 | AA199: 40.69012129 | AB199: -62.30536489 | AD199: 0 | AE199: 0
A200: 11351 | B200: 11.351 | C200: 1.883702946 | D200: 1.011170352 | E200: 1.000018375 | F200: 0.006062162827 | G200: 1 | H200: 0 | I200: 31040.60353 | J200: 1.570764111 | K200: 2.191118526 | L200: 1.096864904 | M200: 1.001842592 | N200: 0.06065916292 | O200: 1.000424006 | P200: 0.0853909337 | Q200: 14.05026275 | R200: -93.10893589 | S200: 86.89106411 | U200: 1000000000 | V200: 128845201 | X200: 14.66594886 | Y200: -30.6279385 | AA200: 40.65403904 | AB200: -62.48099738 | AD200: 0 | AE200: 0
A201: 11416.5 | B201: 11.4165 | C201: 1.891515681 | D201: 1.013755669 | E201: 1.000018588 | F201: 0.006097143168 | G201: 1 | H201: 0 | I201: 31219.72074 | J201: 1.570764296 | K201: 2.201134633 | L201: 1.099197525 | M201: 1.001863898 | N201: 0.06100832615 | O201: 1.000428973 | P201: 0.08588445909 | Q201: 14.00372374 | R201: -93.16970317 | S201: 86.83029683 | U201: 1000000000 | V201: 130336472.2 | X201: 14.65540171 | Y201: -30.51430538 | AA201: 40.61804718 | AB201: -62.6553978 | AD201: 0 | AE201: 0
A202: 11482 | B202: 11.482 | C202: 1.899340955 | D202: 1.016319699 | E202: 1.000018802 | F202: 0.006132123494 | G202: 1 | H202: 0 | I202: 31398.83796 | J202: 1.570764478 | K202: 2.211162608 | L202: 1.101509 | M202: 1.001885327 | N202: 0.06135747449 | O202: 1.00043397 | P202: 0.08637799796 | Q202: 13.95742696 | R202: -93.23046219 | S202: 86.76953781 | U202: 1000000000 | V202: 131836324 | X202: 14.64500619 | Y202: -30.4018828 | AA202: 40.58214591 | AB202: -62.82857939 | AD202: 0 | AE202: 0
... 433 more rows

Sheet Bode Plot Management (hidden)
J1: Single or dual output (MODE) | N1: 3.3V or 5V fixed (FB1/2)
A2: =CHOOSE(BODE_PLOT_TYPE, "BODE_PLOT_Ch1", "BODE_PLOT_Ch2") -> BODE_PLOT_Ch1 | J2: With/without dither (DITH) | N2: With/without VOUT connected to VCCX
J3: FPWM or DEM (DEMB)
J4: Shunt or inductor DCR current sensing
F6: =INDIRECT(A2) -> 0

Sheet Efficiency Calculations (hidden)
A1: BUCK CONTROLLER POWER DESIGN TOOL
H2: =AV19 -> 0.9497840236 | I2: 10% load
H3: =AV59 -> 0.9673482337 | I3: 50% load | AP3: =IF(MODE=1, (Qg_Q1+Qg_Q2)*Fsw*Vin, (Qg_Q1+Qg_Q2+Qg_Q3+Qg_Q4)*Fsw*Vin) -> 0.0918
H4: =AV109 -> 0.954256392 | I4: 100% load | AO4: I_VCC | AP4: =(Qg_Q1+Qg_Q2)*Fsw*1000 -> 6.8 | AQ4: mA | AR4: =AP4*5/1000 -> 0.034
A6: Enter the values of your design and MOSFET datasheet specifications below. Note that thermal resistance (θJA) will change when components are placed on the PCB
G7: Operating Point Condtions | R7: Filter Inductor | V7: Cout | Y7: Cin | AB7: High-side BUCK "Control" MOSFET Losses | AH7: Low-side BUCK "Sync" MOSFET Losses | AL7: External Diode | AM7: Diode/FET | AN7: Sense Rs | AO7: Controller IC Losses | AT7: RESULTS | AZ7: Consolidated Buck/Boost Efficiency & Losses
A8: Input Parameters | G8: Step | H8: Vin | I8: Mode | J8: Iout | K8: Iout/ phase | L8: Iin | M8: Duty Cycle BUCK Leg | N8: Ripple Current pk-pk | O8: Peak Inductor Current | P8: Valley Inductor Current | Q8: SW node voltage at Q1 turn-on | R8: Irms Lf | S8: DCR Loss | T8: Core Loss | U8: Total Inductor Loss | V8: Irms Cout | W8: Cout ESR Loss | X8: Total Cout Loss | Y8: Irms Cin | Z8: Cin ESR Loss | AA8: Total Cin Loss | AB8: Irms | AC8: RDS(on) Loss | AD8: Transition Loss (not including capacitive loss) | AE8: MOSFET Output Capacitance Loss | AF8: Dead Time Loss | AG8: Total Control MOSFET Loss | AH8: Irms | AI8: RDS(on) Loss | AJ8: Deadtime Loss | AK8: Total Sync MOSFET Loss | AL8: Deadtime Loss | AM8: Reverse Recovery Loss | AN8: Isense Shunt Loss | AO8: IQ Loss | AP8: Switching Current Loss | AQ8: Switching Current Diss | AR8: LDO Loss Saved from Gate Drive Current (ext VCC) | AS8: Total IC Loss | AT8: Total Loss | AU8: Pout | AV8: EFF, h | AW8: =IF(Vin>Vout, "Buck ''CONTROL'' MOSFET Temp Rise", "Boost ''CONTROL'' MOSFET Temp Rise") -> Buck ''CONTROL'' MOSFET Temp Rise | AX8: =IF(Vin>Vout, "Buck ''SYNC'' MOSFET Temp Rise", "Boost ''SYNC'' MOSFET Temp Rise") -> Buck ''SYNC'' MOSFET Temp Rise | AZ8: h | BA8: Inductor Cu & Core Loss | BB8: Total MOSFET Loss | BC8: Control MOSFET Loss | BD8: SYNC MOSFET Loss | BE8: Shunt Loss
A9: Design | B9: Input Value | C9: Units | D9: Description | G9: 0 | H9: =Vin -> 13.5 | I9: =MODE -> 1 | J9: 0 | K9: =Iout*G9/100/Number_of_Phases -> 0 | L9: =Vout*K9/(Vin*Efficiency) -> 0 | M9: =(Vout+(Rdson2+Rs+Rdcr)*K9)/(Vin+(Rs+Rdson2-Rdson1)*K9) -> 0.3703703704 | N9: =(Vin-(Rdson1+Rdcr)*K9-Vout)*M9/(Fsw*Lf) -> 5.24691358 | O9: =K9+N9/2 -> 2.62345679 | P9: =K9-N9/2 -> -2.62345679 | Q9: =IF(MIN(Vin, -P9/(Coss_Q1+Coss_Q2)*0.00000002)<0, 0, MIN(Vin, -P9/(Coss_Q1+Coss_Q2)*0.00000002)) -> 13.5 | R9: =SQRT(K9^2+(N9^2)/12) -> 1.514653484 | S9: =R9^2*Rdcr -> 0.009176700706 | T9: =Core_Loss_Ch1 -> 0.25 | U9: =(T9+S9*(1+Ltc*(Ta-25)))/(1-S9*Ltc*ThetaCa) -> 0.2593671115 | V9: =N9/SQRT(12) -> 1.514653484 | W9: =RCoutEsr*V9^2 -> 0.002294175177 | X9: =W9 -> 0.002294175177 | Y9: =SQRT(M9*(1-M9))*SQRT(K9^2+(N9^2)/12) -> 0.7314320471 | Z9: =RCinEsr*Y9^2 -> 0.0005349928395 | AA9: =Z9 -> 0.0005349928395 | AB9: =SQRT(M9)*SQRT(K9^2+(N9^2)/12) -> 0.9217887555 | AC9: =Rdson1*AB9^2 -> 0.003823625294 | AD9: =(Vin*K9/2)*Fsw*(Tr_buck+Tf_buck) -> 0 | AE9: =(0.5*Coss_Q1*(Vin-Q9)^2-0.5*Coss_Q2*(Vin-Q9)^2+(Qoss_Q2*(Vin-Q9)/Vin)*Vin)*Fsw -> 0 | AF9: =IF(K9>N9/2,0,ABS(K9-N9/2)*Vsd_Q1*Deadtime*Fsw) -> 0.01175308642 | AG9: =(AF9+AE9+AD9+AC9*(1+RdsonTopTc*Ta-RdsonTopTc*25))/(1-AC9*RdsonTopTc*ThetaJA_Q1) -> 0.01558863273 | AH9: =SQRT((1-M9))*SQRT(K9^2+(N9^2)/12) -> 1.201865494 | AI9: =Rdson2*AH9^2 -> 0.005272354434 | AJ9: =IF(K9<N9/2,Deadtime*Fsw*IF(VfdSky_Q2>0,0,Vsd_Q2)*(K9+N9/2),2*Deadtime*Fsw*IF(VfdSky_Q2>0,0,Vsd_Q2)*K9) -> 0.01175308642 | AK9: =(AJ9+AI9*(1+RdsonBotTc*Ta-RdsonBotTc*25))/(1-AI9*RdsonBotTc*ThetaJA_Q2) -> 0.01704341264 | AL9: =2*Deadtime*Fsw*IF(VfdSky_Q2>0,VfdSky_Q2,Vsd_Q2)*K9 -> 0 | AM9: =IF(QrrSky_Q2>0,QrrSky_Q2,Qrr_Q2*K9/(Iout/Number_of_Phases))*Fsw*Vin -> 0 | AN9: =Rs*R9^2 -> 0.00688252553 | AO9: =Iq*Vin -> 0.0004725 | AP9: =IF(Ext_VCC=1, (Qg_Q1+Qg_Q2)*Fsw*VCC, (Qg_Q1+Qg_Q2)*Fsw*Vin) -> 0.034 | AQ9: =(Vin-VCC)*Fsw*(Qg_Q1+Qg_Q2)+(RdsonDRT+RdsonDRT2)*Fsw*Qg_Q1*VCC/(RdsonDRT+2*Rgate1+RdsonDRT2)+(RdsonDRB+RdsonDRB2)*Fsw*Qg_Q2*VCC/(RdsonDRB+2*Rgate2+RdsonDRB2) -> 0.0918 | AR9: =(Qg_Q1+Qg_Q2)*Fsw*(Vin-VCC) -> 0.0578 | AS9: =SUM(AO9:AP9) -> 0.0344725 | AT9: =SUM(U9,X9,AA9,AG9,AK9,AL9,AM9,AS9,AN9) -> 0.3361833504 | AU9: =Vout*K9 -> 0 | AV9: =AU9/(AU9+AT9) -> 0 | AW9: =ThetaJA_Q1*BC9 -> 0.7794316366 | AX9: =ThetaJA_Q2*BD9 -> 0.8521706318 | AZ9: =AV9*100 -> 0 | BA9: =U9 -> 0.2593671115 | BB9: =AG9+AK9+AM9 -> 0.03263204537 | BC9: =AG9+AM9*0.66 -> 0.01558863273 | BD9: =AK9+AM9*0.33 -> 0.01704341264 | BE9: =AN9 -> 0.00688252553
G10: 1 | H10: 13.5 | I10: 1 | J10: =Iout*G10/100 -> 0.15 | K10: 0.15 | L10: 0.06172839506 | M10: 0.3704798534 | N10: 5.247677319 | O10: =K10+N10/2 -> 2.77383866 | P10: =K10-N10/2 -> -2.47383866 | Q10: 13.5 | R10: =SQRT(K10^2+(N10^2)/12) -> 1.522282203 | S10: 0.009269372416 | T10: 0.25 | U10: 0.2594617762 | V10: =N10/SQRT(12) -> 1.514873957 | W10: 0.002294843104 | X10: =W10 -> 0.002294843104 | Y10: =SQRT(M10*(1-M10))*SQRT(K10^2+(N10^2)/12) -> 0.7351607035 | Z10: 0.00054046126 | AA10: =Z10 -> 0.00054046126 | AB10: =SQRT(M10)*SQRT(K10^2+(N10^2)/12) -> 0.9265683641 | AC10: 0.0038633802 | AD10: 0.001429984511 | AE10: 0 | AF10: 0.0110827972 | AG10: 0.01638882516 | AH10: 1.207813798 | AI10: 0.005324671723 | AJ10: 0.0124267972 | AK10: 0.01777039322 | AL10: 0.001344 | AM10: 0.000702 | AN10: 0.006952029312 | AO10: 0.0004725 | AP10: 0.034 | AQ10: 0.0918 | AR10: 0.0578 | AS10: 0.0344725 | AT10: 0.3399268283 | AU10: 0.75 | AV10: =AU10/(AU10+AT10) -> 0.688119588 | AW10: 0.842607258 | AX10: 0.900102661 | AZ10: =AV10*100 -> 68.8119588 | BA10: 0.2594617762 | BB10: 0.03486121838 | BC10: 0.01685214516 | BD10: 0.01800205322 | BE10: 0.006952029312
A11: Vin | B11: =Vin -> 13.5 | C11: V | D11: Vin | G11: 2 | H11: 13.5 | I11: 1 | J11: 0.3 | K11: 0.3 | L11: 0.1234567901 | M11: 0.3705893311 | N11: 5.248440519 | O11: 2.92422026 | P11: -2.32422026 | Q11: 13.5 | R11: 1.544509844 | S11: 0.009542042628 | T11: 0.25 | U11: 0.2597403189 | V11: 1.515094273 | W11: 0.002295510657 | X11: 0.002295510657 | Y11: 0.745940499 | Z11: 0.0005564272281 | AA11: 0.0005564272281 | AB11: 0.9402365653 | AC11: 0.003978201594 | AD11: 0.002859969023 | AE11: 0 | AF11: 0.01041250676 | AG11: 0.01726441364 | AH11: 1.225343159 | AI11: 0.005480350383 | AJ11: 0.01310050676 | AK11: 0.01860124541 | AL11: 0.002688 | AM11: 0.001404 | AN11: 0.007156531971 | AO11: 0.0004725 | AP11: 0.034 | AQ11: 0.0918 | AR11: 0.0578 | AS11: 0.0344725 | AT11: 0.3441789478 | AU11: 1.5 | AV11: 0.8133700918 | AW11: 0.9095526822 | AX11: 0.9532282707 | AZ11: 81.33700918 | BA11: 0.2597403189 | BB11: 0.03726965906 | BC11: 0.01819105364 | BD11: 0.01906456541 | BE11: 0.007156531971
A12: Vout | B12: =Vout -> 5 | C12: V | D12: Vout | G12: 3 | H12: 13.5 | I12: 1 | J12: 0.45 | K12: 0.45 | L12: 0.1851851852 | M12: 0.3706988036 | N12: 5.24920318 | O12: 3.07460159 | P12: -2.17460159 | Q12: 13.5 | R12: 1.58072067 | S12: 0.009994711341 | T12: 0.25 | U12: 0.2602027635 | V12: 1.515314434 | W12: 0.002296177835 | X12: 0.002296177835 | Y12: 0.7634753207 | Z12: 0.0005828945654 | AA12: 0.0005828945654 | AB12: 0.9624224042 | AC12: 0.004168155979 | AD12: 0.004289953534 | AE12: 0 | AF12: 0.009742215123 | AG12: 0.01821550965 | AH12: 1.253962101 | AI12: 0.005739336471 | AJ12: 0.01377421512 | AK12: 0.0195359763 | AL12: 0.004032 | AM12: 0.002106 | AN12: 0.007496033506 | AO12: 0.0004725 | AP12: 0.034 | AQ12: 0.0918 | AR12: 0.0578 | AS12: 0.0344725 | AT12: 0.3489398553 | AU12: 2.25 | AV12: 0.8657376181 | AW12: 0.9802734826 | AX12: 1.011547815 | AZ12: 86.57376181 | BA12: 0.2602027635 | BB12: 0.03985748596 | BC12: 0.01960546965 | BD12: 0.0202309563 | BE12: 0.007496033506
A13: Fsw | B13: =Fsw/1000 -> 400 | C13: kHz | D13: Switching Frequency | G13: 4 | H13: 13.5 | I13: 1 | J13: 0.6 | K13: 0.6 | L13: 0.2469135802 | M13: 0.3708082709 | N13: 5.249965301 | O13: 3.22498265 | P13: -2.02498265 | Q13: 13.5 | R13: 1.629983018 | S13: 0.01062737855 | T13: 0.25 | U13: 0.26084915 | V13: 1.51553444 | W13: 0.002296844638 | X13: 0.002296844638 | Y13: 0.7873163828 | Z13: 0.0006198670866 | AA13: 0.0006198670866 | AB13: 0.9925623237 | AC13: 0.004433309849 | AD13: 0.005719938046 | AE13: 0 | AF13: 0.009071922274 | AG13: 0.01924223152 | AH13: 1.292928719 | AI13: 0.006101576053 | AJ13: 0.01444792227 | AK13: 0.02057460583 | AL13: 0.005376 | AM13: 0.002808 | AN13: 0.007970533915 | AO13: 0.0004725 | AP13: 0.034 | AQ13: 0.0918 | AR13: 0.0578 | AS13: 0.0344725 | AT13: 0.354209733 | AU13: 3 | AV13: 0.8943984541 | AW13: 1.054775576 | AX13: 1.075062292 | AZ13: 89.43984541 | BA13: 0.26084915 | BB13: 0.04262483736 | BC13: 0.02109551152 | BD13: 0.02150124583 | BE13: 0.007970533915
A14: Iout | B14: =Iout -> 15 | C14: A | D14: Max Output Current | G14: 5 | H14: 13.5 | I14: 1 | J14: 0.75 | K14: 0.75 | L14: 0.3086419753 | M14: 0.370917733 | N14: 5.250726883 | O14: 3.375363441 | P14: -1.875363441 | Q14: 13.5 | R14: 1.691156724 | S14: 0.01144004427 | T14: 0.25 | U14: 0.2616795343 | V14: 1.51575429 | W14: 0.002297511067 | X14: 0.002297511067 | Y14: 0.8169140712 | Z14: 0.0006673485997 | AA14: 0.0006673485997 | AB14: 1.029965447 | AC14: 0.004773729695 | AD14: 0.007149922557 | AE14: 0 | AF14: 0.008401628218 | AG14: 0.02034470449 | AH14: 1.341335993 | AI14: 0.006567015196 | AJ14: 0.01512162822 | AK14: 0.02171716681 | AL14: 0.00672 | AM14: 0.00351 | AN14: 0.0085800332 | AO14: 0.0004725 | AP14: 0.034 | AQ14: 0.0918 | AR14: 0.0578 | AS14: 0.0344725 | AT14: 0.3599887985 | AU14: 3.75 | AV14: 0.9124112458 | AW14: 1.133065225 | AX14: 1.14377334 | AZ14: 91.24112458 | BA14: 0.2616795343 | BB14: 0.0455718713 | BC14: 0.02266130449 | BD14: 0.02287546681 | BE14: 0.0085800332
A15: Ta | B15: =Ta -> 25 | C15: °C | D15: Ambient Temperature | G15: 6 | H15: 13.5 | I15: 1 | J15: 0.9 | K15: 0.9 | L15: 0.3703703704 | M15: 0.3710271898 | N15: 5.251487926 | O15: 3.525743963 | P15: -1.725743963 | Q15: 13.5 | R15: 1.763002303 | S15: 0.01243270848 | T15: 0.25 | U15: 0.2626939883 | V15: 1.515973984 | W15: 0.002298177119 | X15: 0.002298177119 | Y15: 0.8516706558 | Z15: 0.0007253429059 | AA15: 0.0007253429059 | AB15: 1.073879985 | AC15: 0.005189481999 | AD15: 0.008579907069 | AE15: 0 | AF15: 0.007731332953 | AG15: 0.02152306073 | AH15: 1.398198447 | AI15: 0.007135599975 | AJ15: 0.01579533295 | AK15: 0.02296370489 | AL15: 0.008064 | AM15: 0.004212 | AN15: 0.009324531358 | AO15: 0.0004725 | AP15: 0.034 | AQ15: 0.0918 | AR15: 0.0578 | AS15: 0.0344725 | AT15: 0.3662773053 | AU15: 4.5 | AV15: 0.9247315181 | AW15: 1.215149036 | AX15: 1.217683245 | AZ15: 92.47315181 | BA15: 0.2626939883 | BB15: 0.04869876562 | BC15: 0.02430298073 | BD15: 0.02435366489 | BE15: 0.009324531358
A16: Vcc | B16: =VCC -> 5 | C16: V | D16: Subregulated VCC Voltage | G16: 7 | H16: 13.5 | I16: 1 | J16: 1.05 | K16: 1.05 | L16: 0.4320987654 | M16: 0.3711366414 | N16: 5.252248429 | O16: 3.676124215 | P16: -1.576124215 | Q16: 13.5 | R16: 1.844272972 | S16: 0.01360537119 | T16: 0.25 | U16: 0.2638925997 | V16: 1.516193522 | W16: 0.002298842797 | X16: 0.002298842797 | Y16: 0.8909847358 | Z16: 0.0007938537994 | AA16: 0.0007938537994 | AB16: 1.123549261 | AC16: 0.005680633238 | AD16: 0.01000989158 | AE16: 0 | AF16: 0.007061036481 | AG16: 0.02277743936 | AH16: 1.462525164 | AI16: 0.00780727647 | AJ16: 0.01646903648 | AK16: 0.02431427861 | AL16: 0.009408 | AM16: 0.004914 | AN16: 0.01020402839 | AO16: 0.0004725 | AP16: 0.034 | AQ16: 0.0918 | AR16: 0.0578 | AS16: 0.0344725 | AT16: 0.3730755427 | AU16: 5.25 | AV16: 0.93365276 | AW16: 1.301033968 | AX16: 1.296794931 | AZ16: 93.365276 | BA16: 0.2638925997 | BB16: 0.05200571797 | BC16: 0.02602067936 | BD16: 0.02593589861 | BE16: 0.01020402839
A17: Components | B17: Input Value | C17: Units | D17: Description | G17: 8 | H17: 13.5 | I17: 1 | J17: 1.2 | K17: 1.2 | L17: 0.4938271605 | M17: 0.3712460878 | N17: 5.253008393 | O17: 3.826504197 | P17: -1.426504197 | Q17: 13.5 | R17: 1.933780778 | S17: 0.01495803239 | T17: 0.25 | U17: 0.2652754723 | V17: 1.516412905 | W17: 0.002299508098 | X17: 0.002299508098 | Y17: 0.9342831839 | Z17: 0.0008728850677 | AA17: 0.0008728850677 | AB17: 1.17825199 | AC17: 0.006247249883 | AD17: 0.01143987609 | AE17: 0 | AF17: 0.006390738801 | AG17: 0.0241079865 | AH17: 1.533372214 | AI17: 0.008581990765 | AJ17: 0.0171427388 | AK17: 0.02576895936 | AL17: 0.010752 | AM17: 0.005616 | AN17: 0.0112185243 | AO17: 0.0004725 | AP17: 0.034 | AQ17: 0.0918 | AR17: 0.0578 | AS17: 0.0344725 | AT17: 0.3803838356 | AU17: 6 | AV17: 0.9403822959 | AW17: 1.390727325 | AX17: 1.381111968 | AZ17: 94.03822959 | BA17: 0.2652754723 | BB17: 0.05549294586 | BC17: 0.0278145465 | BD17: 0.02762223936 | BE17: 0.0112185243
A18: L | B18: =Lf*1000000 -> 1.5 | C18: uH | D18: Filter Inductance | G18: 9 | H18: 13.5 | I18: 1 | J18: 1.35 | K18: 1.35 | L18: 0.5555555556 | M18: 0.3713555289 | N18: 5.253767819 | O18: 3.976883909 | P18: -1.276883909 | Q18: 13.5 | R18: 2.030436659 | S18: 0.0164906921 | T18: 0.25 | U18: 0.2668427258 | V18: 1.516632132 | W18: 0.002300173024 | X18: 0.002300173024 | Y18: 0.9810405147 | Z18: 0.0009624404914 | AA18: 0.0009624404914 | AB18: 1.237326724 | AC18: 0.006889398397 | AD18: 0.0128698606 | AE18: 0 | AF18: 0.005720439914 | AG18: 0.02551485531 | AH18: 1.609874406 | AI18: 0.00945968895 | AJ18: 0.01781643991 | AK18: 0.02732783142 | AL18: 0.012096 | AM18: 0.006318 | AN18: 0.01236801907 | AO18: 0.0004725 | AP18: 0.034 | AQ18: 0.0918 | AR18: 0.0578 | AS18: 0.0344725 | AT18: 0.3882025451 | AU18: 6.75 | AV18: 0.9456162048 | AW18: 1.484236766 | AX18: 1.470638571 | AZ18: 94.56162048 | BA18: 0.2668427258 | BB18: 0.05916068674 | BC18: 0.02968473531 | BD18: 0.02941277142 | BE18: 0.01236801907
A19: Rdcr | B19: =Rdcr*1000 -> 4 | C19: mW | D19: Inductor DCR at 25°C | G19: 10 | H19: 13.5 | I19: 1 | J19: 1.5 | K19: 1.5 | L19: 0.6172839506 | M19: 0.3714649649 | N19: 5.254526705 | O19: 4.127263352 | P19: -1.127263352 | Q19: 13.5 | R19: 2.133269222 | S19: 0.0182033503 | T19: 0.25 | U19: 0.2685944959 | V19: 1.516851204 | W19: 0.002300837574 | X19: 0.002300837574 | Y19: 1.030787973 | Z19: 0.001062523844 | AA19: 0.001062523844 | AB19: 1.300183341 | AC19: 0.007607145238 | AD19: 0.01429984511 | AE19: 0 | AF19: 0.005050139819 | AG19: 0.02699820603 | AH19: 1.691260138 | AI19: 0.01044031712 | AJ19: 0.01849013982 | AK19: 0.02899099197 | AL19: 0.01344 | AM19: 0.00702 | AN19: 0.01365251272 | AO19: 0.0004725 | AP19: 0.034 | AQ19: 0.0918 | AR19: 0.0578 | AS19: 0.0344725 | AT19: 0.396532068 | AU19: 7.5 | AV19: 0.9497840236 | AW19: 1.581570301 | AX19: 1.565379598 | AZ19: 94.97840236 | BA19: 0.2685944959 | BB19: 0.063009198 | BC19: 0.03163140603 | BD19: 0.03130759197 | BE19: 0.01365251272
A20: LTc | B20: =Ltc*1000000 -> 4000 | C20: ppm | D20: Inductor Series Resistance Temp Co | G20: 11 | H20: 13.5 | I20: 1 | J20: 1.65 | K20: 1.65 | L20: 0.6790123457 | M20: 0.3715743955 | N20: 5.255285052 | O20: 4.277642526 | P20: -0.977642526 | Q20: 13.5 | R20: 2.241428506 | S20: 0.02009600699 | T20: 0.25 | U20: 0.2705309343 | V20: 1.51707012 | W20: 0.002301501748 | X20: 0.002301501748 | Y20: 1.083115365 | Z20: 0.001173138894 | AA20: 0.001173138894 | AB20: 1.366305388 | AC20: 0.008400556858 | AD20: 0.01572982963 | AE20: 0 | AF20: 0.004379838517 | AG20: 0.02855820597 | AH20: 1.776854337 | AI20: 0.01152382137 | AJ20: 0.01916383852 | AK20: 0.0307585511 | AL20: 0.014784 | AM20: 0.007722 | AN20: 0.01507200524 | AO20: 0.0004725 | AP20: 0.034 | AQ20: 0.0918 | AR20: 0.0578 | AS20: 0.0344725 | AT20: 0.4053728373 | AU20: 8.25 | AV20: 0.953165179 | AW20: 1.682736298 | AX20: 1.665340555 | AZ20: 95.3165179 | BA20: 0.2705309343 | BB20: 0.06703875707 | BC20: 0.03365472597 | BD20: 0.0333068111 | BE20: 0.01507200524
A21: ThetaCa | B21: =ThetaCa -> 20 | C21: °C/W | D21: Core to Ambient Thermal Resistance | G21: 12 | H21: 13.5 | I21: 1 | J21: 1.8 | K21: 1.8 | L21: 0.7407407407 | M21: 0.371683821 | N21: 5.25604286 | O21: 4.42802143 | P21: -0.8280214301 | Q21: 13.5 | R21: 2.35418044 | S21: 0.02216866218 | T21: 0.25 | U21: 0.272652209 | V21: 1.51728888 | W21: 0.002302165546 | X21: 0.002302165546 | Y21: 1.137668405 | Z21: 0.001294289399 | AA21: 0.001294289399 | AB21: 1.435246762 | AC21: 0.0092696997 | AD21: 0.01715981414 | AE21: 0 | AF21: 0.003709536007 | AG21: 0.03019502962 | AH21: 1.866074028 | AI21: 0.01271014782 | AJ21: 0.01983753601 | AK21: 0.03263063186 | AL21: 0.016128 | AM21: 0.008424 | AN21: 0.01662649664 | AO21: 0.0004725 | AP21: 0.034 | AQ21: 0.0918 | AR21: 0.0578 | AS21: 0.0344725 | AT21: 0.414725322 | AU21: 9 | AV21: 0.9559492914 | AW21: 1.787743481 | AX21: 1.770527593 | AZ21: 95.59492914 | BA21: 0.272652209 | BB21: 0.07124966147 | BC21: 0.03575486962 | BD21: 0.03541055186 | BE21: 0.01662649664
A22: Cin | B22: =Cin*1000000 -> 18 | C22: μF | D22: Input Capacitance | G22: 13 | H22: 13.5 | I22: 1 | J22: 1.95 | K22: 1.95 | L22: 0.8024691358 | M22: 0.3717932412 | N22: 5.256800129 | O22: 4.578400065 | P22: -0.6784000647 | Q22: 13.5 | R22: 2.470896389 | S22: 0.02442131587 | T22: 0.25 | U22: 0.2749585037 | V22: 1.517507485 | W22: 0.002302828967 | X22: 0.002302828967 | Y22: 1.194143674 | Z22: 0.001425979114 | AA22: 0.001425979114 | AB22: 1.506625383 | AC22: 0.0102146402 | AD22: 0.01858979865 | AE22: 0 | AF22: 0.00303923229 | AG22: 0.03190885864 | AH22: 1.958420006 | AI22: 0.01399924256 | AJ22: 0.02051123229 | AK22: 0.03460737025 | AL22: 0.017472 | AM22: 0.009126 | AN22: 0.0183159869 | AO22: 0.0004725 | AP22: 0.034 | AQ22: 0.0918 | AR22: 0.0578 | AS22: 0.0344725 | AT22: 0.4245900276 | AU22: 9.75 | AV22: 0.9582695689 | AW22: 1.896600932 | AX22: 1.880947512 | AZ22: 95.82695689 | BA22: 0.2749585037 | BB22: 0.07564222889 | BC22: 0.03793201864 | BD22: 0.03761895025 | BE22: 0.0183159869
A23: RCinEsr | B23: =RCinEsr*1000 -> 1 | C23: mW | D23: Input Capacitor ESR | G23: 14 | H23: 13.5 | I23: 1 | J23: 2.1 | K23: 2.1 | L23: 0.8641975309 | M23: 0.3719026563 | N23: 5.25755686 | O23: 4.72877843 | P23: -0.5287784298 | Q23: 13.5 | R23: 2.59104072 | S23: 0.02685396804 | T23: 0.25 | U23: 0.2774500188 | V23: 1.517725934 | W23: 0.002303492011 | X23: 0.002303492011 | Y23: 1.25228263 | Z23: 0.001568211786 | AA23: 0.001568211786 | AB23: 1.580115664 | AC23: 0.0112354448 | AD23: 0.02001978316 | AE23: 0 | AF23: 0.002368927366 | AG23: 0.03369988196 | AH23: 2.053466946 | AI23: 0.01539105172 | AJ23: 0.02118492737 | AK23: 0.03668891529 | AL23: 0.018816 | AM23: 0.009828 | AN23: 0.02014047603 | AO23: 0.0004725 | AP23: 0.034 | AQ23: 0.0918 | AR23: 0.0578 | AS23: 0.0344725 | AT23: 0.4349674958 | AU23: 10.5 | AV23: 0.960222333 | AW23: 2.009318098 | AX23: 1.996607764 | AZ23: 96.0222333 | BA23: 0.2774500188 | BB23: 0.08021679725 | BC23: 0.04018636196 | BD23: 0.03993215529 | BE23: 0.02014047603
A24: Cout | B24: =Cout*1000000 -> 85 | C24: μF | D24: Output Capcitance | G24: 15 | H24: 13.5 | I24: 1 | J24: 2.25 | K24: 2.25 | L24: 0.9259259259 | M24: 0.372012066 | N24: 5.258313051 | O24: 4.879156526 | P24: -0.3791565255 | Q24: 12.87458491 | R24: 2.71415819 | S24: 0.02946661871 | T24: 0.25 | U24: 0.2801269703 | V24: 1.517944228 | W24: 0.002304154679 | X24: 0.002304154679 | Y24: 1.311865524 | Z24: 0.001720991153 | AA24: 0.001720991153 | AB24: 1.655440856 | AC24: 0.01233217992 | AD24: 0.02144976767 | AE24: 0.002996438198 | AF24: 0.001698621234 | AG24: 0.03857214275 | AH24: 2.150853378 | AI24: 0.01688552142 | AJ24: 0.02185862123 | AK24: 0.03887542903 | AL24: 0.02016 | AM24: 0.01053 | AN24: 0.02209996404 | AO24: 0.0004725 | AP24: 0.034 | AQ24: 0.0918 | AR24: 0.0578 | AS24: 0.0344725 | AT24: 0.4488621519 | AU24: 11.25 | AV24: 0.9616319821 | AW24: 2.276097137 | AX24: 2.117516452 | AZ24: 96.16319821 | BA24: 0.2801269703 | BB24: 0.08797757178 | BC24: 0.04552194275 | BD24: 0.04235032903 | BE24: 0.02209996404
A25: RCoutEsr | B25: =Cout_ESR*1000 -> 1 | C25: mW | D25: Output Capacitor ESR | G25: 16 | H25: 13.5 | I25: 1 | J25: 2.4 | K25: 2.4 | L25: 0.987654321 | M25: 0.3721214706 | N25: 5.259068704 | O25: 5.029534352 | P25: -0.2295343518 | Q25: 7.794035715 | R25: 2.839862139 | S25: 0.03225926788 | T25: 0.25 | U25: 0.2829895908 | V25: 1.518162366 | W25: 0.002304816969 | X25: 0.002304816969 | Y25: 1.372705704 | Z25: 0.001884320949 | AA25: 0.001884320949 | AB25: 1.732365882 | AC25: 0.01350491198 | AD25: 0.02287975218 | AE25: 0.02692630456 | AF25: 0.001028313896 | AG25: 0.06451353254 | AH25: 2.250272299 | AI25: 0.01848259778 | AJ25: 0.0225323139 | AK25: 0.04116708661 | AL25: 0.021504 | AM25: 0.011232 | AN25: 0.02419445091 | AO25: 0.0004725 | AP25: 0.034 | AQ25: 0.0918 | AR25: 0.0578 | AS25: 0.0344725 | AT25: 0.4842622988 | AU25: 12 | AV25: 0.9612101791 | AW25: 3.596332627 | AX25: 2.243682331 | AZ25: 96.12101791 | BA25: 0.2829895908 | BB25: 0.1169126192 | BC25: 0.07192665254 | BD25: 0.04487364661 | BE25: 0.02419445091
A26: Top Driver | B26: Input Value | C26: Units | D26: Description | G26: 17 | H26: 13.5 | I26: 1 | J26: 2.55 | K26: 2.55 | L26: 1.049382716 | M26: 0.3722308699 | N26: 5.259823817 | O26: 5.179911909 | P26: -0.07991190869 | Q26: 2.713477375 | R26: 2.967823931 | S26: 0.03523191553 | T26: 0.25 | U26: 0.2860381292 | V26: 1.518380348 | W26: 0.002305478882 | X26: 0.002305478882 | Y26: 1.434644521 | Z26: 0.002058204901 | AA26: 0.002058204901 | AB26: 1.810690929 | AC26: 0.01475370739 | AD26: 0.02430973669 | AE26: 0.0501231518 | AF26: 0.0003580053509 | AG26: 0.08980960617 | AH26: 2.351462787 | AI26: 0.02018222693 | AJ26: 0.02320600535 | AK26: 0.04356407629 | AL26: 0.022848 | AM26: 0.011934 | AN26: 0.02642393665 | AO26: 0.0004725 | AP26: 0.034 | AQ26: 0.0918 | AR26: 0.0578 | AS26: 0.0344725 | AT26: 0.5194539321 | AU26: 12.75 | AV26: 0.9608534055 | AW26: 4.884302308 | AX26: 2.375114815 | AZ26: 96.08534055 | BA26: 0.2860381292 | BB26: 0.1453076825 | BC26: 0.09768604617 | BD26: 0.04750229629 | BE26: 0.02642393665
A27: RdsonDRT | B27: 0.7 | C27: W | D27: Drain to Source Resistance of pullup Top FET Driver | G27: 18 | H27: 13.5 | I27: 1 | J27: 2.7 | K27: 2.7 | L27: 1.111111111 | M27: 0.3723402641 | N27: 5.260578392 | O27: 5.330289196 | P27: 0.06971080381 | Q27: 0 | R27: 3.097763777 | S27: 0.03838456167 | T27: 0.25 | U27: 0.2892728506 | V27: 1.518598175 | W27: 0.002306140419 | X27: 0.002306140419 | Y27: 1.497546903 | Z27: 0.002242646726 | AA27: 0.002242646726 | AB27: 1.890245872 | AC27: 0.01607863256 | AD27: 0.02573972121 | AE27: 0.06221205 | AF27: 0 | AG27: 0.1043660163 | AH27: 2.454202714 | AI27: 0.02198435501 | AJ27: 0.024192 | AK27: 0.04638028313 | AL27: 0.024192 | AM27: 0.012636 | AN27: 0.02878842126 | AO27: 0.0004725 | AP27: 0.034 | AQ27: 0.0918 | AR27: 0.0578 | AS27: 0.0344725 | AT27: 0.5446568585 | AU27: 13.5 | AV27: 0.9612196393 | AW27: 5.635288816 | AX27: 2.527508157 | AZ27: 96.12196393 | BA27: 0.2892728506 | BB27: 0.1633822995 | BC27: 0.1127057763 | BD27: 0.05055016313 | BE27: 0.02878842126
A28: RdsonDRT2 | B28: =RdsonDRT2 -> 0.5 | C28: W | D28: Drain to Source Resistance of pulldown Top FET Driver | G28: 19 | H28: 13.5 | I28: 1 | J28: 2.85 | K28: 2.85 | L28: 1.172839506 | M28: 0.3724496529 | N28: 5.261332429 | O28: 5.480666214 | P28: 0.2193337857 | Q28: 0 | R28: 3.229442921 | S28: 0.04171720631 | T28: 0.25 | U28: 0.2926940365 | V28: 1.518815847 | W28: 0.002306801577 | X28: 0.002306801577 | Y28: 1.561297581 | Z28: 0.002437650137 | AA28: 0.002437650137 | AB28: 1.970885525 | AC28: 0.01747975389 | AD28: 0.02716970572 | AE28: 0.06221205 | AF28: 0 | AG28: 0.1072364028 | AH28: 2.558302528 | AI28: 0.02388892816 | AJ28: 0.025536 | AK28: 0.04966220352 | AL28: 0.025536 | AM28: 0.013338 | AN28: 0.03128790473 | AO28: 0.0004725 | AP28: 0.034 | AQ28: 0.0918 | AR28: 0.0578 | AS28: 0.0344725 | AT28: 0.5589714993 | AU28: 14.25 | AV28: 0.9622545361 | AW28: 5.80197414 | AX28: 2.703187176 | AZ28: 96.22545361 | BA28: 0.2926940365 | BB28: 0.1702366063 | BC28: 0.1160394828 | BD28: 0.05406374352 | BE28: 0.03128790473
A29: Bottom Driver | B29: Input Value | C29: Units | D29: Description | G29: 20 | H29: 13.5 | I29: 1 | J29: 3 | K29: 3 | L29: 1.234567901 | M29: 0.3725590366 | N29: 5.262085926 | O29: 5.631042963 | P29: 0.3689570369 | Q29: 0 | R29: 3.362657038 | S29: 0.04522984943 | T29: 0.25 | U29: 0.296301985 | V29: 1.519033363 | W29: 0.002307462358 | X29: 0.002307462358 | Y29: 1.625797909 | Z29: 0.002643218841 | AA29: 0.002643218841 | AB29: 2.052485635 | AC29: 0.01895713777 | AD29: 0.02859969023 | AE29: 0.06221205 | AF29: 0 | AG29: 0.1101866427 | AH29: 2.663600022 | AI29: 0.02589589253 | AJ29: 0.02688 | AK29: 0.05305065132 | AL29: 0.02688 | AM29: 0.01404 | AN29: 0.03392238707 | AO29: 0.0004725 | AP29: 0.034 | AQ29: 0.0918 | AR29: 0.0578 | AS29: 0.0344725 | AT29: 0.5738048472 | AU29: 15 | AV29: 0.96315577 | AW29: 5.972652134 | AX29: 2.884192566 | AZ29: 96.315577 | BA29: 0.296301985 | BB29: 0.177277294 | BC29: 0.1194530427 | BD29: 0.05768385132 | BE29: 0.03392238707
A30: RdsonDRB | B30: 0.7 | C30: W | D30: Drain to Source Resistance of pullup Bottom FET Driver | G30: 21 | H30: 13.5 | I30: 1 | J30: 3.15 | K30: 3.15 | L30: 1.296296296 | M30: 0.372668415 | N30: 5.262838885 | O30: 5.781419443 | P30: 0.5185805574 | Q30: 0 | R30: 3.497230727 | S30: 0.04892249104 | T30: 0.25 | U30: 0.3000970105 | V30: 1.519250724 | W30: 0.002308122761 | X30: 0.002308122761 | Y30: 1.690963198 | Z30: 0.002859356536 | AA30: 0.002859356536 | AB30: 2.134939531 | AC30: 0.0205108506 | AD30: 0.03002967474 | AE30: 0.06221205 | AF30: 0 | AG30: 0.1132170108 | AH30: 2.769955949 | AI30: 0.02800519426 | AJ30: 0.028224 | AK30: 0.0565459101 | AL30: 0.028224 | AM30: 0.014742 | AN30: 0.03669186828 | AO30: 0.0004725 | AP30: 0.034 | AQ30: 0.0918 | AR30: 0.0578 | AS30: 0.0344725 | AT30: 0.589157779 | AU30: 15.75 | AV30: 0.9639419738 | AW30: 6.147336539 | AX30: 3.070538505 | AZ30: 96.39419738 | BA30: 0.3000970105 | BB30: 0.1845049209 | BC30: 0.1229467308 | BD30: 0.0614107701 | BE30: 0.03669186828
A31: RdsonDRB2 | B31: 0.5 | C31: W | D31: Drain to Source Resistance of pulldown Bottom FET Driver | G31: 22 | H31: 13.5 | I31: 1 | J31: 3.3 | K31: 3.3 | L31: 1.358024691 | M31: 0.3727777883 | N31: 5.263591306 | O31: 5.931795653 | P31: 0.6682043472 | Q31: 0 | R31: 3.633012907 | S31: 0.05279513114 | T31: 0.25 | U31: 0.3040794443 | V31: 1.519467929 | W31: 0.002308782786 | X31: 0.002308782786 | Y31: 1.7567205 | Z31: 0.003086066914 | AA31: 0.003086066914 | AB31: 2.218155327 | AC31: 0.02214095875 | AD31: 0.03145965925 | AE31: 0.06221205 | AF31: 0 | AG31: 0.1163277898 | AH31: 2.877250377 | AI31: 0.03021677952 | AJ31: 0.029568 | AK31: 0.06014827696 | AL31: 0.029568 | AM31: 0.015444 | AN31: 0.03959634836 | AO31: 0.0004725 | AP31: 0.034 | AQ31: 0.0918 | AR31: 0.0578 | AS31: 0.0344725 | AT31: 0.6050312091 | AU31: 16.5 | AV31: 0.9646284651 | AW31: 6.326041488 | AX31: 3.262239848 | AZ31: 96.46284651 | BA31: 0.3040794443 | BB31: 0.1919200667 | BC31: 0.1265208298 | BD31: 0.06524479696 | BE31: 0.03959634836
A32: Deadtime | B32: 0.5 | C32: Units | D32: Description | G32: 23 | H32: 13.5 | I32: 1 | J32: 3.45 | K32: 3.45 | L32: 1.419753086 | M32: 0.3728871563 | N32: 5.264343187 | O32: 6.082171594 | P32: 0.8178284064 | Q32: 0 | R32: 3.769873 | S32: 0.05684776973 | T32: 0.25 | U32: 0.3082496341 | V32: 1.519684978 | W32: 0.002309442433 | X32: 0.002309442433 | Y32: 1.823006764 | Z32: 0.003323353661 | AA32: 0.003323353661 | AB32: 2.302053605 | AC32: 0.02384752859 | AD32: 0.03288964376 | AE32: 0.06221205 | AF32: 0 | AG32: 0.1195192702 | AH32: 2.985379647 | AI32: 0.03253059446 | AJ32: 0.030912 | AK32: 0.06385806261 | AL32: 0.030912 | AM32: 0.016146 | AN32: 0.0426358273 | AO32: 0.0004725 | AP32: 0.034 | AQ32: 0.0918 | AR32: 0.0578 | AS32: 0.0344725 | AT32: 0.6214260903 | AU32: 17.25 | AV32: 0.9652279518 | AW32: 6.50878151 | AX32: 3.459312131 | AZ32: 96.52279518 | BA32: 0.3082496341 | BB32: 0.1995233328 | BC32: 0.1301756302 | BD32: 0.06918624261 | BE32: 0.0426358273
A33: Deadtime | B33: =Deadtime*1000000000 -> 14 | C33: ns | D33: Total Deadtime | G33: 24 | H33: 13.5 | I33: 1 | J33: 3.6 | K33: 3.6 | L33: 1.481481481 | M33: 0.372996519 | N33: 5.26509453 | O33: 6.232547265 | P33: 0.9674527348 | Q33: 0 | R33: 3.907697749 | S33: 0.06108040681 | T33: 0.25 | U33: 0.3126079444 | V33: 1.519901872 | W33: 0.002310101701 | X33: 0.002310101701 | Y33: 1.889767301 | Z33: 0.003571220453 | AA33: 0.003571220453 | AB33: 2.386565478 | AC33: 0.02563062651 | AD33: 0.03431962827 | AE33: 0.06221205 | AF33: 0 | AG33: 0.1227917507 | AH33: 3.094253855 | AI33: 0.03494658526 | AJ33: 0.032256 | AK33: 0.06767559143 | AL33: 0.032256 | AM33: 0.016848 | AN33: 0.0458103051 | AO33: 0.0004725 | AP33: 0.034 | AQ33: 0.0918 | AR33: 0.0578 | AS33: 0.0344725 | AT33: 0.6383434138 | AU33: 18 | AV33: 0.9657510649 | AW33: 6.695571534 | AX33: 3.661771571 | AZ33: 96.57510649 | BA33: 0.3126079444 | BB33: 0.2073153421 | BC33: 0.1339114307 | BD33: 0.07323543143 | BE33: 0.0458103051
A34: IQ | B34: Input Value | C34: Units | D34: Description | G34: 25 | H34: 13.5 | I34: 1 | J34: 3.75 | K34: 3.75 | L34: 1.543209877 | M34: 0.3731058766 | N34: 5.265845335 | O34: 6.382922668 | P34: 1.117077332 | Q34: 0 | R34: 4.046388586 | S34: 0.06549304236 | T34: 0.25 | U34: 0.3171547568 | V34: 1.520118611 | W34: 0.002310760591 | X34: 0.002310760591 | Y34: 1.956954513 | Z34: 0.003829670965 | AA34: 0.003829670965 | AB34: 2.471630989 | AC34: 0.02749031885 | AD34: 0.03574961279 | AE34: 0.06221205 | AF34: 0 | AG34: 0.1261455379 | AH34: 3.203794757 | AI34: 0.03746469809 | AJ34: 0.0336 | AK34: 0.07160120157 | AL34: 0.0336 | AM34: 0.01755 | AN34: 0.04911978177 | AO34: 0.0004725 | AP34: 0.034 | AQ34: 0.0918 | AR34: 0.0578 | AS34: 0.0344725 | AT34: 0.6557842095 | AU34: 18.75 | AV34: 0.9662067659 | AW34: 6.886426893 | AX34: 3.869635078 | AZ34: 96.62067659 | BA34: 0.3171547568 | BB34: 0.2152967394 | BC34: 0.1377285379 | BD34: 0.07739270157 | BE34: 0.04911978177
A35: IQ | B35: =Iq*1000 -> 0.035 | C35: mA | D35: Quiescent Current Of Controller (Not Switching!) | G35: 26 | H35: 13.5 | I35: 1 | J35: 3.9 | K35: 3.9 | L35: 1.604938272 | M35: 0.3732152289 | N35: 5.266595602 | O35: 6.533297801 | P35: 1.266702199 | Q35: 0 | R35: 4.185859422 | S35: 0.07008567641 | T35: 0.25 | U35: 0.3218904693 | V35: 1.520335194 | W35: 0.002311419102 | X35: 0.002311419102 | Y35: 2.024526823 | Z35: 0.004098708859 | AA35: 0.004098708859 | AB35: 2.557197771 | AC35: 0.02942667199 | AD35: 0.0371795973 | AE35: 0.06221205 | AF35: 0 | AG35: 0.1295809465 | AH35: 3.313934016 | AI35: 0.04008487911 | AJ35: 0.034944 | AK35: 0.07563524504 | AL35: 0.034944 | AM35: 0.018252 | AN35: 0.05256425731 | AO35: 0.0004725 | AP35: 0.034 | AQ35: 0.0918 | AR35: 0.0578 | AS35: 0.0344725 | AT35: 0.6737495461 | AU35: 19.5 | AV35: 0.9666026613 | AW35: 7.081363324 | AX35: 4.082920252 | AZ35: 96.66026613 | BA35: 0.3218904693 | BB35: 0.2234681915 | BC35: 0.1416272665 | BD35: 0.08165840504 | BE35: 0.05256425731
A36: High-side FET | B36: Input Value | C36: Units | D36: Description | G36: 27 | H36: 13.5 | I36: 1 | J36: 4.05 | K36: 4.05 | L36: 1.666666667 | M36: 0.373324576 | N36: 5.267345329 | O36: 6.683672665 | P36: 1.416327335 | Q36: 0 | R36: 4.326034817 | S36: 0.07485830894 | T36: 0.25 | U36: 0.3268154974 | V36: 1.520551622 | W36: 0.002312077235 | X36: 0.002312077235 | Y36: 2.0924478 | Z36: 0.004378337794 | AA36: 0.004378337794 | AB36: 2.643219933 | AC36: 0.03143975225 | AD36: 0.03860958181 | AE36: 0.06221205 | AF36: 0 | AG36: 0.1330982996 | AH36: 3.424611748 | AI36: 0.04280707453 | AJ36: 0.036288 | AK36: 0.07977808784 | AL36: 0.036288 | AM36: 0.018954 | AN36: 0.0561437317 | AO36: 0.0004725 | AP36: 0.034 | AQ36: 0.0918 | AR36: 0.0578 | AS36: 0.0344725 | AT36: 0.6922405315 | AU36: 20.25 | AV36: 0.9669452497 | AW36: 7.280396979 | AX36: 4.301645392 | AZ36: 96.69452497 | BA36: 0.3268154974 | BB36: 0.2318303874 | BC36: 0.1456079396 | BD36: 0.08603290784 | BE36: 0.0561437317
A37: RdsonTop | B37: =Rdson1*1000 -> 4.5 | C37: mW | D37: Drain-Source Resistance of Top FET | G37: 28 | H37: 13.5 | I37: 1 | J37: 4.2 | K37: 4.2 | L37: 1.728395062 | M37: 0.3734339179 | N37: 5.268094519 | O37: 6.834047259 | P37: 1.565952741 | Q37: 0 | R37: 4.46684844 | S37: 0.07981093995 | T37: 0.25 | U37: 0.3319302733 | V37: 1.520767894 | W37: 0.002312734988 | X37: 0.002312734988 | Y37: 2.160685405 | Z37: 0.004668561421 | AA37: 0.004668561421 | AB37: 2.729657121 | AC37: 0.033529626 | AD37: 0.04003956632 | AE37: 0.06221205 | AF37: 0 | AG37: 0.1366979284 | AH37: 3.535775302 | AI37: 0.04563123051 | AJ37: 0.037632 | AK37: 0.08403010997 | AL37: 0.037632 | AM37: 0.019656 | AN37: 0.05985820496 | AO37: 0.0004725 | AP37: 0.034 | AQ37: 0.0918 | AR37: 0.0578 | AS37: 0.0344725 | AT37: 0.7112583131 | AU37: 21 | AV37: 0.9672401156 | AW37: 7.48354442 | AX37: 4.525829499 | AZ37: 96.72401156 | BA37: 0.3319302733 | BB37: 0.2403840384 | BC37: 0.1496708884 | BD37: 0.09051658997 | BE37: 0.05985820496
A38: RdsonTopTc | B38: =RdsonTopTc*1000000 -> 4000 | C38: ppm | D38: Drain to Source Resistance Temp Co | G38: 29 | H38: 13.5 | I38: 1 | J38: 4.35 | K38: 4.35 | L38: 1.790123457 | M38: 0.3735432546 | N38: 5.26884317 | O38: 6.984421585 | P38: 1.715578415 | Q38: 0 | R38: 4.608241786 | S38: 0.08494356945 | T38: 0.25 | U38: 0.3372352467 | V38: 1.520984011 | W38: 0.002313392363 | X38: 0.002313392363 | Y38: 2.229211382 | Z38: 0.004969383385 | AA38: 0.004969383385 | AB38: 2.816473743 | AC38: 0.03569635956 | AD38: 0.04146955083 | AE38: 0.06221205 | AF38: 0 | AG38: 0.1403801726 | AH38: 3.647378239 | AI38: 0.04855729326 | AJ38: 0.038976 | AK38: 0.08839170565 | AL38: 0.038976 | AM38: 0.020358 | AN38: 0.06370767709 | AO38: 0.0004725 | AP38: 0.034 | AQ38: 0.0918 | AR38: 0.0578 | AS38: 0.0344725 | AT38: 0.7308040778 | AU38: 21.75 | AV38: 0.9674920846 | AW38: 7.690822631 | AX38: 4.755492283 | AZ38: 96.74920846 | BA38: 0.3372352467 | BB38: 0.2491298783 | BC38: 0.1538164526 | BD38: 0.09510984565 | BE38: 0.06370767709
A39: QgTop | B39: =Qg_Q1*1000000000 -> 8 | C39: nC | D39: Gate Charge Of Top FET | G39: 30 | H39: 13.5 | I39: 1 | J39: 4.5 | K39: 4.5 | L39: 1.851851852 | M39: 0.373652586 | N39: 5.269591283 | O39: 7.134795641 | P39: 1.865204359 | Q39: 0 | R39: 4.750163087 | S39: 0.09025619743 | T39: 0.25 | U39: 0.3427308843 | V39: 1.521199973 | W39: 0.002314049357 | X39: 0.002314049357 | Y39: 2.298000723 | Z39: 0.005280807324 | AA39: 0.005280807324 | AB39: 2.903638303 | AC39: 0.03794001927 | AD39: 0.04289953534 | AE39: 0.06221205 | AF39: 0 | AG39: 0.1441453803 | AH39: 3.759379465 | AI39: 0.05158520897 | AJ39: 0.04032 | AK39: 0.09286328334 | AL39: 0.04032 | AM39: 0.02106 | AN39: 0.06769214807 | AO39: 0.0004725 | AP39: 0.034 | AQ39: 0.0918 | AR39: 0.0578 | AS39: 0.0344725 | AT39: 0.7508790528 | AU39: 22.5 | AV39: 0.9677053478 | AW39: 7.902249016 | AX39: 4.990654167 | AZ39: 96.77053478 | BA39: 0.3427308843 | BB39: 0.2580686637 | BC39: 0.1580449803 | BD39: 0.09981308334 | BE39: 0.06769214807
A40: QgdTop | B40: =Qgd_Q1*1000000000 -> 3.1 | C40: nC | D40: Gate to Drain Charge | G40: 31 | H40: 13.5 | I40: 1 | J40: 4.65 | K40: 4.65 | L40: 1.913580247 | M40: 0.3737619122 | N40: 5.270338857 | O40: 7.285169429 | P40: 2.014830571 | Q40: 0 | R40: 4.892566399 | S40: 0.09574882389 | T40: 0.25 | U40: 0.3484176705 | V40: 1.521415779 | W40: 0.002314705973 | X40: 0.002314705973 | Y40: 2.367031235 | Z40: 0.005602836867 | AA40: 0.005602836867 | AB40: 2.991122846 | AC40: 0.04026067145 | AD40: 0.04432951985 | AE40: 0.06221205 | AF40: 0 | AG40: 0.1479939081 | AH40: 3.871742514 | AI40: 0.05471492385 | AJ40: 0.041664 | AK40: 0.09744526591 | AL40: 0.041664 | AM40: 0.021762 | AN40: 0.07181161792 | AO40: 0.0004725 | AP40: 0.034 | AQ40: 0.0918 | AR40: 0.0578 | AS40: 0.0344725 | AT40: 0.7714845053 | AU40: 23.25 | AV40: 0.9678835625 | AW40: 8.117841406 | AX40: 5.231336295 | AZ40: 96.78835625 | BA40: 0.3484176705 | BB40: 0.267201174 | BC40: 0.1623568281 | BD40: 0.1046267259 | BE40: 0.07181161792
A41: QgsTop | B41: =Qgs_Q1*1000000000 -> 2.9 | C41: nC | G41: 32 | H41: =Vin -> 13.5 | I41: =MODE -> 1 | J41: 4.8 | K41: =Iout*G41/100/Number_of_Phases -> 4.8 | L41: =Vout*K41/(Vin*Efficiency) -> 1.975308642 | M41: =(Vout+(Rdson2+Rs+Rdcr)*K41)/(Vin+(Rs+Rdson2-Rdson1)*K41) -> 0.3738712332 | N41: =(Vin-(Rdson1+Rdcr)*K41-Vout)*M41/(Fsw*Lf) -> 5.271085894 | O41: 7.435542947 | P41: 2.164457053 | Q41: =IF(MIN(Vin, -P41/(Coss_Q1+Coss_Q2)*0.00000002)<0, 0, MIN(Vin, -P41/(Coss_Q1+Coss_Q2)*0.00000002)) -> 0 | R41: 5.035410828 | S41: =R41^2*Rdcr -> 0.1014214488 | T41: =Core_Loss_Ch1 -> 0.25 | U41: =(T41+S41*(1+Ltc*(Ta-25)))/(1-S41*Ltc*ThetaCa) -> 0.3542961068 | V41: 1.52163143 | W41: 0.002315362208 | X41: 0.002315362208 | Y41: 2.436283161 | Z41: 0.00593547564 | AA41: 0.00593547564 | AB41: 3.078902489 | AC41: =Rdson1*AB41^2 -> 0.04265838242 | AD41: =(Vin*K41/2)*Fsw*(Tr_buck+Tf_buck) -> 0.04575950437 | AE41: =(0.5*Coss_Q1*(Vin-Q41)^2-0.5*Coss_Q2*(Vin-Q41)^2+(Qoss_Q2*(Vin-Q41)/Vin)*Vin)*Fsw -> 0.06221205 | AF41: =IF(K41>N41/2,0,ABS(K41-N41/2)*Vsd_Q1*Deadtime*Fsw) -> 0 | AG41: =(AF41+AE41+AD41+AC41*(1+RdsonTopTc*Ta-RdsonTopTc*25))/(1-AC41*RdsonTopTc*ThetaJA_Q1) -> 0.1519261213 | AH41: =SQRT((1-M41))*SQRT(K41^2+(N41^2)/12) -> 3.984434925 | AI41: =Rdson2*AH41^2 -> 0.0579463841 | AJ41: =IF(K41<N41/2,Deadtime*Fsw*IF(VfdSky_Q2>0,0,Vsd_Q2)*(K41+N41/2),2*Deadtime*Fsw*IF(VfdSky_Q2>0,0,Vsd_Q2)*K41) -> 0.043008 | AK41: =(AJ41+AI41*(1+RdsonBotTc*Ta-RdsonBotTc*25))/(1-AI41*RdsonBotTc*ThetaJA_Q2) -> 0.1021380907 | AL41: =2*Deadtime*Fsw*IF(VfdSky_Q2>0,VfdSky_Q2,Vsd_Q2)*K41 -> 0.043008 | AM41: =IF(QrrSky_Q2>0,QrrSky_Q2,Qrr_Q2*K41/(Iout/Number_of_Phases))*Fsw*Vin -> 0.022464 | AN41: =Rs*R41^2 -> 0.07606608663 | AO41: =Iq*Vin -> 0.0004725 | AP41: =IF(Ext_VCC=1, (Qg_Q1+Qg_Q2)*Fsw*VCC, (Qg_Q1+Qg_Q2)*Fsw*Vin) -> 0.034 | AQ41: 0.0918 | AR41: =(Qg_Q1+Qg_Q2)*Fsw*(Vin-VCC) -> 0.0578 | AS41: =SUM(AO41:AP41) -> 0.0344725 | AT41: =SUM(U41,X41,AA41,AG41,AK41,AL41,AM41,AS41,AN41) -> 0.7926217433 | AU41: =Vout*K41 -> 24 | AV41: 0.9680299344 | AW41: =ThetaJA_Q1*BC41 -> 8.337618065 | AX41: =ThetaJA_Q2*BD41 -> 5.477560535 | AZ41: 96.80299344 | BA41: =U41 -> 0.3542961068 | BB41: =AG41+AK41+AM41 -> 0.276528212 | BC41: =AG41+AM41*0.66 -> 0.1667523613 | BD41: =AK41+AM41*0.33 -> 0.1095512107 | BE41: =AN41 -> 0.07606608663
A42: RGateTop | B42: =Rgate1 -> 0 | C42: W | D42: Gate Resistance | G42: 33 | H42: 13.5 | I42: 1 | J42: =Iout*G42/100 -> 4.95 | K42: 4.95 | L42: 2.037037037 | M42: 0.373980549 | N42: 5.271832392 | O42: 7.585916196 | P42: 2.314083804 | Q42: 0 | R42: 5.178659871 | S42: 0.1072740723 | T42: 0.25 | U42: 0.3603667126 | V42: 1.521846925 | W42: 0.002316018064 | X42: 0.002316018064 | Y42: 2.505738865 | Z42: 0.006278727258 | AA42: 0.006278727258 | AB42: 3.166955022 | AC42: 0.04513321849 | AD42: 0.04718948888 | AE42: 0.06221205 | AF42: 0 | AG42: 0.1559423938 | AH42: 4.097427724 | AI42: 0.06127953593 | AJ42: 0.044352 | AK42: 0.1069422097 | AL42: 0.044352 | AM42: 0.023166 | AN42: 0.08045555419 | AO42: 0.0004725 | AP42: 0.034 | AQ42: 0.0918 | AR42: 0.0578 | AS42: 0.0344725 | AT42: 0.8142921157 | AU42: 24.75 | AV42: 0.9681472848 | AW42: 8.56159769 | AX42: 5.729349486 | AZ42: 96.81472848 | BA42: 0.3603667126 | BB42: 0.2860506035 | BC42: 0.1712319538 | BD42: 0.1145869897 | BE42: 0.08045555419
A43: GfsTop | B43: =Gfs_Q1 -> 71 | C43: S | D43: Transconductance of Top FET | G43: 34 | H43: 13.5 | I43: 1 | J43: 5.1 | K43: 5.1 | L43: 2.098765432 | M43: 0.3740898596 | N43: 5.272578352 | O43: 7.736289176 | P43: 2.463710824 | Q43: 0 | R43: 5.322280859 | S43: 0.1133066942 | T43: 0.25 | U43: 0.366630025 | V43: 1.522062265 | W43: 0.00231667354 | X43: 0.00231667354 | Y43: 2.575382561 | Z43: 0.006632595334 | AA43: 0.006632595334 | AB43: 3.255260562 | AC43: 0.04768524597 | AD43: 0.04861947339 | AE43: 0.06221205 | AF43: 0 | AG43: 0.1600431084 | AH43: 4.21069498 | AI43: 0.06471432557 | AJ43: 0.045696 | AK43: 0.1118580897 | AL43: 0.045696 | AM43: 0.023868 | AN43: 0.08498002062 | AO43: 0.0004725 | AP43: 0.034 | AQ43: 0.0918 | AR43: 0.0578 | AS43: 0.0344725 | AT43: 0.8364970126 | AU43: 25.5 | AV43: 0.9682381065 | AW43: 8.789799418 | AX43: 5.986726487 | AZ43: 96.82381065 | BA43: 0.366630025 | BB43: 0.2957691981 | BC43: 0.1757959884 | BD43: 0.1197345297 | BE43: 0.08498002062
A44: VthTop | B44: =Vth_Q1 -> 3.2 | C44: V | D44: Threshold Voltage of Top FET | G44: 35 | H44: 13.5 | I44: 1 | J44: 5.25 | K44: 5.25 | L44: 2.160493827 | M44: 0.374199165 | N44: 5.273323774 | O44: 7.886661887 | P44: 2.613338113 | Q44: 0 | R44: 5.466244473 | S44: 0.1195193145 | T44: 0.25 | U44: 0.3730865989 | V44: 1.52227745 | W44: 0.002317328635 | X44: 0.002317328635 | Y44: 2.645200081 | Z44: 0.00699708347 | AA44: 0.00699708347 | AB44: 3.343801269 | AC44: 0.05031453116 | AD44: 0.0500494579 | AE44: 0.06221205 | AF44: 0 | AG44: 0.1642286566 | AH44: 4.324213421 | AI44: 0.06825069925 | AJ44: 0.04704 | AK44: 0.1168862124 | AL44: 0.04704 | AM44: 0.02457 | AN44: 0.08963948591 | AO44: 0.0004725 | AP44: 0.034 | AQ44: 0.0918 | AR44: 0.0578 | AS44: 0.0344725 | AT44: 0.8592378659 | AU44: 26.25 | AV44: 0.96830461 | AW44: 9.022242832 | AX44: 6.24971562 | AZ44: 96.830461 | BA44: 0.3730865989 | BB44: 0.305684869 | BC44: 0.1804448566 | BD44: 0.1249943124 | BE44: 0.08963948591
A45: VspTop | B45: =Vsp_Q1 -> 3.411267606 | C45: V | G45: 36 | H45: 13.5 | I45: 1 | J45: 5.4 | K45: 5.4 | L45: 2.222222222 | M45: 0.3743084651 | N45: 5.274068658 | O45: 8.037034329 | P45: 2.762965671 | Q45: 0 | R45: 5.610524338 | S45: 0.1259119334 | T45: 0.25 | U45: 0.3797370071 | V45: 1.52249248 | W45: 0.002317983351 | X45: 0.002317983351 | Y45: 2.71517868 | Z45: 0.007372195263 | AA45: 0.007372195263 | AB45: 3.432561089 | AC45: 0.05302114034 | AD45: 0.05147944241 | AE45: 0.06221205 | AF45: 0 | AG45: 0.1684994392 | AH45: 4.437962113 | AI45: 0.07188860317 | AJ45: 0.048384 | AK45: 0.1220270744 | AL45: 0.048384 | AM45: 0.025272 | AN45: 0.09443395005 | AO45: 0.0004725 | AP45: 0.034 | AQ45: 0.0918 | AR45: 0.0578 | AS45: 0.0344725 | AT45: 0.8825161493 | AU45: 27 | AV45: 0.9683487622 | AW45: 9.258947962 | AX45: 6.518341718 | AZ45: 96.83487622 | BA45: 0.3797370071 | BB45: 0.3157985136 | BC45: 0.1851789592 | BD45: 0.1303668344 | BE45: 0.09443395005
A46: VsdTop | B46: =Vsd_Q1 -> 0.8 | C46: V | G46: 37 | H46: 13.5 | I46: 1 | J46: 5.55 | K46: 5.55 | L46: 2.283950617 | M46: 0.37441776 | N46: 5.274813004 | O46: 8.187406502 | P46: 2.912593498 | Q46: 0 | R46: 5.75509667 | S46: 0.1324845507 | T46: 0.25 | U46: 0.3865818405 | V46: 1.522707354 | W46: 0.002318637685 | X46: 0.002318637685 | Y46: 2.78530686 | Z46: 0.007757934304 | AA46: 0.007757934304 | AB46: 3.521525547 | AC46: 0.05580513981 | AD46: 0.05290942692 | AE46: 0.06221205 | AF46: 0 | AG46: 0.1728558659 | AH46: 4.551922177 | AI46: 0.07562798359 | AJ46: 0.049728 | AK46: 0.1272811875 | AL46: 0.049728 | AM46: 0.025974 | AN46: 0.09936341306 | AO46: 0.0004725 | AP46: 0.034 | AQ46: 0.0918 | AR46: 0.0578 | AS46: 0.0344725 | AT46: 0.9063333789 | AU46: 27.75 | AV46: 0.9683723187 | AW46: 9.499935295 | AX46: 6.792630375 | AZ46: 96.83723187 | BA46: 0.3865818405 | BB46: 0.3261110534 | BC46: 0.1899987059 | BD46: 0.1358526075 | BE46: 0.09936341306
A47: θJATop | B47: =ThetaJA_Q1 -> 50 | C47: °C/W | D47: Junction to Ambient Resistance | G47: 38 | H47: 13.5 | I47: 1 | J47: 5.7 | K47: 5.7 | L47: 2.345679012 | M47: 0.3745270497 | N47: 5.275556812 | O47: 8.337778406 | P47: 3.062221594 | Q47: 0 | R47: 5.899939969 | S47: 0.1392371666 | T47: 0.25 | U47: 0.3936217083 | V47: 1.522922073 | W47: 0.002319291639 | X47: 0.002319291639 | Y47: 2.855574229 | Z47: 0.008154304176 | AA47: 0.008154304176 | AB47: 3.610681556 | AC47: 0.05866659585 | AD47: 0.05433941143 | AE47: 0.06221205 | AF47: 0 | AG47: 0.1772983555 | AH47: 4.666076547 | AI47: 0.07946878674 | AJ47: 0.051072 | AK47: 0.132649079 | AL47: 0.051072 | AM47: 0.026676 | AN47: 0.1044278749 | AO47: 0.0004725 | AP47: 0.034 | AQ47: 0.0918 | AR47: 0.0578 | AS47: 0.0344725 | AT47: 0.9306911135 | AU47: 28.5 | AV47: 0.9683768516 | AW47: 9.745225774 | AX47: 7.072607951 | AZ47: 96.83768516 | BA47: 0.3936217083 | BB47: 0.3366234345 | BC47: 0.1949045155 | BD47: 0.141452159 | BE47: 0.1044278749
A48: Low-side FET | B48: Input Value | C48: Units | D48: Description | G48: 39 | H48: 13.5 | I48: 1 | J48: 5.85 | K48: 5.85 | L48: 2.407407407 | M48: 0.3746363342 | N48: 5.276300081 | O48: 8.488150041 | P48: 3.211849959 | Q48: 0 | R48: 6.045034757 | S48: 0.1461697808 | T48: 0.25 | U48: 0.400857238 | V48: 1.523136636 | W48: 0.002319945212 | X48: 0.002319945212 | Y48: 2.925971369 | Z48: 0.008561308454 | AA48: 0.008561308454 | AB48: 3.700017259 | AC48: 0.06160557472 | AD48: 0.05576939595 | AE48: 0.06221205 | AF48: 0 | AG48: 0.1818273362 | AH48: 4.780409762 | AI48: 0.08341095886 | AJ48: 0.052416 | AK48: 0.1381312916 | AL48: 0.052416 | AM48: 0.027378 | AN48: 0.1096273356 | AO48: 0.0004725 | AP48: 0.034 | AQ48: 0.0918 | AR48: 0.0578 | AS48: 0.0344725 | AT48: 0.9555909551 | AU48: 29.25 | AV48: 0.9683637722 | AW48: 9.994840809 | AX48: 7.358301578 | AZ48: 96.83637722 | BA48: 0.400857238 | BB48: 0.3473366277 | BC48: 0.1998968162 | BD48: 0.1471660316 | BE48: 0.1096273356
A49: RdsonBot | B49: =Rdson2*1000 -> 3.65 | C49: mW | D49: Drain-Source Resistance of Low-side FET | G49: 40 | H49: 13.5 | I49: 1 | J49: 6 | K49: 6 | L49: 2.469135802 | M49: 0.3747456135 | N49: 5.277042813 | O49: 8.638521407 | P49: 3.361478593 | Q49: 0 | R49: 6.19036335 | S49: 0.1532823936 | T49: 0.25 | U49: 0.4082890758 | V49: 1.523351044 | W49: 0.002320598405 | X49: 0.002320598405 | Y49: 2.996489731 | Z49: 0.00897895071 | AA49: 0.00897895071 | AB49: 3.78952189 | AC49: 0.06462214271 | AD49: 0.05719938046 | AE49: 0.06221205 | AF49: 0 | AG49: 0.1864432456 | AH49: 4.894907787 | AI49: 0.0874544462 | AJ49: 0.05376 | AK49: 0.1437283834 | AL49: 0.05376 | AM49: 0.02808 | AN49: 0.1149617952 | AO49: 0.0004725 | AP49: 0.034 | AQ49: 0.0918 | AR49: 0.0578 | AS49: 0.0344725 | AT49: 0.9810345491 | AU49: 30 | AV49: 0.9683343515 | AW49: 10.24880228 | AX49: 7.649739172 | AZ49: 96.83343515 | BA49: 0.4082890758 | BB49: 0.358251629 | BC49: 0.2049760456 | BD49: 0.1529947834 | BE49: 0.1149617952
A50: RdsonBotTc | B50: =RdsonBotTc*1000000 -> 4000 | C50: ppm | D50: Drain To Source Resitance Temp Co | G50: 41 | H50: 13.5 | I50: 1 | J50: 6.15 | K50: 6.15 | L50: 2.530864198 | M50: 0.3748548875 | N50: 5.277785008 | O50: 8.788892504 | P50: 3.511107496 | Q50: 0 | R50: 6.33590966 | S50: 0.1605750049 | T50: 0.25 | U50: 0.4159178862 | V50: 1.523565297 | W50: 0.002321251215 | X50: 0.002321251215 | Y50: 3.067121534 | Z50: 0.009407234506 | AA50: 0.009407234506 | AB50: 3.879185655 | AC50: 0.06771636606 | AD50: 0.05862936497 | AE50: 0.06221205 | AF50: 0 | AG50: 0.1911465307 | AH50: 5.009557852 | AI50: 0.09159919502 | AJ50: 0.055104 | AK50: 0.1494409288 | AL50: 0.055104 | AM50: 0.028782 | AN50: 0.1204312536 | AO50: 0.0004725 | AP50: 0.034 | AQ50: 0.0918 | AR50: 0.0578 | AS50: 0.0344725 | AT50: 1.007023585 | AU50: 30.75 | AV50: 0.9682897365 | AW50: 10.50713254 | AX50: 7.946949439 | AZ50: 96.82897365 | BA50: 0.4159178862 | BB50: 0.3693694595 | BC50: 0.2101426507 | BD50: 0.1589389888 | BE50: 0.1204312536
A51: QgBot | B51: =Qg_Q2*1000000000 -> 9 | C51: nC | D51: Gate Charge Of Top FET | G51: 42 | H51: 13.5 | I51: 1 | J51: 6.3 | K51: 6.3 | L51: 2.592592593 | M51: 0.3749641563 | N51: 5.278526664 | O51: 8.939263332 | P51: 3.660736668 | Q51: 0 | R51: 6.481659019 | S51: 0.1680476146 | T51: 0.25 | U51: 0.4237443528 | V51: 1.523779395 | W51: 0.002321903645 | X51: 0.002321903645 | Y51: 3.137859684 | Z51: 0.009846163398 | AA51: 0.009846163398 | AB51: 3.968999623 | AC51: 0.07088831103 | AD51: 0.06005934948 | AE51: 0.06221205 | AF51: 0 | AG51: 0.1959376483 | AH51: 5.124348314 | AI51: 0.09584515158 | AJ51: 0.056448 | AK51: 0.1552695177 | AL51: 0.056448 | AM51: 0.029484 | AN51: 0.1260357109 | AO51: 0.0004725 | AP51: 0.034 | AQ51: 0.0918 | AR51: 0.0578 | AS51: 0.0344725 | AT51: 1.033559797 | AU51: 31.5 | AV51: 0.9682309651 | AW51: 10.76985441 | AX51: 8.249961884 | AZ51: 96.82309651 | BA51: 0.4237443528 | BB51: 0.380691166 | BC51: 0.2153970883 | BD51: 0.1649992377 | BE51: 0.1260357109
A52: RGateBot | B52: =Rgate2 -> 0 | C52: W | D52: Gate Resistance | G52: 43 | H52: 13.5 | I52: 1 | J52: 6.45 | K52: 6.45 | L52: 2.654320988 | M52: 0.37507342 | N52: 5.279267782 | O52: 9.089633891 | P52: 3.810366109 | Q52: 0 | R52: 6.627598033 | S52: 0.1757002228 | T52: 0.25 | U52: 0.431769178 | V52: 1.523993338 | W52: 0.002322555693 | X52: 0.002322555693 | Y52: 3.208697701 | Z52: 0.01029574094 | AA52: 0.01029574094 | AB52: 4.058955637 | AC52: 0.07413804387 | AD52: 0.06148933399 | AE52: 0.06221205 | AF52: 0 | AG52: 0.2008170647 | AH52: 5.23926854 | AI52: 0.1001922621 | AJ52: 0.057792 | AK52: 0.1612147564 | AL52: 0.057792 | AM52: 0.030186 | AN52: 0.1317751671 | AO52: 0.0004725 | AP52: 0.034 | AQ52: 0.0918 | AR52: 0.0578 | AS52: 0.0344725 | AT52: 1.060644963 | AU52: 32.25 | AV52: 0.9681589785 | AW52: 11.03699124 | AX52: 8.558806818 | AZ52: 96.81589785 | BA52: 0.431769178 | BB52: 0.3922178211 | BC52: 0.2207398247 | BD52: 0.1711761364 | BE52: 0.1317751671
A53: VsdBot | B53: =Vsd_Q2 -> 0.8 | C53: V | D53: Diode Forward Voltage of Bottom FET Body Diode | G53: 44 | H53: 13.5 | I53: 1 | J53: 6.6 | K53: 6.6 | L53: 2.716049383 | M53: 0.3751826784 | N53: 5.280008363 | O53: 9.240004181 | P53: 3.959995819 | Q53: 0 | R53: 6.773714443 | S53: 0.1835328294 | T53: 0.25 | U53: 0.4399930835 | V53: 1.524207125 | W53: 0.002323207359 | X53: 0.002323207359 | Y53: 3.279629653 | Z53: 0.01075597066 | AA53: 0.01075597066 | AB53: 4.149046231 | AC53: 0.07746563083 | AD53: 0.0629193185 | AE53: 0.06221205 | AF53: 0 | AG53: 0.2057852563 | AH53: 5.3543088 | AI53: 0.104640473 | AJ53: 0.059136 | AK53: 0.1672772674 | AL53: 0.059136 | AM53: 0.030888 | AN53: 0.1376496221 | AO53: 0.0004725 | AP53: 0.034 | AQ53: 0.0918 | AR53: 0.0578 | AS53: 0.0344725 | AT53: 1.088280907 | AU53: 33 | AV53: 0.9680746322 | AW53: 11.30856681 | AX53: 8.873515372 | AZ53: 96.80746322 | BA53: 0.4399930835 | BB53: 0.4039505237 | BC53: 0.2261713363 | BD53: 0.1774703074 | BE53: 0.1376496221
A54: QrrBot | B54: =Qrr_Q2*1000000000 -> 13 | C54: nC | D54: Reverse Recovery Charge of Body Diode | G54: 45 | H54: 13.5 | I54: 1 | J54: 6.75 | K54: 6.75 | L54: 2.777777778 | M54: 0.3752919315 | N54: 5.280748406 | O54: 9.390374203 | P54: 4.109625797 | Q54: 0 | R54: 6.919997012 | S54: 0.1915454346 | T54: 0.25 | U54: 0.44841681 | V54: 1.524420757 | W54: 0.002323858644 | X54: 0.002323858644 | Y54: 3.350650103 | Z54: 0.01122685611 | AA54: 0.01122685611 | AB54: 4.239264562 | AC54: 0.08087113814 | AD54: 0.06434930301 | AE54: 0.06221205 | AF54: 0 | AG54: 0.2108427091 | AH54: 5.469460176 | AI54: 0.1091897303 | AJ54: 0.06048 | AK54: 0.17345769 | AL54: 0.06048 | AM54: 0.03159 | AN54: 0.1436590759 | AO54: 0.0004725 | AP54: 0.034 | AQ54: 0.0918 | AR54: 0.0578 | AS54: 0.0344725 | AT54: 1.1164695 | AU54: 33.75 | AV54: 0.9679787052 | AW54: 11.58460546 | AX54: 9.194119501 | AZ54: 96.79787052 | BA54: 0.44841681 | BB54: 0.4158903991 | BC54: 0.2316921091 | BD54: 0.18388239 | BE54: 0.1436590759
A55: TrrBot | B55: =Trr_Q2*1000000000 -> 40 | C55: ns | D55: Reverse Recovery Time of Body Diode | G55: 46 | H55: 13.5 | I55: 1 | J55: 6.9 | K55: 6.9 | L55: 2.839506173 | M55: 0.3754011795 | N55: 5.281487911 | O55: 9.540743956 | P55: 4.259256044 | Q55: 0 | R55: 7.06643542 | S55: 0.1997380382 | T55: 0.25 | U55: 0.4570411179 | V55: 1.524634234 | W55: 0.002324509546 | X55: 0.002324509546 | Y55: 3.421754055 | Z55: 0.01170840081 | AA55: 0.01170840081 | AB55: 4.329604345 | AC55: 0.08435463202 | AD55: 0.06577928753 | AE55: 0.06221205 | AF55: 0 | AG55: 0.2159899196 | AH55: 5.584714475 | AI55: 0.1138399805 | AJ55: 0.061824 | AK55: 0.1797566799 | AL55: 0.061824 | AM55: 0.032292 | AN55: 0.1498035286 | AO55: 0.0004725 | AP55: 0.034 | AQ55: 0.0918 | AR55: 0.0578 | AS55: 0.0344725 | AT55: 1.145212656 | AU55: 34.5 | AV55: 0.9678719084 | AW55: 11.86513198 | AX55: 9.520651996 | AZ55: 96.78719084 | BA55: 0.4570411179 | BB55: 0.4280385995 | BC55: 0.2373026396 | BD55: 0.1904130399 | BE55: 0.1498035286
A56: θJABot | B56: =ThetaJA_Q2 -> 50 | C56: °C/W | D56: Junction to Ambient Resistance | G56: 47 | H56: 13.5 | I56: 1 | J56: 7.05 | K56: 7.05 | L56: 2.901234568 | M56: 0.3755104223 | N56: 5.282226879 | O56: 9.691113439 | P56: 4.408886561 | Q56: 0 | R56: 7.213020177 | S56: 0.2081106403 | T56: 0.25 | U56: 0.4658667871 | V56: 1.524847555 | W56: 0.002325160067 | X56: 0.002325160067 | Y56: 3.492936915 | Z56: 0.01220060829 | AA56: 0.01220060829 | AB56: 4.420059796 | AC56: 0.08791617871 | AD56: 0.06720927204 | AE56: 0.06221205 | AF56: 0 | AG56: 0.2212273942 | AH56: 5.700064163 | AI56: 0.1185911698 | AJ56: 0.063168 | AK56: 0.1861749099 | AL56: 0.063168 | AM56: 0.032994 | AN56: 0.1560829802 | AO56: 0.0004725 | AP56: 0.034 | AQ56: 0.0918 | AR56: 0.0578 | AS56: 0.0344725 | AT56: 1.17451234 | AU56: 35.25 | AV56: 0.9677548918 | AW56: 12.15017171 | AX56: 9.853146496 | AZ56: 96.77548918 | BA56: 0.4658667871 | BB56: 0.4403963041 | BC56: 0.2430034342 | BD56: 0.1970629299 | BE56: 0.1560829802
A57: Bottom Schottky | B57: Input Value | C57: Units | D57: Std Units | G57: 48 | H57: 13.5 | I57: 1 | J57: 7.2 | K57: 7.2 | L57: 2.962962963 | M57: 0.3756196598 | N57: 5.282965309 | O57: 9.841482654 | P57: 4.558517346 | Q57: 0 | R57: 7.359742537 | S57: 0.2166632408 | T57: 0.25 | U57: 0.4748946174 | V57: 1.525060722 | W57: 0.002325810205 | X57: 0.002325810205 | Y57: 3.564194448 | Z57: 0.01270348206 | AA57: 0.01270348206 | AB57: 4.510625589 | AC57: 0.09155584441 | AD57: 0.06863925655 | AE57: 0.06221205 | AF57: 0 | AG57: 0.2265556497 | AH57: 5.8155023 | AI57: 0.1234432446 | AJ57: 0.064512 | AK57: 0.1927130699 | AL57: 0.064512 | AM57: 0.033696 | AN57: 0.1624974306 | AO57: 0.0004725 | AP57: 0.034 | AQ57: 0.0918 | AR57: 0.0578 | AS57: 0.0344725 | AT57: 1.20437056 | AU57: 36 | AV57: 0.9676282506 | AW57: 12.43975049 | AX57: 10.19163749 | AZ57: 96.76282506 | BA57: 0.4748946174 | BB57: 0.4529647196 | BC57: 0.2487950097 | BD57: 0.2038327499 | BE57: 0.1624974306
A58: VfdSky | B58: =VfdSky_Q2 -> 0 | C58: V | D58: Diode Forward Voltage | G58: 49 | H58: 13.5 | I58: 1 | J58: 7.35 | K58: 7.35 | L58: 3.024691358 | M58: 0.3757288922 | N58: 5.283703201 | O58: 9.991851601 | P58: 4.708148399 | Q58: 0 | R58: 7.506594432 | S58: 0.2253958398 | T58: 0.25 | U58: 0.4841254284 | V58: 1.525273733 | W58: 0.00232645996 | X58: 0.00232645996 | Y58: 3.635522745 | Z58: 0.01321702563 | AA58: 0.01321702563 | AB58: 4.601296806 | AC58: 0.09527369535 | AD58: 0.07006924106 | AE58: 0.06221205 | AF58: 0 | AG58: 0.2319752136 | AH58: 5.93102248 | AI58: 0.128396151 | AJ58: 0.065856 | AK58: 0.199371867 | AL58: 0.065856 | AM58: 0.034398 | AN58: 0.1690468799 | AO58: 0.0004725 | AP58: 0.034 | AQ58: 0.0918 | AR58: 0.0578 | AS58: 0.0344725 | AT58: 1.234789375 | AU58: 36.75 | AV58: 0.9674925307 | AW58: 12.73389468 | AX58: 10.53616035 | AZ58: 96.74925307 | BA58: 0.4841254284 | BB58: 0.4657450806 | BC58: 0.2546778936 | BD58: 0.210723207 | BE58: 0.1690468799
A59: QrrSky | B59: =QrrSky_Q2*1000000000 -> 0 | C59: nC | D59: Diode Reverse Recovery Charge | G59: 50 | H59: 13.5 | I59: 1 | J59: 7.5 | K59: 7.5 | L59: 3.086419753 | M59: 0.3758381193 | N59: 5.284440556 | O59: 10.14222028 | P59: 4.857779722 | Q59: 0 | R59: 7.653568405 | S59: 0.2343084373 | T59: 0.25 | U59: 0.4935600602 | V59: 1.525486589 | W59: 0.002327109333 | X59: 0.002327109333 | Y59: 3.706918195 | Z59: 0.0137412425 | AA59: 0.0137412425 | AB59: 4.692068905 | AC59: 0.09906979772 | AD59: 0.07149922557 | AE59: 0.06221205 | AF59: 0 | AG59: 0.2374866236 | AH59: 6.046618785 | AI59: 0.1334498354 | AJ59: 0.0672 | AK59: 0.2061520261 | AL59: 0.0672 | AM59: 0.0351 | AN59: 0.175731328 | AO59: 0.0004725 | AP59: 0.034 | AQ59: 0.0918 | AR59: 0.0578 | AS59: 0.0344725 | AT59: 1.26577089 | AU59: 37.5 | AV59: 0.9673482337 | AW59: 13.03263118 | AX59: 10.88675131 | AZ59: 96.73482337 | BA59: 0.4935600602 | BB59: 0.4787386498 | BC59: 0.2606526236 | BD59: 0.2177350261 | BE59: 0.175731328
A60: Ireverse | B60: =Ireverse -> 0 | C60: mA | D60: Reverse Leakage Current | G60: 51 | H60: 13.5 | I60: 1 | J60: 7.65 | K60: 7.65 | L60: 3.148148148 | M60: 0.3759473412 | N60: 5.285177374 | O60: 10.29258869 | P60: 5.007411313 | Q60: 0 | R60: 7.800657557 | S60: 0.2434010333 | T60: 0.25 | U60: 0.5031993731 | V60: 1.52569929 | W60: 0.002327758323 | X60: 0.002327758323 | Y60: 3.778377452 | Z60: 0.01427613617 | AA60: 0.01427613617 | AB60: 4.782937678 | AC60: 0.1029442177 | AD60: 0.07292921008 | AE60: 0.06221205 | AF60: 0 | AG60: 0.2430904286 | AH60: 6.162285736 | AI60: 0.1386042441 | AJ60: 0.068544 | AK60: 0.2130542898 | AL60: 0.068544 | AM60: 0.035802 | AN60: 0.182550775 | AO60: 0.0004725 | AP60: 0.034 | AQ60: 0.0918 | AR60: 0.0578 | AS60: 0.0344725 | AT60: 1.297317261 | AU60: 38.25 | AV60: 0.9671958213 | AW60: 13.33598743 | AX60: 11.24344749 | AZ60: 96.71958213 | BA60: 0.5031993731 | BB60: 0.4919467184 | BC60: 0.2667197486 | BD60: 0.2248689498 | BE60: 0.182550775
A61: Controller | B61: Input Value | C61: Units | D61: Std Units | G61: 52 | H61: 13.5 | I61: 1 | J61: 7.8 | K61: 7.8 | L61: 3.209876543 | M61: 0.3760565579 | N61: 5.285913654 | O61: 10.44295683 | P61: 5.157043173 | Q61: 0 | R61: 7.947855492 | S61: 0.2526736277 | T61: 0.25 | U61: 0.5130442478 | V61: 1.525911835 | W61: 0.00232840693 | X61: 0.00232840693 | Y61: 3.849897418 | Z61: 0.01482171013 | AA61: 0.01482171013 | AB61: 4.873899227 | AC61: 0.1068970215 | AD61: 0.07435919459 | AE61: 0.06221205 | AF61: 0 | AG61: 0.248787188 | AH61: 6.278018258 | AI61: 0.1438593234 | AJ61: 0.069888 | AK61: 0.2200794186 | AL61: 0.069888 | AM61: 0.036504 | AN61: 0.1895052208 | AO61: 0.0004725 | AP61: 0.034 | AQ61: 0.0918 | AR61: 0.0578 | AS61: 0.0344725 | AT61: 1.329430692 | AU61: 39 | AV61: 0.9670357188 | AW61: 13.6439914 | AX61: 11.60628693 | AZ61: 96.70357188 | BA61: 0.5130442478 | BB61: 0.5053706066 | BC61: 0.272879828 | BD61: 0.2321257386 | BE61: 0.1895052208
A62: θJA | B62: 30 | C62: °C/W | D62: Junction to Ambient Resistance | G62: 53 | H62: 13.5 | I62: 1 | J62: 7.95 | K62: 7.95 | L62: 3.271604938 | M62: 0.3761657694 | N62: 5.286649396 | O62: 10.5933247 | P62: 5.306675302 | Q62: 0 | R62: 8.095156277 | S62: 0.2621262206 | T62: 0.25 | U62: 0.5230955861 | V62: 1.526124226 | W62: 0.002329055153 | X62: 0.002329055153 | Y62: 3.921475214 | Z62: 0.01537796785 | AA62: 0.01537796785 | AB62: 4.964949936 | AC62: 0.1109282754 | AD62: 0.07578917911 | AE62: 0.06221205 | AF62: 0 | AG62: 0.2545774725 | AH62: 6.39381164 | AI62: 0.1492150196 | AJ62: 0.071232 | AK62: 0.2272281914 | AL62: 0.071232 | AM62: 0.037206 | AN62: 0.1965946655 | AO62: 0.0004725 | AP62: 0.034 | AQ62: 0.0918 | AR62: 0.0578 | AS62: 0.0344725 | AT62: 1.362113439 | AU62: 39.75 | AV62: 0.9668683187 | AW62: 13.95667162 | AX62: 11.97530857 | AZ62: 96.68683187 | BA62: 0.5230955861 | BB62: 0.5190116639 | BC62: 0.2791334325 | BD62: 0.2395061714 | BE62: 0.1965946655
A63: Theta Ja | B63: 2 | C63: °C/W | D63: Junction to Ambient Resistance | G63: 54 | H63: 13.5 | I63: 1 | J63: 8.1 | K63: 8.1 | L63: 3.333333333 | M63: 0.3762749757 | N63: 5.287384602 | O63: 10.7436923 | P63: 5.456307699 | Q63: 0 | R63: 8.242554397 | S63: 0.271758812 | T63: 0.25 | U63: 0.5333543107 | V63: 1.526336462 | W63: 0.002329702994 | X63: 0.002329702994 | Y63: 3.993108165 | Z63: 0.01594491282 | AA63: 0.01594491282 | AB63: 5.05608644 | AC63: 0.1150380454 | AD63: 0.07721916362 | AE63: 0.06221205 | AF63: 0 | AG63: 0.2604618638 | AH63: 6.509661505 | AI63: 0.1546712791 | AJ63: 0.072576 | AK63: 0.2345014056 | AL63: 0.072576 | AM63: 0.037908 | AN63: 0.203819109 | AO63: 0.0004725 | AP63: 0.034 | AQ63: 0.0918 | AR63: 0.0578 | AS63: 0.0344725 | AT63: 1.395367805 | AU63: 40.5 | AV63: 0.9666939837 | AW63: 14.27405719 | AX63: 12.35055228 | AZ63: 96.66939837 | BA63: 0.5333543107 | BB63: 0.5328712693 | BC63: 0.2854811438 | BD63: 0.2470110456 | BE63: 0.203819109
G64: 55 | H64: 13.5 | I64: 1 | J64: 8.25 | K64: 8.25 | L64: 3.395061728 | M64: 0.3763841767 | N64: 5.288119269 | O64: 10.89405963 | P64: 5.605940365 | Q64: 0 | R64: 8.390044723 | S64: 0.2815714018 | T64: 0.25 | U64: 0.5438213653 | V64: 1.526548542 | W64: 0.002330350451 | X64: 0.002330350451 | Y64: 4.064793782 | Z64: 0.01652254849 | AA64: 0.01652254849 | AB64: 5.147305612 | AC64: 0.1192263978 | AD64: 0.07864914813 | AE64: 0.06221205 | AF64: 0 | AG64: 0.266440955 | AH64: 6.625563779 | AI64: 0.1602280482 | AJ64: 0.07392 | AK64: 0.2418998772 | AL64: 0.07392 | AM64: 0.03861 | AN64: 0.2111785514 | AO64: 0.0004725 | AP64: 0.034 | AQ64: 0.0918 | AR64: 0.0578 | AS64: 0.0344725 | AT64: 1.429196148 | AU64: 41.25 | AV64: 0.9665130491 | AW64: 14.59617775 | AX64: 12.73205886 | AZ64: 96.65130491 | BA64: 0.5438213653 | BB64: 0.5469508322 | BC64: 0.291923555 | BD64: 0.2546411772 | BE64: 0.2111785514
G65: 56 | H65: 13.5 | I65: 1 | J65: 8.4 | K65: 8.4 | L65: 3.456790123 | M65: 0.3764933726 | N65: 5.2888534 | O65: 11.0444267 | P65: 5.7555733 | Q65: 0 | R65: 8.537622475 | S65: 0.2915639901 | T65: 0.25 | U65: 0.5544977154 | V65: 1.526760467 | W65: 0.002330997524 | X65: 0.002330997524 | Y65: 4.136529746 | Z65: 0.01711087834 | AA65: 0.01711087834 | AB65: 5.238604536 | AC65: 0.1234933987 | AD65: 0.08007913264 | AE65: 0.06221205 | AF65: 0 | AG65: 0.2725153507 | AH65: 6.741514669 | AI65: 0.1658852731 | AJ65: 0.075264 | AK65: 0.2494244415 | AL65: 0.075264 | AM65: 0.039312 | AN65: 0.2186729926 | AO65: 0.0004725 | AP65: 0.034 | AQ65: 0.0918 | AR65: 0.0578 | AS65: 0.0344725 | AT65: 1.463600876 | AU65: 42 | AV65: 0.9663258256 | AW65: 14.92306354 | AX65: 13.11987007 | AZ65: 96.63258256 | BA65: 0.5544977154 | BB65: 0.5612517922 | BC65: 0.2984612707 | BD65: 0.2623974015 | BE65: 0.2186729926
A66: Outputs | G66: 57 | H66: 13.5 | I66: 1 | J66: 8.55 | K66: 8.55 | L66: 3.518518519 | M66: 0.3766025632 | N66: 5.289586993 | O66: 11.1947935 | P66: 5.905206503 | Q66: 0 | R66: 8.685283197 | S66: 0.3017365769 | T66: 0.25 | U66: 0.5653843479 | V66: 1.526972237 | W66: 0.002331644213 | X66: 0.002331644213 | Y66: 4.208313892 | Z66: 0.01770990582 | AA66: 0.01770990582 | AB66: 5.329980494 | AC66: 0.1278391143 | AD66: 0.08150911715 | AE66: 0.06221205 | AF66: 0 | AG66: 0.2786856672 | AH66: 6.857510638 | AI66: 0.1716429003 | AJ66: 0.076608 | AK66: 0.2570759528 | AL66: 0.076608 | AM66: 0.040014 | AN66: 0.2263024326 | AO66: 0.0004725 | AP66: 0.034 | AQ66: 0.0918 | AR66: 0.0578 | AS66: 0.0344725 | AT66: 1.498584451 | AU66: 42.75 | AV66: 0.9661326013 | AW66: 15.25474536 | AX66: 13.51402864 | AZ66: 96.61326013 | BA66: 0.5653843479 | BB66: 0.57577562 | BC66: 0.3050949072 | BD66: 0.2702805728 | BE66: 0.2263024326
A67: Design | B67: Value | C67: Units | G67: 58 | H67: 13.5 | I67: 1 | J67: 8.7 | K67: 8.7 | L67: 3.580246914 | M67: 0.3767117486 | N67: 5.290320049 | O67: 11.34516002 | P67: 6.054839975 | Q67: 0 | R67: 8.833022728 | S67: 0.3120891621 | T67: 0.25 | U67: 0.5764822716 | V67: 1.527183852 | W67: 0.002332290519 | X67: 0.002332290519 | Y67: 4.280144199 | Z67: 0.01831963437 | AA67: 0.01831963437 | AB67: 5.421430945 | AC67: 0.1322636107 | AD67: 0.08293910166 | AE67: 0.06221205 | AF67: 0 | AG67: 0.2849525326 | AH67: 6.973548381 | AI67: 0.1775008761 | AJ67: 0.077952 | AK67: 0.2648552852 | AL67: 0.077952 | AM67: 0.040716 | AN67: 0.2340668716 | AO67: 0.0004725 | AP67: 0.034 | AQ67: 0.0918 | AR67: 0.0578 | AS67: 0.0344725 | AT67: 1.534149386 | AU67: 43.5 | AV67: 0.9659336435 | AW67: 15.59125463 | AX67: 13.91457826 | AZ67: 96.59336435 | BA67: 0.5764822716 | BB67: 0.5905238177 | BC67: 0.3118250926 | BD67: 0.2782915652 | BE67: 0.2340668716
A68: Dmax | B68: =D1_Vinmin -> 0.625 | C68: index | G68: 59 | H68: 13.5 | I68: 1 | J68: 8.85 | K68: 8.85 | L68: 3.641975309 | M68: 0.3768209289 | N68: 5.291052568 | O68: 11.49552628 | P68: 6.204473716 | Q68: 0 | R68: 8.980837179 | S68: 0.3226217458 | T68: 0.25 | U68: 0.5877925176 | V68: 1.527395312 | W68: 0.00233293644 | X68: 0.00233293644 | Y68: 4.352018777 | Z68: 0.01894006743 | AA68: 0.01894006743 | AB68: 5.512953517 | AC68: 0.1367669542 | AD68: 0.08436908617 | AE68: 0.06221205 | AF68: 0 | AG68: 0.2913165868 | AH68: 7.089624811 | AI68: 0.1834591469 | AJ68: 0.079296 | AK68: 0.2727633325 | AL68: 0.079296 | AM68: 0.041418 | AN68: 0.2419663093 | AO68: 0.0004725 | AP68: 0.034 | AQ68: 0.0918 | AR68: 0.0578 | AS68: 0.0344725 | AT68: 1.57029825 | AU68: 44.25 | AV68: 0.9657292006 | AW68: 15.93262334 | AX68: 14.32156363 | AZ68: 96.57292006 | BA68: 0.5877925176 | BB68: 0.6054979193 | BC68: 0.3186524668 | BD68: 0.2864312725 | BE68: 0.2419663093
A69: Dprime | B69: =1-B68 -> 0.375 | C69: index | G69: 60 | H69: 13.5 | I69: 1 | J69: 9 | K69: 9 | L69: 3.703703704 | M69: 0.3769301039 | N69: 5.29178455 | O69: 11.64589228 | P69: 6.354107725 | Q69: 0 | R69: 9.128722911 | S69: 0.3333343279 | T69: 0.25 | U69: 0.5993161393 | V69: 1.527606617 | W69: 0.002333581977 | X69: 0.002333581977 | Y69: 4.423935855 | Z69: 0.01957120845 | AA69: 0.01957120845 | AB69: 5.604545986 | AC69: 0.1413492107 | AD69: 0.08579907069 | AE69: 0.06221205 | AF69: 0 | AG69: 0.2977784821 | AH69: 7.205737038 | AI69: 0.1895176589 | AJ69: 0.08064 | AK69: 0.2808010088 | AL69: 0.08064 | AM69: 0.04212 | AN69: 0.2500007459 | AO69: 0.0004725 | AP69: 0.034 | AQ69: 0.0918 | AR69: 0.0578 | AS69: 0.0344725 | AT69: 1.607033667 | AU69: 45 | AV69: 0.9655195034 | AW69: 16.2788841 | AX69: 14.73503044 | AZ69: 96.55195034 | BA69: 0.5993161393 | BB69: 0.6206994909 | BC69: 0.3255776821 | BD69: 0.2947006088 | BE69: 0.2500007459
A70: Ipp | B70: =Iripple_Vinnom -> 5.339301095 | C70: A | G70: 61 | H70: 13.5 | I70: 1 | J70: 9.15 | K70: 9.15 | L70: 3.765432099 | M70: 0.3770392737 | N70: 5.292515995 | O70: 11.796258 | P70: 6.503742003 | Q70: 0 | R70: 9.276676513 | S70: 0.3442269085 | T70: 0.25 | U70: 0.6110542127 | V70: 1.527817767 | W70: 0.00233422713 | X70: 0.00233422713 | Y70: 4.495893776 | Z70: 0.02021306085 | AA70: 0.02021306085 | AB70: 5.696206272 | AC70: 0.1460104465 | AD70: 0.0872290552 | AE70: 0.06221205 | AF70: 0 | AG70: 0.304338883 | AH70: 7.321882356 | AI70: 0.1956763585 | AJ70: 0.081984 | AK70: 0.2889692486 | AL70: 0.081984 | AM70: 0.042822 | AN70: 0.2581701814 | AO70: 0.0004725 | AP70: 0.034 | AQ70: 0.0918 | AR70: 0.0578 | AS70: 0.0344725 | AT70: 1.644358314 | AU70: 45.75 | AV70: 0.9653047668 | AW70: 16.63007015 | AX70: 15.15502543 | AZ70: 96.53047668 | BA70: 0.6110542127 | BB70: 0.6361301315 | BC70: 0.332601403 | BD70: 0.3031005086 | BE70: 0.2581701814
A71: Top FET | B71: Value | C71: Units | G71: 62 | H71: 13.5 | I71: 1 | J71: 9.3 | K71: 9.3 | L71: 3.827160494 | M71: 0.3771484383 | N71: 5.293246902 | O71: 11.94662345 | P71: 6.653376549 | Q71: 0 | R71: 9.424694791 | S71: 0.3552994876 | T71: 0.25 | U71: 0.6230078368 | V71: 1.528028762 | W71: 0.002334871898 | X71: 0.002334871898 | Y71: 4.567890984 | Z71: 0.02086562804 | AA71: 0.02086562804 | AB71: 5.787932422 | AC71: 0.1507507277 | AD71: 0.08865903971 | AE71: 0.06221205 | AF71: 0 | AG71: 0.3109984665 | AH71: 7.438058226 | AI71: 0.2019351922 | AJ71: 0.083328 | AK71: 0.297269007 | AL71: 0.083328 | AM71: 0.043524 | AN71: 0.2664746157 | AO71: 0.0004725 | AP71: 0.034 | AQ71: 0.0918 | AR71: 0.0578 | AS71: 0.0344725 | AT71: 1.682274926 | AU71: 46.5 | AV71: 0.965085191 | AW71: 16.98621532 | AX71: 15.58159635 | AZ71: 96.5085191 | BA71: 0.6230078368 | BB71: 0.6517914734 | BC71: 0.3397243065 | BD71: 0.311631927 | BE71: 0.2664746157
A72: Tr | B72: =(Qgd_Q1+Qgs_Q1/2)*(RdsonDRT+Rgate1)/(VCC-Vsp_Q1)*1000000000 -> 2.86391844 | C72: ns | D72: Turn on of MOSFET -> Rise time of current | G72: 63 | H72: 13.5 | I72: 1 | J72: 9.45 | K72: 9.45 | L72: 3.888888889 | M72: 0.3772575977 | N72: 5.293977273 | O72: 12.09698864 | P72: 6.803011364 | Q72: 0 | R72: 9.572774743 | S72: 0.3665520651 | T72: 0.25 | U72: 0.6351781337 | V72: 1.528239602 | W72: 0.002335516281 | X72: 0.002335516281 | Y72: 4.639926018 | Z72: 0.02152891345 | AA72: 0.02152891345 | AB72: 5.879722602 | AC72: 0.1555701205 | AD72: 0.09008902422 | AE72: 0.06221205 | AF72: 0 | AG72: 0.3177579223 | AH72: 7.554262267 | AI72: 0.2082941062 | AJ72: 0.084672 | AK72: 0.3057012603 | AL72: 0.084672 | AM72: 0.044226 | AN72: 0.2749140488 | AO72: 0.0004725 | AP72: 0.034 | AQ72: 0.0918 | AR72: 0.0578 | AS72: 0.0344725 | AT72: 1.720786295 | AU72: 47.25 | AV72: 0.9648609625 | AW72: 17.34735412 | AX72: 16.01479202 | AZ72: 96.48609625 | BA72: 0.6351781337 | BB72: 0.6676851826 | BC72: 0.3469470823 | BD72: 0.3202958403 | BE72: 0.2749140488
A73: Tf | B73: =(Qgd_Q1+Qgs_Q1/2)*(RdsonDRT2+Rgate1)/(Vsp_Q1)*1000000000 -> 0.6669075145 | C73: ns | D73: Turn off of MOSFET -> Fall time of current | G73: 64 | H73: =Vin -> 13.5 | I73: =MODE -> 1 | J73: 9.6 | K73: =Iout*G73/100/Number_of_Phases -> 9.6 | L73: =Vout*K73/(Vin*Efficiency) -> 3.950617284 | M73: =(Vout+(Rdson2+Rs+Rdcr)*K73)/(Vin+(Rs+Rdson2-Rdson1)*K73) -> 0.3773667519 | N73: =(Vin-(Rdson1+Rdcr)*K73-Vout)*M73/(Fsw*Lf) -> 5.294707107 | O73: 12.24735355 | P73: 6.952646447 | Q73: =IF(MIN(Vin, -P73/(Coss_Q1+Coss_Q2)*0.00000002)<0, 0, MIN(Vin, -P73/(Coss_Q1+Coss_Q2)*0.00000002)) -> 0 | R73: 9.720913552 | S73: =R73^2*Rdcr -> 0.3779846411 | T73: =Core_Loss_Ch1 -> 0.25 | U73: =(T73+S73*(1+Ltc*(Ta-25)))/(1-S73*Ltc*ThetaCa) -> 0.6475662488 | V73: 1.528450287 | W73: 0.002336160279 | X73: 0.002336160279 | Y73: 4.711997505 | Z73: 0.02220292048 | AA73: 0.02220292048 | AB73: 5.971575091 | AC73: =Rdson1*AB73^2 -> 0.1604686908 | AD73: =(Vin*K73/2)*Fsw*(Tr_buck+Tf_buck) -> 0.09151900873 | AE73: =(0.5*Coss_Q1*(Vin-Q73)^2-0.5*Coss_Q2*(Vin-Q73)^2+(Qoss_Q2*(Vin-Q73)/Vin)*Vin)*Fsw -> 0.06221205 | AF73: =IF(K73>N73/2,0,ABS(K73-N73/2)*Vsd_Q1*Deadtime*Fsw) -> 0 | AG73: =(AF73+AE73+AD73+AC73*(1+RdsonTopTc*Ta-RdsonTopTc*25))/(1-AC73*RdsonTopTc*ThetaJA_Q1) -> 0.3246179531 | AH73: =SQRT((1-M73))*SQRT(K73^2+(N73^2)/12) -> 7.67049224 | AI73: =Rdson2*AH73^2 -> 0.2147530469 | AJ73: =IF(K73<N73/2,Deadtime*Fsw*IF(VfdSky_Q2>0,0,Vsd_Q2)*(K73+N73/2),2*Deadtime*Fsw*IF(VfdSky_Q2>0,0,Vsd_Q2)*K73) -> 0.086016 | AK73: =(AJ73+AI73*(1+RdsonBotTc*Ta-RdsonBotTc*25))/(1-AI73*RdsonBotTc*ThetaJA_Q2) -> 0.3142670063 | AL73: =2*Deadtime*Fsw*IF(VfdSky_Q2>0,VfdSky_Q2,Vsd_Q2)*K73 -> 0.086016 | AM73: =IF(QrrSky_Q2>0,QrrSky_Q2,Qrr_Q2*K73/(Iout/Number_of_Phases))*Fsw*Vin -> 0.044928 | AN73: =Rs*R73^2 -> 0.2834884808 | AO73: =Iq*Vin -> 0.0004725 | AP73: =IF(Ext_VCC=1, (Qg_Q1+Qg_Q2)*Fsw*VCC, (Qg_Q1+Qg_Q2)*Fsw*Vin) -> 0.034 | AQ73: =(Vin-VCC)*Fsw*(Qg_Q1+Qg_Q2)+(RdsonDRT+RdsonDRT2)*Fsw*Qg_Q1*VCC/(RdsonDRT+2*Rgate1+RdsonDRT2)+(RdsonDRB+RdsonDRB2)*Fsw*Qg_Q2*VCC/(RdsonDRB+2*Rgate2+RdsonDRB2) -> 0.0918 | AR73: =(Qg_Q1+Qg_Q2)*Fsw*(Vin-VCC) -> 0.0578 | AS73: 0.0344725 | AT73: =SUM(U73,X73,AA73,AG73,AK73,AL73,AM73,AS73,AN73) -> 1.75989527 | AU73: =Vout*K73 -> 48 | AV73: 0.9646322553 | AW73: =ThetaJA_Q1*BC73 -> 17.71352166 | AX73: =ThetaJA_Q2*BD73 -> 16.45466232 | AZ73: 96.46322553 | BA73: =U73 -> 0.6475662488 | BB73: 0.6838129595 | BC73: 0.3542704331 | BD73: 0.3290932463 | BE73: 0.2834884808
A74: Part Power | B74: Value | C74: Units | G74: 65 | H74: 13.5 | I74: 1 | J74: =Iout*G74/100 -> 9.75 | K74: 9.75 | L74: 4.012345679 | M74: 0.3774759008 | N74: 5.295436403 | O74: =K74+N74/2 -> 12.3977182 | P74: =K74-N74/2 -> 7.102281798 | Q74: 0 | R74: =SQRT(K74^2+(N74^2)/12) -> 9.869108566 | S74: 0.3895972156 | T74: 0.25 | U74: 0.6601733515 | V74: =N74/SQRT(12) -> 1.528660816 | W74: =RCoutEsr*V74^2 -> 0.002336803892 | X74: =W74 -> 0.002336803892 | Y74: =SQRT(M74*(1-M74))*SQRT(K74^2+(N74^2)/12) -> 4.784104152 | Z74: =RCinEsr*Y74^2 -> 0.02288765254 | AA74: =Z74 -> 0.02288765254 | AB74: =SQRT(M74)*SQRT(K74^2+(N74^2)/12) -> 6.063488268 | AC74: 0.1654465049 | AD74: 0.09294899324 | AE74: 0.06221205 | AF74: 0 | AG74: 0.3315792746 | AH74: 7.786746041 | AI74: 0.2213119608 | AJ74: 0.08736 | AK74: 0.3229672645 | AL74: 0.08736 | AM74: 0.04563 | AN74: 0.2921979117 | AO74: 0.0004725 | AP74: 0.034 | AQ74: 0.0918 | AR74: 0.0578 | AS74: 0.0344725 | AT74: 1.799604759 | AU74: 48.75 | AV74: =AU74/(AU74+AT74) -> 0.9643992319 | AW74: 18.08475373 | AX74: 16.90125822 | AZ74: =AV74*100 -> 96.43992319 | BA74: 0.6601733515 | BB74: =AG74+AK74+AM74 -> 0.7001765391 | BC74: =AG74+AM74*0.66 -> 0.3616950746 | BD74: =AK74+AM74*0.33 -> 0.3380251645 | BE74: =AN74 -> 0.2921979117
A75: Power Dis | B75: =AS9 -> 0.0344725 | C75: W | G75: 66 | H75: 13.5 | I75: 1 | J75: 9.9 | K75: 9.9 | L75: 4.074074074 | M75: 0.3775850446 | N75: 5.296165163 | O75: 12.54808258 | P75: 7.251917419 | Q75: 0 | R75: 10.01735729 | S75: 0.4013897885 | T75: 0.25 | U75: 0.6730006351 | V75: 1.528871191 | W75: 0.002337447119 | X75: 0.002337447119 | Y75: 4.856244743 | Z75: 0.02358311301 | AA75: 0.02358311301 | AB75: 6.155460608 | AC75: 0.1705036288 | AD75: 0.09437897775 | AE75: 0.06221205 | AF75: 0 | AG75: 0.3386426156 | AH75: 7.903021689 | AI75: 0.2279707941 | AJ75: 0.088704 | AK75: 0.3318030763 | AL75: 0.088704 | AM75: 0.046332 | AN75: 0.3010423414 | AO75: 0.0004725 | AP75: 0.034 | AQ75: 0.0918 | AR75: 0.0578 | AS75: =SUM(AO75:AP75) -> 0.0344725 | AT75: 1.839917728 | AU75: 49.5 | AV75: 0.9641620437 | AW75: 18.46108678 | AX75: 17.35463182 | AZ75: 96.41620437 | BA75: 0.6730006351 | BB75: 0.7167776919 | BC75: 0.3692217356 | BD75: 0.3470926363 | BE75: 0.3010423414
A76: Temp rise | B76: =B75*B62 -> 1.034175 | C76: °C | G76: 67 | H76: 13.5 | I76: 1 | J76: 10.05 | K76: 10.05 | L76: 4.135802469 | M76: 0.3776941832 | N76: 5.296893386 | O76: 12.69844669 | P76: 7.401553307 | Q76: 0 | R76: 10.16565738 | S76: 0.4133623598 | T76: 0.25 | U76: 0.686049317 | V76: 1.529081411 | W76: 0.002338089962 | X76: 0.002338089962 | Y76: 4.928418132 | Z76: 0.02428930528 | AA76: 0.02428930528 | AB76: 6.247490673 | AC76: 0.1756401287 | AD76: 0.09580896227 | AE76: 0.06221205 | AF76: 0 | AG76: 0.3458087186 | AH76: 8.019317318 | AI76: 0.2347294934 | AJ76: 0.090048 | AK76: 0.3407755058 | AL76: 0.090048 | AM76: 0.047034 | AN76: 0.3100217699 | AO76: 0.0004725 | AP76: 0.034 | AQ76: 0.0918 | AR76: 0.0578 | AS76: 0.0344725 | AT76: 1.880837206 | AU76: 50.25 | AV76: 0.9639208325 | AW76: 18.84255793 | AX76: 17.81483629 | AZ76: 96.39208325 | BA76: 0.686049317 | BB76: 0.7336182243 | BC76: 0.3768511586 | BD76: 0.3562967258 | BE76: 0.3100217699
A77: Current (switching) | B77: =(Qg_Q1+Qg_Q2)*Fsw+Iq -> 0.006835 | C77: A | G77: 68 | H77: 13.5 | I77: 1 | J77: 10.2 | K77: 10.2 | L77: 4.197530864 | M77: 0.3778033165 | N77: 5.297621072 | O77: 12.84881054 | P77: 7.551189464 | Q77: 0 | R77: 10.31400661 | S77: 0.4255149297 | T77: 0.25 | U77: 0.6993206395 | V77: 1.529291476 | W77: 0.002338732418 | X77: 0.002338732418 | Y77: 5.000623235 | Z77: 0.02500623274 | AA77: 0.02500623274 | AB77: 6.339577109 | AC77: 0.1808560706 | AD77: 0.09723894678 | AE77: 0.06221205 | AF77: 0 | AG77: 0.3530783396 | AH77: 8.135631168 | AI77: 0.2415880049 | AJ77: 0.091392 | AK77: 0.3498856397 | AL77: 0.091392 | AM77: 0.047736 | AN77: 0.3191361973 | AO77: 0.0004725 | AP77: 0.034 | AQ77: 0.0918 | AR77: 0.0578 | AS77: 0.0344725 | AT77: 1.922366281 | AU77: 51 | AV77: 0.9636757308 | AW77: 19.22920498 | AX77: 18.28192598 | AZ77: 96.36757308 | BA77: 0.6993206395 | BB77: 0.7506999793 | BC77: 0.3845840996 | BD77: 0.3656385197 | BE77: 0.3191361973
A78: Qrr Current | B78: =Qrr_Q2*Fsw -> 0.0052 | C78: A | G78: 69 | H78: 13.5 | I78: 1 | J78: 10.35 | K78: 10.35 | L78: 4.259259259 | M78: 0.3779124447 | N78: 5.298348221 | O78: 12.99917411 | P78: 7.70082589 | Q78: 0 | R78: 10.4624029 | S78: 0.437847498 | T78: 0.25 | U78: 0.7128158696 | V78: 1.529501386 | W78: 0.002339374489 | X78: 0.002339374489 | Y78: 5.072859032 | Z78: 0.02573389876 | AA78: 0.02573389876 | AB78: 6.431718634 | AC78: 0.1861515206 | AD78: 0.09866893129 | AE78: 0.06221205 | AF78: 0 | AG78: 0.3604522488 | AH78: 8.251961579 | AI78: 0.2485462751 | AJ78: 0.092736 | AK78: 0.359134588 | AL78: 0.092736 | AM78: 0.048438 | AN78: 0.3283856235 | AO78: 0.0004725 | AP78: 0.034 | AQ78: 0.0918 | AR78: 0.0578 | AS78: 0.0344725 | AT78: 1.964508103 | AU78: 51.75 | AV78: 0.9634268623 | AW78: 19.62106644 | AX78: 18.7559564 | AZ78: 96.34268623 | BA78: 0.7128158696 | BB78: 0.7680248367 | BC78: 0.3924213288 | BD78: 0.375119128 | BE78: 0.3283856235
A79: Diode Current | B79: =Deadtime*Fsw*(Iripple_Vinnom/2)*(Vsd_Q2)/Vin -> 0.000885928478 | G79: 70 | H79: 13.5 | I79: 1 | J79: 10.5 | K79: 10.5 | L79: 4.320987654 | M79: 0.3780215676 | N79: 5.299074833 | O79: 13.14953742 | P79: 7.850462583 | Q79: 0 | R79: 10.61084427 | S79: 0.4503600647 | T79: 0.25 | U79: 0.7265362995 | V79: 1.529711141 | W79: 0.002340016174 | X79: 0.002340016174 | Y79: 5.145124556 | Z79: 0.0264723067 | AA79: 0.0264723067 | AB79: 6.523914041 | AC79: 0.1915265449 | AD79: 0.1000989158 | AE79: 0.06221205 | AF79: 0 | AG79: 0.3679312301 | AH79: 8.368306983 | AI79: 0.2556042504 | AJ79: 0.09408 | AK79: 0.3685234842 | AL79: 0.09408 | AM79: 0.04914 | AN79: 0.3377700485 | AO79: 0.0004725 | AP79: 0.034 | AQ79: 0.0918 | AR79: 0.0578 | AS79: 0.0344725 | AT79: 2.007265885 | AU79: 52.5 | AV79: 0.9631743429 | AW79: 20.01818151 | AX79: 19.23698421 | AZ79: 96.31743429 | BA79: 0.7265362995 | BB79: 0.7855947143 | BC79: 0.4003636301 | BD79: 0.3847396842 | BE79: 0.3377700485
A80: Total | B80: =SUM(B77:B79) -> 0.01292092848 | C80: A | G80: 71 | H80: 13.5 | I80: 1 | J80: 10.65 | K80: 10.65 | L80: 4.382716049 | M80: 0.3781306854 | N80: 5.299800909 | O80: 13.29990045 | P80: 8.000099545 | Q80: 0 | R80: 10.75932886 | S80: 0.4630526299 | T80: 0.25 | U80: 0.7404832471 | V80: 1.529920741 | W80: 0.002340657473 | X80: 0.002340657473 | Y80: 5.217418895 | Z80: 0.02722145992 | AA80: 0.02722145992 | AB80: 6.616162186 | AC80: 0.1969812093 | AD80: 0.1015289003 | AE80: 0.06221205 | AF80: 0 | AG80: 0.3755160821 | AH80: 8.484665898 | AI80: 0.2627618772 | AJ80: 0.095424 | AK80: 0.3780534859 | AL80: 0.095424 | AM80: 0.049842 | AN80: 0.3472894724 | AO80: 0.0004725 | AP80: 0.034 | AQ80: 0.0918 | AR80: 0.0578 | AS80: 0.0344725 | AT80: 2.050642905 | AU80: 53.25 | AV80: 0.9629182809 | AW80: 20.4205901 | AX80: 19.7250673 | AZ80: 96.29182809 | BA80: 0.7404832471 | BB80: 0.803411568 | BC80: 0.4084118021 | BD80: 0.3945013459 | BE80: 0.3472894724
G81: 72 | H81: 13.5 | I81: 1 | J81: 10.8 | K81: 10.8 | L81: 4.444444444 | M81: 0.3782397979 | N81: 5.300526448 | O81: 13.45026322 | P81: 8.149736776 | Q81: 0 | R81: 10.90785489 | S81: 0.4759251935 | T81: 0.25 | U81: 0.7546580561 | V81: 1.530130186 | W81: 0.002341298386 | X81: 0.002341298386 | Y81: 5.289741183 | Z81: 0.02798136179 | AA81: 0.02798136179 | AB81: 6.708461989 | AC81: 0.2025155802 | AD81: 0.1029588848 | AE81: 0.06221205 | AF81: 0 | AG81: 0.3832076176 | AH81: 8.601036922 | AI81: 0.2700191019 | AJ81: 0.096768 | AK81: 0.387725775 | AL81: 0.096768 | AM81: 0.050544 | AN81: 0.3569438952 | AO81: 0.0004725 | AP81: 0.034 | AQ81: 0.0918 | AR81: 0.0578 | AS81: 0.0344725 | AT81: 2.094642504 | AU81: 54 | AV81: 0.9626587779 | AW81: 20.82833288 | AX81: 20.22026475 | AZ81: 96.26587779 | BA81: 0.7546580561 | BB81: 0.8214773926 | BC81: 0.4165666576 | BD81: 0.404405295 | BE81: 0.3569438952
G82: 73 | H82: 13.5 | I82: 1 | J82: 10.95 | K82: 10.95 | L82: 4.50617284 | M82: 0.3783489053 | N82: 5.30125145 | O82: 13.60062573 | P82: 8.299374275 | Q82: 0 | R82: 11.05642071 | S82: 0.4889777556 | T82: 0.25 | U82: 0.7690620963 | V82: 1.530339476 | W82: 0.002341938912 | X82: 0.002341938912 | Y82: 5.362090603 | Z82: 0.02875201564 | AA82: 0.02875201564 | AB82: 6.800812425 | AC82: 0.2081297234 | AD82: 0.1043888693 | AE82: 0.06221205 | AF82: 0 | AG82: 0.3910066645 | AH82: 8.717418728 | AI82: 0.2773758709 | AJ82: 0.098112 | AK82: 0.397541558 | AL82: 0.098112 | AM82: 0.051246 | AN82: 0.3667333167 | AO82: 0.0004725 | AP82: 0.034 | AQ82: 0.0918 | AR82: 0.0578 | AS82: 0.0344725 | AT82: 2.13926809 | AU82: 54.75 | AV82: 0.9623959288 | AW82: 21.24145122 | AX82: 20.7226369 | AZ82: 96.23959288 | BA82: 0.7690620963 | BB82: 0.8397942225 | BC82: 0.4248290245 | BD82: 0.414452738 | BE82: 0.3667333167
G83: 74 | H83: 13.5 | I83: 1 | J83: 11.1 | K83: 11.1 | L83: 4.567901235 | M83: 0.3784580074 | N83: 5.301975916 | O83: 13.75098796 | P83: 8.449012042 | Q83: 0 | R83: 11.20502472 | S83: 0.5022103162 | T83: 0.25 | U83: 0.7836967642 | V83: 1.530548611 | W83: 0.002342579051 | X83: 0.002342579051 | Y83: 5.434466378 | Z83: 0.02953342482 | AA83: 0.02953342482 | AB83: 6.893212523 | AC83: 0.213823705 | AD83: 0.1058188538 | AE83: 0.06221205 | AF83: 0 | AG83: 0.3989140655 | AH83: 8.833810059 | AI83: 0.2848321306 | AJ83: 0.099456 | AK83: 0.407502067 | AL83: 0.099456 | AM83: 0.051948 | AN83: 0.3766577372 | AO83: 0.0004725 | AP83: 0.034 | AQ83: 0.0918 | AR83: 0.0578 | AS83: 0.0344725 | AT83: 2.184523138 | AU83: 55.5 | AV83: 0.9621298224 | AW83: 21.65998728 | AX83: 21.23224535 | AZ83: 96.21298224 | BA83: 0.7836967642 | BB83: 0.8583641325 | BC83: 0.4331997455 | BD83: 0.424644907 | BE83: 0.3766577372
G84: 75 | H84: 13.5 | I84: 1 | J84: 11.25 | K84: 11.25 | L84: 4.62962963 | M84: 0.3785671043 | N84: 5.302699845 | O84: 13.90134992 | P84: 8.598650077 | Q84: 0 | R84: 11.35366543 | S84: 0.5156228752 | T84: 0.25 | U84: 0.7985634832 | V84: 1.530757592 | W84: 0.002343218804 | X84: 0.002343218804 | Y84: 5.506867772 | Z84: 0.03032559265 | AA84: 0.03032559265 | AB84: 6.985661364 | AC84: 0.2195975911 | AD84: 0.1072488384 | AE84: 0.06221205 | AF84: 0 | AG84: 0.4069306789 | AH84: 8.950209724 | AI84: 0.2923878275 | AJ84: 0.1008 | AK84: 0.4176085594 | AL84: 0.1008 | AM84: 0.05265 | AN84: 0.3867171564 | AO84: 0.0004725 | AP84: 0.034 | AQ84: 0.0918 | AR84: 0.0578 | AS84: 0.0344725 | AT84: 2.230411189 | AU84: 56.25 | AV84: 0.961860542 | AW84: 22.08398394 | AX84: 21.74915297 | AZ84: 96.1860542 | BA84: 0.7985634832 | BB84: 0.8771892382 | BC84: 0.4416796789 | BD84: 0.4349830594 | BE84: 0.3867171564
G85: 76 | H85: 13.5 | I85: 1 | J85: 11.4 | K85: 11.4 | L85: 4.691358025 | M85: 0.378676196 | N85: 5.303423238 | O85: 14.05171162 | P85: 8.748288381 | Q85: 0 | R85: 11.50234142 | S85: 0.5292154327 | T85: 0.25 | U85: 0.8136637038 | V85: 1.530966417 | W85: 0.00234385817 | X85: 0.00234385817 | Y85: 5.579294084 | Z85: 0.03112852248 | AA85: 0.03112852248 | AB85: 7.078158075 | AC85: 0.2254514478 | AD85: 0.1086788229 | AE85: 0.06221205 | AF85: 0 | AG85: 0.415057378 | AH85: 9.066616593 | AI85: 0.300042908 | AJ85: 0.102144 | AK85: 0.4278623189 | AL85: 0.102144 | AM85: 0.053352 | AN85: 0.3969115745 | AO85: 0.0004725 | AP85: 0.034 | AQ85: 0.0918 | AR85: 0.0578 | AS85: 0.0344725 | AT85: 2.276935856 | AU85: 57 | AV85: 0.9615881654 | AW85: 22.5134849 | AX85: 22.27342394 | AZ85: 96.15881654 | BA85: 0.8136637038 | BB85: 0.8962716969 | BC85: 0.450269698 | BD85: 0.4454684789 | BE85: 0.3969115745
G86: 77 | H86: 13.5 | I86: 1 | J86: 11.55 | K86: 11.55 | L86: 4.75308642 | M86: 0.3787852826 | N86: 5.304146094 | O86: 14.20207305 | P86: 8.897926953 | Q86: 0 | R86: 11.65105133 | S86: 0.5429879886 | T86: 0.25 | U86: 0.8289989044 | V86: 1.531175088 | W86: 0.002344497149 | X86: 0.002344497149 | Y86: 5.651744652 | Z86: 0.03194221761 | AA86: 0.03194221761 | AB86: 7.170701826 | AC86: 0.231385341 | AD86: 0.1101088074 | AE86: 0.06221205 | AF86: 0 | AG86: 0.4232950524 | AH86: 9.183029591 | AI86: 0.3077973185 | AJ86: 0.103488 | AK86: 0.4382646557 | AL86: 0.103488 | AM86: 0.054054 | AN86: 0.4072409914 | AO86: 0.0004725 | AP86: 0.034 | AQ86: 0.0918 | AR86: 0.0578 | AS86: 0.0344725 | AT86: 2.324100819 | AU86: 57.75 | AV86: 0.9613127656 | AW86: 22.94853462 | AX86: 22.80512379 | AZ86: 96.13127656 | BA86: 0.8289989044 | BB86: 0.9156137081 | BC86: 0.4589706924 | BD86: 0.4561024757 | BE86: 0.4072409914
G87: 78 | H87: 13.5 | I87: 1 | J87: 11.7 | K87: 11.7 | L87: 4.814814815 | M87: 0.3788943639 | N87: 5.304868414 | O87: 14.35243421 | P87: 9.047565793 | Q87: 0 | R87: 11.79979389 | S87: 0.556940543 | T87: 0.25 | U87: 0.8445705913 | V87: 1.531383603 | W87: 0.002345135741 | X87: 0.002345135741 | Y87: 5.724218843 | Z87: 0.03276668136 | AA87: 0.03276668136 | AB87: 7.263291828 | AC87: 0.2373993368 | AD87: 0.1115387919 | AE87: 0.06221205 | AF87: 0 | AG87: 0.4316446074 | AH87: 9.299447702 | AI87: 0.3156510056 | AJ87: 0.104832 | AK87: 0.4488169072 | AL87: 0.104832 | AM87: 0.054756 | AN87: 0.4177054072 | AO87: 0.0004725 | AP87: 0.034 | AQ87: 0.0918 | AR87: 0.0578 | AS87: 0.0344725 | AT87: 2.37190983 | AU87: 58.5 | AV87: 0.9610344108 | AW87: 23.38917837 | AX87: 23.34431936 | AZ87: 96.10344108 | BA87: 0.8445705913 | BB87: 0.9352175146 | BC87: 0.4677835674 | BD87: 0.4668863872 | BE87: 0.4177054072
G88: 79 | H88: 13.5 | I88: 1 | J88: 11.85 | K88: 11.85 | L88: 4.87654321 | M88: 0.37900344 | N88: 5.305590197 | O88: 14.5027951 | P88: 9.197204901 | Q88: 0 | R88: 11.94856786 | S88: 0.5710730958 | T88: 0.25 | U88: 0.8603802991 | V88: 1.531591964 | W88: 0.002345773945 | X88: 0.002345773945 | Y88: 5.796716056 | Z88: 0.03360191704 | AA88: 0.03360191704 | AB88: 7.355927334 | AC88: 0.2434935013 | AD88: 0.1129687764 | AE88: 0.06221205 | AF88: 0 | AG88: 0.4401069648 | AH88: 9.415869954 | AI88: 0.3236039155 | AJ88: 0.106176 | AK88: 0.4595204382 | AL88: 0.106176 | AM88: 0.055458 | AN88: 0.4283048218 | AO88: 0.0004725 | AP88: 0.034 | AQ88: 0.0918 | AR88: 0.0578 | AS88: 0.0344725 | AT88: 2.420366715 | AU88: 59.25 | AV88: 0.9607531649 | AW88: 23.83546224 | AX88: 23.89107891 | AZ88: 96.07531649 | BA88: 0.8603802991 | BB88: 0.955085403 | BC88: 0.4767092448 | BD88: 0.4778215782 | BE88: 0.4283048218
G89: 80 | H89: 13.5 | I89: 1 | J89: 12 | K89: 12 | L89: 4.938271605 | M89: 0.3791125109 | N89: 5.306311444 | O89: 14.65315572 | P89: 9.346844278 | Q89: 0 | R89: 12.0973721 | S89: 0.585385647 | T89: 0.25 | U89: 0.8764295913 | V89: 1.53180017 | W89: 0.002346411762 | X89: 0.002346411762 | Y89: 5.86923572 | Z89: 0.03444792794 | AA89: 0.03444792794 | AB89: 7.44860763 | AC89: 0.2496679003 | AD89: 0.1143987609 | AE89: 0.06221205 | AF89: 0 | AG89: 0.4486830629 | AH89: 9.532295429 | AI89: 0.3316559949 | AJ89: 0.10752 | AK89: 0.4703766415 | AL89: 0.10752 | AM89: 0.05616 | AN89: 0.4390392353 | AO89: 0.0004725 | AP89: 0.034 | AQ89: 0.0918 | AR89: 0.0578 | AS89: 0.0344725 | AT89: 2.469475371 | AU89: 60 | AV89: 0.9604690874 | AW89: 24.28743314 | AX89: 24.44547208 | AZ89: 96.04690874 | BA89: 0.8764295913 | BB89: 0.9752197044 | BC89: 0.4857486629 | BD89: 0.4889094415 | BE89: 0.4390392353
G90: 81 | H90: 13.5 | I90: 1 | J90: 12.15 | K90: 12.15 | L90: 5 | M90: 0.3792215766 | N90: 5.307032155 | O90: 14.80351608 | P90: 9.496483923 | Q90: 0 | R90: 12.2462055 | S90: 0.5998781968 | T90: 0.25 | U90: 0.8927200608 | V90: 1.532008222 | W90: 0.002347049191 | X90: 0.002347049191 | Y90: 5.94177729 | Z90: 0.03530471736 | AA90: 0.03530471736 | AB90: 7.541332037 | AC90: 0.2559226 | AD90: 0.1158287454 | AE90: 0.06221205 | AF90: 0 | AG90: 0.4573738567 | AH90: 9.648723247 | AI90: 0.3398071901 | AJ90: 0.108864 | AK90: 0.4813869387 | AL90: 0.108864 | AM90: 0.056862 | AN90: 0.4499086476 | AO90: 0.0004725 | AP90: 0.034 | AQ90: 0.0918 | AR90: 0.0578 | AS90: 0.0344725 | AT90: 2.51923977 | AU90: 60.75 | AV90: 0.9601822342 | AW90: 24.74513884 | AX90: 25.00756994 | AZ90: 96.01822342 | BA90: 0.8927200608 | BB90: 0.9956227954 | BC90: 0.4949027767 | BD90: 0.5001513987 | BE90: 0.4499086476
G91: 82 | H91: 13.5 | I91: 1 | J91: 12.3 | K91: 12.3 | L91: 5.061728395 | M91: 0.3793306371 | N91: 5.307752329 | O91: 14.95387616 | P91: 9.646123835 | Q91: 0 | R91: 12.39506701 | S91: 0.6145507449 | T91: 0.25 | U91: 0.9092533298 | V91: 1.532216118 | W91: 0.002347686232 | X91: 0.002347686232 | Y91: 6.014340246 | Z91: 0.03617228859 | AA91: 0.03617228859 | AB91: 7.634099908 | AC91: 0.2622576663 | AD91: 0.1172587299 | AE91: 0.06221205 | AF91: 0 | AG91: 0.4661803188 | AH91: 9.765152576 | AI91: 0.3480574476 | AJ91: 0.110208 | AK91: 0.4925527803 | AL91: 0.110208 | AM91: 0.057564 | AN91: 0.4609130587 | AO91: 0.0004725 | AP91: 0.034 | AQ91: 0.0918 | AR91: 0.0578 | AS91: 0.0344725 | AT91: 2.569663962 | AU91: 61.5 | AV91: 0.9598926574 | AW91: 25.20862794 | AX91: 25.57744502 | AZ91: 95.98926574 | BA91: 0.9092533298 | BB91: 1.016297099 | BC91: 0.5041725588 | BD91: 0.5115489003 | BE91: 0.4609130587
G92: 83 | H92: 13.5 | I92: 1 | J92: 12.45 | K92: 12.45 | L92: 5.12345679 | M92: 0.3794396924 | N92: 5.308471967 | O92: 15.10423598 | P92: 9.795764016 | Q92: 0 | R92: 12.54395563 | S92: 0.6294032915 | T92: 0.25 | U92: 0.9260310509 | V92: 1.53242386 | W92: 0.002348322886 | X92: 0.002348322886 | Y92: 6.086924092 | Z92: 0.03705064491 | AA92: 0.03705064491 | AB92: 7.726910627 | AC92: 0.2686731653 | AD92: 0.1186887144 | AE92: 0.06221205 | AF92: 0 | AG92: 0.4751034387 | AH92: 9.881582618 | AI92: 0.3564067139 | AJ92: 0.111552 | AK92: 0.5038756466 | AL92: 0.111552 | AM92: 0.058266 | AN92: 0.4720524687 | AO92: 0.0004725 | AP92: 0.034 | AQ92: 0.0918 | AR92: 0.0578 | AS92: 0.0344725 | AT92: 2.620752073 | AU92: 62.25 | AV92: 0.9596004056 | AW92: 25.67794993 | AX92: 26.15517133 | AZ92: 95.96004056 | BA92: 0.9260310509 | BB92: 1.037245085 | BC92: 0.5135589987 | BD92: 0.5231034266 | BE92: 0.4720524687
G93: 84 | H93: 13.5 | I93: 1 | J93: 12.6 | K93: 12.6 | L93: 5.185185185 | M93: 0.3795487426 | N93: 5.309191069 | O93: 15.25459553 | P93: 9.945404465 | Q93: 0 | R93: 12.69287041 | S93: 0.6444358366 | T93: 0.25 | U93: 0.9430549068 | V93: 1.532631446 | W93: 0.002348959151 | X93: 0.002348959151 | Y93: 6.159528357 | Z93: 0.03793978958 | AA93: 0.03793978958 | AB93: 7.819763606 | AC93: 0.2751691629 | AD93: 0.120118699 | AE93: 0.06221205 | AF93: 0 | AG93: 0.484144224 | AH93: 9.998012617 | AI93: 0.3648549355 | AJ93: 0.112896 | AK93: 0.515357048 | AL93: 0.112896 | AM93: 0.058968 | AN93: 0.4833268775 | AO93: 0.0004725 | AP93: 0.034 | AQ93: 0.0918 | AR93: 0.0578 | AS93: 0.0344725 | AT93: 2.672508305 | AU93: 63 | AV93: 0.9593055241 | AW93: 26.1531552 | AX93: 26.7408244 | AZ93: 95.93055241 | BA93: 0.9430549068 | BB93: 1.058469272 | BC93: 0.523063104 | BD93: 0.534816488 | BE93: 0.4833268775
G94: 85 | H94: 13.5 | I94: 1 | J94: 12.75 | K94: 12.75 | L94: 5.24691358 | M94: 0.3796577875 | N94: 5.309909635 | O94: 15.40495482 | P94: 10.09504518 | Q94: 0 | R94: 12.84181043 | S94: 0.6596483801 | T94: 0.25 | U94: 0.9603266116 | V94: 1.532838878 | W94: 0.002349595027 | X94: 0.002349595027 | Y94: 6.232152588 | Z94: 0.03883972588 | AA94: 0.03883972588 | AB94: 7.912658284 | AC94: 0.2817457251 | AD94: 0.1215486835 | AE94: 0.06221205 | AF94: 0 | AG94: 0.4933037003 | AH94: 10.11444185 | AI94: 0.3734020587 | AJ94: 0.11424 | AK94: 0.5269985256 | AL94: 0.11424 | AM94: 0.05967 | AN94: 0.4947362851 | AO94: 0.0004725 | AP94: 0.034 | AQ94: 0.0918 | AR94: 0.0578 | AS94: 0.0344725 | AT94: 2.724936944 | AU94: 63.75 | AV94: 0.9590080552 | AW94: 26.63429501 | AX94: 27.33448128 | AZ94: 95.90080552 | BA94: 0.9603266116 | BB94: 1.079972226 | BC94: 0.5326859003 | BD94: 0.5466896256 | BE94: 0.4947362851
G95: 86 | H95: 13.5 | I95: 1 | J95: 12.9 | K95: 12.9 | L95: 5.308641975 | M95: 0.3797668272 | N95: 5.310627664 | O95: 15.55531383 | P95: 10.24468617 | Q95: 0 | R95: 12.99077482 | S95: 0.6750409221 | T95: 0.25 | U95: 0.9778479105 | V95: 1.533046156 | W95: 0.002350230516 | X95: 0.002350230516 | Y95: 6.304796354 | Z95: 0.03975045706 | AA95: 0.03975045706 | AB95: 8.005594125 | AC95: 0.2884029178 | AD95: 0.122978668 | AE95: 0.06221205 | AF95: 0 | AG95: 0.5025829115 | AH95: 10.23086962 | AI95: 0.3820480302 | AJ95: 0.115584 | AK95: 0.5388016522 | AL95: 0.115584 | AM95: 0.060372 | AN95: 0.5062806915 | AO95: 0.0004725 | AP95: 0.034 | AQ95: 0.0918 | AR95: 0.0578 | AS95: 0.0344725 | AT95: 2.778042353 | AU95: 64.5 | AV95: 0.9587080382 | AW95: 27.12142157 | AX95: 27.93622061 | AZ95: 95.87080382 | BA95: 0.9778479105 | BB95: 1.101756564 | BC95: 0.5424284315 | BD95: 0.5587244122 | BE95: 0.5062806915
G96: 87 | H96: 13.5 | I96: 1 | J96: 13.05 | K96: 13.05 | L96: 5.37037037 | M96: 0.3798758617 | N96: 5.311345158 | O96: 15.70567258 | P96: 10.39432742 | Q96: 0 | R96: 13.13976277 | S96: 0.6906134625 | T96: 0.25 | U96: 0.9956205806 | V96: 1.533253278 | W96: 0.002350865615 | X96: 0.002350865615 | Y96: 6.377459242 | Z96: 0.04067198638 | AA96: 0.04067198638 | AB96: 8.098570617 | AC96: 0.2951408072 | AD96: 0.1244086525 | AE96: 0.06221205 | AF96: 0 | AG96: 0.5119829201 | AH96: 10.34729528 | AI96: 0.3907927965 | AJ96: 0.116928 | AK96: 0.5507680324 | AL96: 0.116928 | AM96: 0.061074 | AN96: 0.5179600968 | AO96: 0.0004725 | AP96: 0.034 | AQ96: 0.0918 | AR96: 0.0578 | AS96: 0.0344725 | AT96: 2.831828982 | AU96: 65.25 | AV96: 0.9584055096 | AW96: 27.61458801 | AX96: 28.54612262 | AZ96: 95.84055096 | BA96: 0.9956205806 | BB96: 1.123824952 | BC96: 0.5522917601 | BD96: 0.5709224524 | BE96: 0.5179600968
G97: 88 | H97: 13.5 | I97: 1 | J97: 13.2 | K97: 13.2 | L97: 5.432098765 | M97: 0.379984891 | N97: 5.312062115 | O97: 15.85603106 | P97: 10.54396894 | Q97: 0 | R97: 13.28877347 | S97: 0.7063660013 | T97: 0.25 | U97: 1.013646431 | V97: 1.533460246 | W97: 0.002351500326 | X97: 0.002351500326 | Y97: 6.450140858 | Z97: 0.04160431709 | AA97: 0.04160431709 | AB97: 8.19158727 | AC97: 0.301959459 | AD97: 0.125838637 | AE97: 0.06221205 | AF97: 0 | AG97: 0.521504808 | AH97: 10.46371819 | AI97: 0.3996363039 | AJ97: 0.118272 | AK97: 0.5628993033 | AL97: 0.118272 | AM97: 0.061776 | AN97: 0.529774501 | AO97: 0.0004725 | AP97: 0.034 | AQ97: 0.0918 | AR97: 0.0578 | AS97: 0.0344725 | AT97: 2.886301361 | AU97: 66 | AV97: 0.9581005032 | AW97: 28.1138484 | AX97: 29.16426916 | AZ97: 95.81005032 | BA97: 1.013646431 | BB97: 1.146180111 | BC97: 0.562276968 | BD97: 0.5832853833 | BE97: 0.529774501
G98: 89 | H98: 13.5 | I98: 1 | J98: 13.35 | K98: 13.35 | L98: 5.49382716 | M98: 0.3800939151 | N98: 5.312778536 | O98: 16.00638927 | P98: 10.69361073 | Q98: 0 | R98: 13.43780617 | S98: 0.7222985386 | T98: 0.25 | U98: 1.031927305 | V98: 1.533667059 | W98: 0.002352134648 | X98: 0.002352134648 | Y98: 6.522840824 | Z98: 0.04254745242 | AA98: 0.04254745242 | AB98: 8.284643617 | AC98: 0.3088589394 | AD98: 0.1272686215 | AE98: 0.06221205 | AF98: 0 | AG98: 0.531149676 | AH98: 10.58013775 | AI98: 0.408578499 | AJ98: 0.119616 | AK98: 0.5751971354 | AL98: 0.119616 | AM98: 0.062478 | AN98: 0.5417239039 | AO98: 0.0004725 | AP98: 0.034 | AQ98: 0.0918 | AR98: 0.0578 | AS98: 0.0344725 | AT98: 2.941464108 | AU98: 66.75 | AV98: 0.9577930505 | AW98: 28.6192578 | AX98: 29.79074377 | AZ98: 95.77930505 | BA98: 1.031927305 | BB98: 1.168824811 | BC98: 0.572385156 | BD98: 0.5958148754 | BE98: 0.5417239039
G99: 90 | H99: 13.5 | I99: 1 | J99: 13.5 | K99: 13.5 | L99: 5.555555556 | M99: 0.3802029341 | N99: 5.313494421 | O99: 16.15674721 | P99: 10.84325279 | Q99: 0 | R99: 13.58686014 | S99: 0.7384110743 | T99: 0.25 | U99: 1.050465078 | V99: 1.533873717 | W99: 0.002352768581 | X99: 0.002352768581 | Y99: 6.595558779 | Z99: 0.0435013956 | AA99: 0.0435013956 | AB99: 8.377739209 | AC99: 0.3158393141 | AD99: 0.128698606 | AE99: 0.06221205 | AF99: 0 | AG99: 0.5409186449 | AH99: 10.69655339 | AI99: 0.4176193283 | AJ99: 0.12096 | AK99: 0.5876632333 | AL99: 0.12096 | AM99: 0.06318 | AN99: 0.5538083057 | AO99: 0.0004725 | AP99: 0.034 | AQ99: 0.0918 | AR99: 0.0578 | AS99: 0.0344725 | AT99: 2.997321926 | AU99: 67.5 | AV99: 0.9574831803 | AW99: 29.13087225 | AX99: 30.42563166 | AZ99: 95.74831803 | BA99: 1.050465078 | BB99: 1.191761878 | BC99: 0.5826174449 | BD99: 0.6085126333 | BE99: 0.5538083057
G100: 91 | H100: 13.5 | I100: 1 | J100: 13.65 | K100: 13.65 | L100: 5.617283951 | M100: 0.3803119478 | N100: 5.314209771 | O100: 16.30710489 | P100: 10.99289511 | Q100: 0 | R100: 13.7359347 | S100: 0.7547036085 | T100: 0.25 | U100: 1.069261659 | V100: 1.534080221 | W100: 0.002353402124 | X100: 0.002353402124 | Y100: 6.668294375 | Z100: 0.04446614987 | AA100: 0.04446614987 | AB100: 8.470873617 | AC100: 0.3229006493 | AD100: 0.1301285905 | AE100: 0.06221205 | AF100: 0 | AG100: 0.5508128555 | AH100: 10.81296455 | AI100: 0.4267587383 | AJ100: 0.122304 | AK100: 0.6002993358 | AL100: 0.122304 | AM100: 0.063882 | AN100: 0.5660277064 | AO100: 0.0004725 | AP100: 0.034 | AQ100: 0.0918 | AR100: 0.0578 | AS100: 0.0344725 | AT100: 3.053879609 | AU100: 68.25 | AV100: 0.9571709194 | AW100: 29.64874878 | AX100: 31.06901979 | AZ100: 95.71709194 | BA100: 1.069261659 | BB100: 1.214994191 | BC100: 0.5929749755 | BD100: 0.6213803958 | BE100: 0.5660277064
G101: 92 | H101: 13.5 | I101: 1 | J101: 13.8 | K101: 13.8 | L101: 5.679012346 | M101: 0.3804209563 | N101: 5.314924584 | O101: 16.45746229 | P101: 11.14253771 | Q101: 0 | R101: 13.88502918 | S101: 0.7711761411 | T101: 0.25 | U101: 1.088318992 | V101: 1.53428657 | W101: 0.002354035278 | X101: 0.002354035278 | Y101: 6.74104728 | Z101: 0.04544171844 | AA101: 0.04544171844 | AB101: 8.564046431 | AC101: 0.3300430107 | AD101: 0.1315585751 | AE101: 0.06221205 | AF101: 0 | AG101: 0.5608334691 | AH101: 10.9293707 | AI101: 0.4359966756 | AJ101: 0.123648 | AK101: 0.6131072173 | AL101: 0.123648 | AM101: 0.064584 | AN101: 0.5783821058 | AO101: 0.0004725 | AP101: 0.034 | AQ101: 0.0918 | AR101: 0.0578 | AS101: 0.0344725 | AT101: 3.111142038 | AU101: 69 | AV101: 0.9568562922 | AW101: 30.17294546 | AX101: 31.72099687 | AZ101: 95.68562922 | BA101: 1.088318992 | BB101: 1.238524686 | BC101: 0.6034589091 | BD101: 0.6344199373 | BE101: 0.5783821058
G102: 93 | H102: 13.5 | I102: 1 | J102: 13.95 | K102: 13.95 | L102: 5.740740741 | M102: 0.3805299596 | N102: 5.315638862 | O102: 16.60781943 | P102: 11.29218057 | Q102: 0 | R102: 14.03414294 | S102: 0.7878286722 | T102: 0.25 | U102: 1.107639057 | V102: 1.534492764 | W102: 0.002354668042 | X102: 0.002354668042 | Y102: 6.813817177 | Z102: 0.04642810452 | AA102: 0.04642810452 | AB102: 8.657257257 | AC102: 0.3372664644 | AD102: 0.1329885596 | AE102: 0.06221205 | AF102: 0 | AG102: 0.5709816677 | AH102: 11.04577136 | AI102: 0.4453330867 | AJ102: 0.124992 | AK102: 0.6260886883 | AL102: 0.124992 | AM102: 0.065286 | AN102: 0.5908715041 | AO102: 0.0004725 | AP102: 0.034 | AQ102: 0.0918 | AR102: 0.0578 | AS102: 0.0344725 | AT102: 3.169114189 | AU102: 69.75 | AV102: 0.9565393213 | AW102: 30.70352138 | AX102: 32.38165341 | AZ102: 95.65393213 | BA102: 1.107639057 | BB102: 1.262356356 | BC102: 0.6140704277 | BD102: 0.6476330683 | BE102: 0.5908715041
G103: 94 | H103: 13.5 | I103: 1 | J103: 14.1 | K103: 14.1 | L103: 5.802469136 | M103: 0.3806389578 | N103: 5.316352603 | O103: 16.7581763 | P103: 11.4418237 | Q103: 0 | R103: 14.18327538 | S103: 0.8046612017 | T103: 0.25 | U103: 1.127223867 | V103: 1.534698803 | W103: 0.002355300417 | X103: 0.002355300417 | Y103: 6.886603758 | Z103: 0.04742531132 | AA103: 0.04742531132 | AB103: 8.750505716 | AC103: 0.3445710763 | AD103: 0.1344185441 | AE103: 0.06221205 | AF103: 0 | AG103: 0.5812586544 | AH103: 11.16216601 | AI103: 0.454767918 | AJ103: 0.126336 | AK103: 0.6392455957 | AL103: 0.126336 | AM103: 0.065988 | AN103: 0.6034959013 | AO103: 0.0004725 | AP103: 0.034 | AQ103: 0.0918 | AR103: 0.0578 | AS103: 0.0344725 | AT103: 3.22780113 | AU103: 70.5 | AV103: 0.9562200272 | AW103: 31.24053672 | AX103: 33.05108178 | AZ103: 95.62200272 | BA103: 1.127223867 | BB103: 1.28649225 | BC103: 0.6248107344 | BD103: 0.6610216357 | BE103: 0.6034959013
G104: 95 | H104: 13.5 | I104: 1 | J104: 14.25 | K104: 14.25 | L104: 5.864197531 | M104: 0.3807479507 | N104: 5.317065809 | O104: 16.9085329 | P104: 11.5914671 | Q104: 0 | R104: 14.33242591 | S104: 0.8216737296 | T104: 0.25 | U104: 1.147075472 | V104: 1.534904688 | W104: 0.002355932402 | X104: 0.002355932402 | Y104: 6.959406731 | Z104: 0.04843334204 | AA104: 0.04843334204 | AB104: 8.843791448 | AC104: 0.3519569123 | AD104: 0.1358485286 | AE104: 0.06221205 | AF104: 0 | AG104: 0.5916656542 | AH104: 11.27855422 | AI104: 0.4643011161 | AJ104: 0.12768 | AK104: 0.6525798242 | AL104: 0.12768 | AM104: 0.06669 | AN104: 0.6162552972 | AO104: 0.0004725 | AP104: 0.034 | AQ104: 0.0918 | AR104: 0.0578 | AS104: 0.0344725 | AT104: 3.287208022 | AU104: 71.25 | AV104: 0.9558984283 | AW104: 31.78405271 | AX104: 33.72937621 | AZ104: 95.58984283 | BA104: 1.147075472 | BB104: 1.310935478 | BC104: 0.6356810542 | BD104: 0.6745875242 | BE104: 0.6162552972
G105: 96 | H105: 13.5 | I105: 1 | J105: 14.4 | K105: 14.4 | L105: =Vout*K105/(Vin*Efficiency) -> 5.925925926 | M105: 0.3808569385 | N105: =(Vin-(Rdson1+Rdcr)*K105-Vout)*M105/(Fsw*Lf) -> 5.317778479 | O105: 17.05888924 | P105: 11.74111076 | Q105: =IF(MIN(Vin, -P105/(Coss_Q1+Coss_Q2)*0.00000002)<0, 0, MIN(Vin, -P105/(Coss_Q1+Coss_Q2)*0.00000002)) -> 0 | R105: 14.48159397 | S105: =R105^2*Rdcr -> 0.838866256 | T105: 0.25 | U105: =(T105+S105*(1+Ltc*(Ta-25)))/(1-S105*Ltc*ThetaCa) -> 1.16719596 | V105: 1.535110418 | W105: 0.002356563996 | X105: 0.002356563996 | Y105: 7.032225813 | Z105: 0.04945219988 | AA105: 0.04945219988 | AB105: 8.937114104 | AC105: =Rdson1*AB105^2 -> 0.3594240383 | AD105: 0.1372785131 | AE105: 0.06221205 | AF105: 0 | AG105: =(AF105+AE105+AD105+AC105*(1+RdsonTopTc*Ta-RdsonTopTc*25))/(1-AC105*RdsonTopTc*ThetaJA_Q1) -> 0.6022039139 | AH105: 11.39493552 | AI105: =Rdson2*AH105^2 -> 0.4739326275 | AJ105: 0.129024 | AK105: =(AJ105+AI105*(1+RdsonBotTc*Ta-RdsonBotTc*25))/(1-AI105*RdsonBotTc*ThetaJA_Q2) -> 0.6660932968 | AL105: 0.129024 | AM105: 0.067392 | AN105: 0.629149692 | AO105: 0.0004725 | AP105: 0.034 | AQ105: 0.0918 | AR105: 0.0578 | AS105: 0.0344725 | AT105: =SUM(U105,X105,AA105,AG105,AK105,AL105,AM105,AS105,AN105) -> 3.347340127 | AU105: 72 | AV105: 0.9555745416 | AW105: 32.3341317 | AX105: 34.41663284 | AZ105: 95.55745416 | BA105: 1.16719596 | BB105: 1.335689211 | BC105: 0.6466826339 | BD105: 0.6883326568 | BE105: 0.629149692
G106: 97 | H106: 13.5 | I106: 1 | J106: 14.55 | K106: 14.55 | L106: 5.987654321 | M106: 0.380965921 | N106: 5.318490614 | O106: 17.20924531 | P106: 11.89075469 | Q106: 0 | R106: 14.63077904 | S106: 0.8562387808 | T106: 0.25 | U106: 1.187587456 | V106: 1.535315994 | W106: 0.002357195201 | X106: 0.002357195201 | Y106: 7.105060732 | Z106: 0.05048188801 | AA106: 0.05048188801 | AB106: 9.03047335 | AC106: 0.3669725202 | AD106: 0.1387084976 | AE106: 0.06221205 | AF106: 0 | AG106: 0.6128747026 | AH106: 11.51130949 | AI106: 0.4836623989 | AJ106: 0.130368 | AK106: 0.6797879755 | AL106: 0.130368 | AM106: 0.068094 | AN106: 0.6421790856 | AO106: 0.0004725 | AP106: 0.034 | AQ106: 0.0918 | AR106: 0.0578 | AS106: 0.0344725 | AT106: 3.408202803 | AU106: 72.75 | AV106: 0.955248382 | AW106: 32.89083713 | AX106: 35.11294977 | AZ106: 95.5248382 | BA106: 1.187587456 | BB106: 1.360756678 | BC106: 0.6578167426 | BD106: 0.7022589955 | BE106: 0.6421790856
G107: 98 | H107: 13.5 | I107: 1 | J107: 14.7 | K107: 14.7 | L107: 6.049382716 | M107: 0.3810748984 | N107: 5.319202212 | O107: 17.35960111 | P107: 12.04039889 | Q107: 0 | R107: 14.77998058 | S107: 0.8737913041 | T107: 0.25 | U107: 1.20825212 | V107: 1.535521415 | W107: 0.002357826015 | X107: 0.002357826015 | Y107: 7.17791123 | Z107: 0.05152240962 | AA107: 0.05152240962 | AB107: 9.123868867 | AC107: 0.3746024239 | AD107: 0.1401384821 | AE107: 0.06221205 | AF107: 0 | AG107: 0.6236793125 | AH107: 11.62767573 | AI107: 0.4934903767 | AJ107: 0.131712 | AK107: 0.6936658622 | AL107: 0.131712 | AM107: 0.068796 | AN107: 0.655343478 | AO107: 0.0004725 | AP107: 0.034 | AQ107: 0.0918 | AR107: 0.0578 | AS107: 0.0344725 | AT107: 3.469801508 | AU107: 73.5 | AV107: 0.9549199629 | AW107: 33.45423362 | AX107: 35.81842711 | AZ107: 95.49199629 | BA107: 1.20825212 | BB107: 1.386141175 | BC107: 0.6690846725 | BD107: 0.7163685422 | BE107: 0.655343478
G108: 99 | H108: 13.5 | I108: 1 | J108: 14.85 | K108: 14.85 | L108: 6.111111111 | M108: 0.3811838705 | N108: 5.319913276 | O108: 17.50995664 | P108: 12.19004336 | Q108: 0 | R108: 14.92919812 | S108: 0.8915238258 | T108: 0.25 | U108: 1.229192153 | V108: 1.535726681 | W108: 0.002358456438 | X108: 0.002358456438 | Y108: 7.250777054 | Z108: 0.05257376788 | AA108: 0.05257376788 | AB108: 9.217300344 | AC108: 0.3823138154 | AD108: 0.1415684666 | AE108: 0.06221205 | AF108: 0 | AG108: 0.6346190587 | AH108: 11.74403384 | AI108: 0.5034165074 | AJ108: 0.133056 | AK108: 0.7077289997 | AL108: 0.133056 | AM108: 0.069498 | AN108: 0.6686428693 | AO108: 0.0004725 | AP108: 0.034 | AQ108: 0.0918 | AR108: 0.0578 | AS108: 0.0344725 | AT108: 3.532141805 | AU108: 74.25 | AV108: 0.9545892962 | AW108: 34.02438694 | AX108: 36.53316698 | AZ108: 95.45892962 | BA108: 1.229192153 | BB108: 1.411846058 | BC108: 0.6804877387 | BD108: 0.7306633397 | BE108: 0.6686428693
G109: 100 | H109: 13.5 | I109: 1 | J109: 15 | K109: 15 | L109: 6.172839506 | M109: 0.3812928375 | N109: 5.320623803 | O109: 17.6603119 | P109: 12.3396881 | Q109: 0 | R109: 15.07843117 | S109: 0.9094363459 | T109: 0.25 | U109: 1.250409795 | V109: 1.535931792 | W109: 0.002359086471 | X109: 0.002359086471 | Y109: 7.323657963 | Z109: 0.05363596596 | AA109: 0.05363596596 | AB109: 9.310767488 | AC109: 0.3901067604 | AD109: 0.1429984511 | AE109: 0.06221205 | AF109: 0 | AG109: 0.6456952804 | AH109: 11.86038344 | AI109: 0.5134407377 | AJ109: 0.1344 | AK109: 0.7219794723 | AL109: 0.1344 | AM109: 0.0702 | AN109: 0.6820772594 | AO109: 0.0004725 | AP109: 0.034 | AQ109: 0.0918 | AR109: 0.0578 | AS109: 0.0344725 | AT109: 3.59522936 | AU109: 75 | AV109: 0.954256392 | AW109: 34.60136402 | AX109: 37.25727361 | AZ109: 95.4256392 | BA109: 1.250409795 | BB109: 1.437874753 | BC109: 0.6920272804 | BD109: 0.7451454723 | BE109: 0.6820772594

Sheet Efficiency Plot Management (hidden)
A2: =IF(PLOT_TYPE=1, "EFF_Ch1", "EFF_Ch2") -> EFF_Ch1

Sheet Schematic Management (hidden)
N1: 3.3V or 5V fixed (FB1/2)
A2: =IF(DITHER=1, CHOOSE(SCH_SETTING, "SCH_ADJ_VOUT", "SCH_5V_FIXED", "SCH_3V3_FIXED", "SCH_ADJ_VOUT_NO_RT", "SCH_5V_FIXED_NO_RT", "SCH_3V3_FIXED_NO_RT"), CHOOSE(SCH_SETTING, "SCH_ADJ_VOUT_NO_DITH", "SCH_5V_FIXED_NO_DITH", "SCH_3V3_FIXED_NO_DITH", "SCH_ADJ_VOUT_NO_RT_NO_DITH", "SCH_5V_FIXED_NO_RT_NO_DITH", "SCH_3V3_FIXED_NO_RT_NO_DITH")) -> SCH_5V_FIXED | J2: With/without dither (DITH) | N2: With/without VOUT connected to VCCX
J3: FPWM or DEM (DEMB)
J4: Shunt or inductor DCR current sensing

Sheet Standard Value Calculator (hidden)
A2: Capacitors | B2: Css | C2: Cc1ea | D2: Cc2ea | E2: Cout | F2: Cin | G2: Cres | H2: Cdither | I2: Cc3ea | J2: Cc4ea
A3: Inputs | B3: =Css -> 4.583333333e-08 | C3: =Cc1ea -> 6.6222996e-09 | D3: =Cc2ea -> 1.668379993e-10 | E3: =Cout -> 8.5e-05 | F3: =Cin -> 1.8e-05 | G3: =Cres -> 5e-08 | H3: =Cdither_init -> 9.259259259e-09 | I3: =Cc3ea -> 0 | J3: =Cc4ea -> 0 | M3: Resistors | N3: inputs | O3: Standard Result
A4: Standard Result | B4: =SUM(B6:B158)/1000000000000 -> 4.7e-08 | C4: =IF(C3="OPEN","OPEN",SUM(C6:C158)/1000000000000) -> 6.8e-09 | D4: =SUM(D6:D158)/1000000000000 -> 1.8e-10 | E4: =SUM(E6:E158)/1000000000000 -> 8.2e-05 | F4: =SUM(F6:F158)/1000000000000 -> 1.8e-05 | G4: =SUM(G6:G158)/1000000000000 -> 4.7e-08 | H4: =IF(H3="OPEN","OPEN",SUM(H6:H158)/1000000000000) -> 1e-08 | I4: 0 | J4: 0 | M4: Rt | N4: =Rfadj -> 54.9 | O4: =IF(N4>(INT(0.5+100*POWER(10,IF(96*(LOG(N4)-INT(LOG(N4)))-ROUND(96*(LOG(N4)-INT(LOG(N4))),0)<0,ROUND(96*(LOG(N4)-INT(LOG(N4))),0)-1,ROUND(96*(LOG(N4)-INT(LOG(N4))),0))/96))*POWER(10,INT(LOG(N4))-2)+INT(0.5+100*POWER(10,(IF(96*(LOG(N4)-INT(LOG(N4)))-ROUND(96*(LOG(N4)-INT(LOG(N4))),0)<0,ROUND(96*(LOG(N4)-INT(LOG(N4))),0)-1,ROUND(96*(LOG(N4)-INT(LOG(N4))),0))+1)/96))*POWER(10,INT(LOG(N4))-2))/2,INT(0.5+100*POWER(10,(IF(96*(LOG(N4)-INT(LOG(N4)))-ROUND(96*(LOG(N4)-INT(LOG(N4))),0)<0,ROUND(96*(LOG(N4)-INT(LOG(N4))),0)-1,ROUND(96*(LOG(N4)-INT(LOG(N4))),0))+1)/96))*POWER(10,INT(LOG(N4))-2),INT(0.5+100*POWER(10,IF(96*(LOG(N4)-INT(LOG(N4)))-ROUND(96*(LOG(N4)-INT(LOG(N4))),0)<0,ROUND(96*(LOG(N4)-INT(LOG(N4))),0)-1,ROUND(96*(LOG(N4)-INT(LOG(N4))),0))/96))*POWER(10,INT(LOG(N4))-2)) -> 54.9 | P4: Ω
A5: (pF)
A6: 0.47 | B6: =IF(IF((B$3*10^12-$A7)*(B$3*10^12-$A6)*-1<0,0,1)*IF(ABS(B$3*10^12-$A7)>(B$3*10^12-$A6),$A6,$A7)=B7,0,IF((B$3*10^12-$A7)*(B$3*10^12-$A6)*-1<0,0,1)*IF(ABS(B$3*10^12-$A7)>(B$3*10^12-$A6),$A6,$A7)) -> 0 | C6: 0 | D6: 0 | E6: 0 | F6: 0 | G6: 0 | H6: 0 | I6: 0 | J6: 0
A7: 0.56 | B7: =IF(IF((B$3*10^12-$A8)*(B$3*10^12-$A7)*-1<0,0,1)*IF(ABS(B$3*10^12-$A8)>(B$3*10^12-$A7),$A7,$A8)=B8,0,IF((B$3*10^12-$A8)*(B$3*10^12-$A7)*-1<0,0,1)*IF(ABS(B$3*10^12-$A8)>(B$3*10^12-$A7),$A7,$A8)) -> 0 | C7: =IF(IF((C$3*10^12-$A8)*(C$3*10^12-$A7)*-1<0,0,1)*IF(ABS(C$3*10^12-$A8)>(C$3*10^12-$A7),$A7,$A8)=C8,0,IF((C$3*10^12-$A8)*(C$3*10^12-$A7)*-1<0,0,1)*IF(ABS(C$3*10^12-$A8)>(C$3*10^12-$A7),$A7,$A8)) -> 0 | D7: =IF(IF((D$3*10^12-$A8)*(D$3*10^12-$A7)*-1<0,0,1)*IF(ABS(D$3*10^12-$A8)>(D$3*10^12-$A7),$A7,$A8)=D8,0,IF((D$3*10^12-$A8)*(D$3*10^12-$A7)*-1<0,0,1)*IF(ABS(D$3*10^12-$A8)>(D$3*10^12-$A7),$A7,$A8)) -> 0 | E7: =IF(IF((E$3*10^12-$A8)*(E$3*10^12-$A7)*-1<0,0,1)*IF(ABS(E$3*10^12-$A8)>(E$3*10^12-$A7),$A7,$A8)=E8,0,IF((E$3*10^12-$A8)*(E$3*10^12-$A7)*-1<0,0,1)*IF(ABS(E$3*10^12-$A8)>(E$3*10^12-$A7),$A7,$A8)) -> 0 | F7: =IF(IF((F$3*10^12-$A8)*(F$3*10^12-$A7)*-1<0,0,1)*IF(ABS(F$3*10^12-$A8)>(F$3*10^12-$A7),$A7,$A8)=F8,0,IF((F$3*10^12-$A8)*(F$3*10^12-$A7)*-1<0,0,1)*IF(ABS(F$3*10^12-$A8)>(F$3*10^12-$A7),$A7,$A8)) -> 0 | G7: =IF(IF((G$3*10^12-$A8)*(G$3*10^12-$A7)*-1<0,0,1)*IF(ABS(G$3*10^12-$A8)>(G$3*10^12-$A7),$A7,$A8)=G8,0,IF((G$3*10^12-$A8)*(G$3*10^12-$A7)*-1<0,0,1)*IF(ABS(G$3*10^12-$A8)>(G$3*10^12-$A7),$A7,$A8)) -> 0 | H7: 0 | I7: 0 | J7: 0 | M7: Rc1ea | N7: =Rcea1 -> 4005.530629 | O7: 4020 | P7: Ω
A8: 0.68 | B8: 0 | C8: 0 | D8: 0 | E8: 0 | F8: 0 | G8: 0 | H8: 0 | I8: 0 | J8: 0 | M8: Rc1ea | N8: =Rcea2 -> 0 | O8: =IF(N8>(INT(0.5+100*POWER(10,IF(96*(LOG(N8)-INT(LOG(N8)))-ROUND(96*(LOG(N8)-INT(LOG(N8))),0)<0,ROUND(96*(LOG(N8)-INT(LOG(N8))),0)-1,ROUND(96*(LOG(N8)-INT(LOG(N8))),0))/96))*POWER(10,INT(LOG(N8))-2)+INT(0.5+100*POWER(10,(IF(96*(LOG(N8)-INT(LOG(N8)))-ROUND(96*(LOG(N8)-INT(LOG(N8))),0)<0,ROUND(96*(LOG(N8)-INT(LOG(N8))),0)-1,ROUND(96*(LOG(N8)-INT(LOG(N8))),0))+1)/96))*POWER(10,INT(LOG(N8))-2))/2,INT(0.5+100*POWER(10,(IF(96*(LOG(N8)-INT(LOG(N8)))-ROUND(96*(LOG(N8)-INT(LOG(N8))),0)<0,ROUND(96*(LOG(N8)-INT(LOG(N8))),0)-1,ROUND(96*(LOG(N8)-INT(LOG(N8))),0))+1)/96))*POWER(10,INT(LOG(N8))-2),INT(0.5+100*POWER(10,IF(96*(LOG(N8)-INT(LOG(N8)))-ROUND(96*(LOG(N8)-INT(LOG(N8))),0)<0,ROUND(96*(LOG(N8)-INT(LOG(N8))),0)-1,ROUND(96*(LOG(N8)-INT(LOG(N8))),0))/96))*POWER(10,INT(LOG(N8))-2)) ->  | P8: Ω
A9: 0.82 | B9: 0 | C9: 0 | D9: 0 | E9: 0 | F9: 0 | G9: 0 | H9: 0 | I9: 0 | J9: 0
A10: 1 | B10: 0 | C10: 0 | D10: 0 | E10: 0 | F10: 0 | G10: 0 | H10: 0 | I10: 0 | J10: 0 | M10: Rfb1 | N10: =Rfb1_ -> 49900 | O10: =IF(N10>(INT(0.5+100*POWER(10,IF(96*(LOG(N10)-INT(LOG(N10)))-ROUND(96*(LOG(N10)-INT(LOG(N10))),0)<0,ROUND(96*(LOG(N10)-INT(LOG(N10))),0)-1,ROUND(96*(LOG(N10)-INT(LOG(N10))),0))/96))*POWER(10,INT(LOG(N10))-2)+INT(0.5+100*POWER(10,(IF(96*(LOG(N10)-INT(LOG(N10)))-ROUND(96*(LOG(N10)-INT(LOG(N10))),0)<0,ROUND(96*(LOG(N10)-INT(LOG(N10))),0)-1,ROUND(96*(LOG(N10)-INT(LOG(N10))),0))+1)/96))*POWER(10,INT(LOG(N10))-2))/2,INT(0.5+100*POWER(10,(IF(96*(LOG(N10)-INT(LOG(N10)))-ROUND(96*(LOG(N10)-INT(LOG(N10))),0)<0,ROUND(96*(LOG(N10)-INT(LOG(N10))),0)-1,ROUND(96*(LOG(N10)-INT(LOG(N10))),0))+1)/96))*POWER(10,INT(LOG(N10))-2),INT(0.5+100*POWER(10,IF(96*(LOG(N10)-INT(LOG(N10)))-ROUND(96*(LOG(N10)-INT(LOG(N10))),0)<0,ROUND(96*(LOG(N10)-INT(LOG(N10))),0)-1,ROUND(96*(LOG(N10)-INT(LOG(N10))),0))/96))*POWER(10,INT(LOG(N10))-2)) -> 49900 | P10: Ω
A11: 1.2 | B11: 0 | C11: 0 | D11: 0 | E11: 0 | F11: 0 | G11: 0 | H11: 0 | I11: 0 | J11: 0 | M11: Rfb2 | N11: =Rfb2_ -> 15757.89474 | O11: =IF(N11="OPEN","OPEN",IF(N11>(INT(0.5+100*POWER(10,IF(96*(LOG(N11)-INT(LOG(N11)))-ROUND(96*(LOG(N11)-INT(LOG(N11))),0)<0,ROUND(96*(LOG(N11)-INT(LOG(N11))),0)-1,ROUND(96*(LOG(N11)-INT(LOG(N11))),0))/96))*POWER(10,INT(LOG(N11))-2)+INT(0.5+100*POWER(10,(IF(96*(LOG(N11)-INT(LOG(N11)))-ROUND(96*(LOG(N11)-INT(LOG(N11))),0)<0,ROUND(96*(LOG(N11)-INT(LOG(N11))),0)-1,ROUND(96*(LOG(N11)-INT(LOG(N11))),0))+1)/96))*POWER(10,INT(LOG(N11))-2))/2,INT(0.5+100*POWER(10,(IF(96*(LOG(N11)-INT(LOG(N11)))-ROUND(96*(LOG(N11)-INT(LOG(N11))),0)<0,ROUND(96*(LOG(N11)-INT(LOG(N11))),0)-1,ROUND(96*(LOG(N11)-INT(LOG(N11))),0))+1)/96))*POWER(10,INT(LOG(N11))-2),INT(0.5+100*POWER(10,IF(96*(LOG(N11)-INT(LOG(N11)))-ROUND(96*(LOG(N11)-INT(LOG(N11))),0)<0,ROUND(96*(LOG(N11)-INT(LOG(N11))),0)-1,ROUND(96*(LOG(N11)-INT(LOG(N11))),0))/96))*POWER(10,INT(LOG(N11))-2))) -> 15800 | P11: Ω
A12: 1.5 | B12: 0 | C12: 0 | D12: 0 | E12: 0 | F12: 0 | G12: 0 | H12: 0 | I12: 0 | J12: 0 | M12: Rt1 | N12: ='Variable Management'!B27*1000 -> 288186.0465 | O12: =IF(N12>(INT(0.5+100*POWER(10,IF(96*(LOG(N12)-INT(LOG(N12)))-ROUND(96*(LOG(N12)-INT(LOG(N12))),0)<0,ROUND(96*(LOG(N12)-INT(LOG(N12))),0)-1,ROUND(96*(LOG(N12)-INT(LOG(N12))),0))/96))*POWER(10,INT(LOG(N12))-2)+INT(0.5+100*POWER(10,(IF(96*(LOG(N12)-INT(LOG(N12)))-ROUND(96*(LOG(N12)-INT(LOG(N12))),0)<0,ROUND(96*(LOG(N12)-INT(LOG(N12))),0)-1,ROUND(96*(LOG(N12)-INT(LOG(N12))),0))+1)/96))*POWER(10,INT(LOG(N12))-2))/2,INT(0.5+100*POWER(10,(IF(96*(LOG(N12)-INT(LOG(N12)))-ROUND(96*(LOG(N12)-INT(LOG(N12))),0)<0,ROUND(96*(LOG(N12)-INT(LOG(N12))),0)-1,ROUND(96*(LOG(N12)-INT(LOG(N12))),0))+1)/96))*POWER(10,INT(LOG(N12))-2),INT(0.5+100*POWER(10,IF(96*(LOG(N12)-INT(LOG(N12)))-ROUND(96*(LOG(N12)-INT(LOG(N12))),0)<0,ROUND(96*(LOG(N12)-INT(LOG(N12))),0)-1,ROUND(96*(LOG(N12)-INT(LOG(N12))),0))/96))*POWER(10,INT(LOG(N12))-2)) -> 287000 | P12: Ω
A13: 1.8 | B13: 0 | C13: 0 | D13: 0 | E13: 0 | F13: 0 | G13: 0 | H13: 0 | I13: 0 | J13: 0 | M13: Rt2 | N13: ='Variable Management'!B28*1000 -> 55248.88889 | O13: =IF(N13="OPEN","OPEN",IF(N13>(INT(0.5+100*POWER(10,IF(96*(LOG(N13)-INT(LOG(N13)))-ROUND(96*(LOG(N13)-INT(LOG(N13))),0)<0,ROUND(96*(LOG(N13)-INT(LOG(N13))),0)-1,ROUND(96*(LOG(N13)-INT(LOG(N13))),0))/96))*POWER(10,INT(LOG(N13))-2)+INT(0.5+100*POWER(10,(IF(96*(LOG(N13)-INT(LOG(N13)))-ROUND(96*(LOG(N13)-INT(LOG(N13))),0)<0,ROUND(96*(LOG(N13)-INT(LOG(N13))),0)-1,ROUND(96*(LOG(N13)-INT(LOG(N13))),0))+1)/96))*POWER(10,INT(LOG(N13))-2))/2,INT(0.5+100*POWER(10,(IF(96*(LOG(N13)-INT(LOG(N13)))-ROUND(96*(LOG(N13)-INT(LOG(N13))),0)<0,ROUND(96*(LOG(N13)-INT(LOG(N13))),0)-1,ROUND(96*(LOG(N13)-INT(LOG(N13))),0))+1)/96))*POWER(10,INT(LOG(N13))-2),INT(0.5+100*POWER(10,IF(96*(LOG(N13)-INT(LOG(N13)))-ROUND(96*(LOG(N13)-INT(LOG(N13))),0)<0,ROUND(96*(LOG(N13)-INT(LOG(N13))),0)-1,ROUND(96*(LOG(N13)-INT(LOG(N13))),0))/96))*POWER(10,INT(LOG(N13))-2))) -> 54900 | P13: Ω
A14: 2.2 | B14: =IF(IF((B$3*10^12-$A15)*(B$3*10^12-$A14)*-1<0,0,1)*IF(ABS(B$3*10^12-$A15)>(B$3*10^12-$A14),$A14,$A15)=B15,0,IF((B$3*10^12-$A15)*(B$3*10^12-$A14)*-1<0,0,1)*IF(ABS(B$3*10^12-$A15)>(B$3*10^12-$A14),$A14,$A15)) -> 0 | C14: 0 | D14: 0 | E14: 0 | F14: 0 | G14: 0 | H14: 0 | I14: 0 | J14: 0
A15: 2.7 | B15: 0 | C15: 0 | D15: 0 | E15: 0 | F15: 0 | G15: 0 | H15: 0 | I15: 0 | J15: 0
A16: 3.3 | B16: 0 | C16: 0 | D16: 0 | E16: 0 | F16: 0 | G16: 0 | H16: 0 | I16: 0 | J16: 0 | M16: Rs | N16: =Rs_ideal*1000 -> 3.308388007 | O16: =IF(N16=0,0,IF(N16>(INT(0.5+100*POWER(10,IF(96*(LOG(N16)-INT(LOG(N16)))-ROUND(96*(LOG(N16)-INT(LOG(N16))),0)<0,ROUND(96*(LOG(N16)-INT(LOG(N16))),0)-1,ROUND(96*(LOG(N16)-INT(LOG(N16))),0))/96))*POWER(10,INT(LOG(N16))-2)+INT(0.5+100*POWER(10,(IF(96*(LOG(N16)-INT(LOG(N16)))-ROUND(96*(LOG(N16)-INT(LOG(N16))),0)<0,ROUND(96*(LOG(N16)-INT(LOG(N16))),0)-1,ROUND(96*(LOG(N16)-INT(LOG(N16))),0))+1)/96))*POWER(10,INT(LOG(N16))-2))/2,INT(0.5+100*POWER(10,(IF(96*(LOG(N16)-INT(LOG(N16)))-ROUND(96*(LOG(N16)-INT(LOG(N16))),0)<0,ROUND(96*(LOG(N16)-INT(LOG(N16))),0)-1,ROUND(96*(LOG(N16)-INT(LOG(N16))),0))+1)/96))*POWER(10,INT(LOG(N16))-2),INT(0.5+100*POWER(10,IF(96*(LOG(N16)-INT(LOG(N16)))-ROUND(96*(LOG(N16)-INT(LOG(N16))),0)<0,ROUND(96*(LOG(N16)-INT(LOG(N16))),0)-1,ROUND(96*(LOG(N16)-INT(LOG(N16))),0))/96))*POWER(10,INT(LOG(N16))-2))) -> 3.32 | P16: mΩ
A17: 3.9 | B17: 0 | C17: 0 | D17: 0 | E17: 0 | F17: 0 | G17: 0 | H17: 0 | I17: 0 | J17: 0 | M17: Cres | N17: =Cres -> 5e-08 | O17: =G4*1000000000000 -> 47000 | P17: pF
A18: 4.7 | B18: 0 | C18: 0 | D18: 0 | E18: 0 | F18: 0 | G18: 0 | H18: 0 | I18: 0 | J18: 0
A19: 5.6 | B19: 0 | C19: 0 | D19: 0 | E19: 0 | F19: 0 | G19: 0 | H19: 0 | I19: 0 | J19: 0
A20: 6.8 | B20: 0 | C20: 0 | D20: 0 | E20: 0 | F20: 0 | G20: 0 | H20: 0 | I20: 0 | J20: 0
A21: 8.2 | B21: 0 | C21: 0 | D21: 0 | E21: 0 | F21: 0 | G21: 0 | H21: 0 | I21: 0 | J21: 0
A22: 10 | B22: 0 | C22: 0 | D22: 0 | E22: 0 | F22: 0 | G22: 0 | H22: 0 | I22: 0 | J22: 0 | M22: Cdither | N22: =Cdither_init -> 9.259259259e-09 | O22: =H4 -> 1e-08
A23: 12 | B23: 0 | C23: 0 | D23: 0 | E23: 0 | F23: 0 | G23: 0 | H23: 0 | I23: 0 | J23: 0
A24: 15 | B24: 0 | C24: 0 | D24: 0 | E24: 0 | F24: 0 | G24: 0 | H24: 0 | I24: 0 | J24: 0
A25: 18 | B25: 0 | C25: 0 | D25: 0 | E25: 0 | F25: 0 | G25: 0 | H25: 0 | I25: 0 | J25: 0
A26: 22 | B26: 0 | C26: 0 | D26: 0 | E26: 0 | F26: 0 | G26: 0 | H26: 0 | I26: 0 | J26: 0
A27: 27 | B27: 0 | C27: 0 | D27: 0 | E27: 0 | F27: 0 | G27: 0 | H27: 0 | I27: 0 | J27: 0
A28: 33 | B28: 0 | C28: 0 | D28: 0 | E28: 0 | F28: 0 | G28: 0 | H28: 0 | I28: 0 | J28: 0
A29: 39 | B29: 0 | C29: 0 | D29: 0 | E29: 0 | F29: 0 | G29: 0 | H29: 0 | I29: 0 | J29: 0
A30: 47 | B30: 0 | C30: 0 | D30: 0 | E30: 0 | F30: 0 | G30: 0 | H30: 0 | I30: 0 | J30: 0 | M30: Rc1 | N30: =O7/1000&" kΩ" -> 4.02 kΩ | O30: =O7/1000 -> 4.02 | P30: kΩ
A31: 56 | B31: 0 | C31: 0 | D31: 0 | E31: 0 | F31: 0 | G31: 0 | H31: 0 | I31: 0 | J31: 0 | M31: Cc1 | N31: =C4*1000000000&" nF" -> 6.8 nF | O31: =C4*1000000000 -> 6.8 | P31: nF
A32: 68 | B32: 0 | C32: 0 | D32: 0 | E32: 0 | F32: 0 | G32: 0 | H32: 0 | I32: 0 | J32: 0 | M32: Cc2 | N32: =D4*1000000000000&" pF" -> 180 pF | O32: =D4*1000000000000 -> 180 | P32: pF
A33: 82 | B33: 0 | C33: 0 | D33: 0 | E33: 0 | F33: 0 | G33: 0 | H33: 0 | I33: 0 | J33: 0
A34: =A22*10 -> 100 | B34: 0 | C34: 0 | D34: 0 | E34: 0 | F34: 0 | G34: 0 | H34: 0 | I34: 0 | J34: 0 | M34: Rc2 | N34: =O8/1000&" kΩ" ->  | O34: =O8/1000 ->  | P34: kΩ
A35: =A23*10 -> 120 | B35: 0 | C35: 0 | D35: 0 | E35: 0 | F35: 0 | G35: 0 | H35: 0 | I35: 0 | J35: 0 | M35: Cc3 | N35: =I4*1000000000&" nF" -> 0 nF | O35: =I4*1000000000 -> 0 | P35: nF
A36: 150 | B36: 0 | C36: 0 | D36: 180 | E36: 0 | F36: 0 | G36: 0 | H36: 0 | I36: 0 | J36: 0 | M36: Cc4 | N36: =J4*1000000000000&" pF" -> 0 pF | O36: =J4*1000000000000 -> 0 | P36: pF
A37: 180 | B37: 0 | C37: 0 | D37: 0 | E37: 0 | F37: 0 | G37: 0 | H37: 0 | I37: 0 | J37: 0
A38: 220 | B38: 0 | C38: 0 | D38: 0 | E38: 0 | F38: 0 | G38: 0 | H38: 0 | I38: 0 | J38: 0
A39: 270 | B39: 0 | C39: =IF(IF((C$3*10^12-$A40)*(C$3*10^12-$A39)*-1<0,0,1)*IF(ABS(C$3*10^12-$A40)>(C$3*10^12-$A39),$A39,$A40)=C40,0,IF((C$3*10^12-$A40)*(C$3*10^12-$A39)*-1<0,0,1)*IF(ABS(C$3*10^12-$A40)>(C$3*10^12-$A39),$A39,$A40)) -> 0 | D39: 0 | E39: 0 | F39: 0 | G39: 0 | H39: 0 | I39: 0 | J39: 0
A40: 330 | B40: 0 | C40: 0 | D40: 0 | E40: 0 | F40: 0 | G40: 0 | H40: 0 | I40: 0 | J40: 0
A41: 390 | B41: 0 | C41: 0 | D41: 0 | E41: 0 | F41: 0 | G41: 0 | H41: 0 | I41: 0 | J41: 0
A42: 470 | B42: 0 | C42: 0 | D42: 0 | E42: 0 | F42: 0 | G42: 0 | H42: 0 | I42: 0 | J42: 0
A43: 560 | B43: 0 | C43: 0 | D43: 0 | E43: 0 | F43: 0 | G43: 0 | H43: 0 | I43: 0 | J43: 0
A44: 680 | B44: 0 | C44: 0 | D44: 0 | E44: 0 | F44: 0 | G44: 0 | H44: 0 | I44: 0 | J44: 0
A45: =A33*10 -> 820 | B45: 0 | C45: 0 | D45: 0 | E45: 0 | F45: 0 | G45: 0 | H45: 0 | I45: 0 | J45: 0
A46: 1000 | B46: 0 | C46: 0 | D46: 0 | E46: 0 | F46: 0 | G46: 0 | H46: 0 | I46: 0 | J46: 0
A47: 1200 | B47: 0 | C47: 0 | D47: 0 | E47: 0 | F47: 0 | G47: 0 | H47: 0 | I47: 0 | J47: 0
A48: 1500 | B48: 0 | C48: 0 | D48: 0 | E48: 0 | F48: 0 | G48: 0 | H48: 0 | I48: 0 | J48: 0
A49: 1800 | B49: 0 | C49: 0 | D49: 0 | E49: 0 | F49: 0 | G49: 0 | H49: 0 | I49: 0 | J49: 0
A50: 2200 | B50: 0 | C50: 0 | D50: 0 | E50: 0 | F50: 0 | G50: 0 | H50: 0 | I50: 0 | J50: 0
A51: 2700 | B51: 0 | C51: 0 | D51: 0 | E51: 0 | F51: 0 | G51: 0 | H51: 0 | I51: 0 | J51: 0
A52: 3300 | B52: 0 | C52: 0 | D52: 0 | E52: 0 | F52: 0 | G52: 0 | H52: 0 | I52: 0 | J52: 0
A53: 3900 | B53: 0 | C53: 0 | D53: 0 | E53: 0 | F53: 0 | G53: 0 | H53: 0 | I53: 0 | J53: 0
A54: 4700 | B54: 0 | C54: 0 | D54: 0 | E54: 0 | F54: 0 | G54: 0 | H54: 0 | I54: 0 | J54: 0
A55: 5600 | B55: 0 | C55: 6800 | D55: 0 | E55: 0 | F55: 0 | G55: 0 | H55: 0 | I55: 0 | J55: 0
A56: 6800 | B56: 0 | C56: 0 | D56: 0 | E56: 0 | F56: 0 | G56: 0 | H56: 0 | I56: 0 | J56: 0
A57: 8200 | B57: 0 | C57: 0 | D57: 0 | E57: 0 | F57: 0 | G57: 0 | H57: 10000 | I57: 0 | J57: 0
A58: 10000 | B58: 0 | C58: 0 | D58: 0 | E58: 0 | F58: 0 | G58: 0 | H58: 0 | I58: 0 | J58: 0
A59: 12000 | B59: 0 | C59: 0 | D59: 0 | E59: 0 | F59: 0 | G59: 0 | H59: 0 | I59: 0 | J59: 0
A60: 15000 | B60: 0 | C60: 0 | D60: 0 | E60: 0 | F60: 0 | G60: 0 | H60: 0 | I60: 0 | J60: 0
A61: 18000 | B61: 0 | C61: 0 | D61: 0 | E61: 0 | F61: 0 | G61: 0 | H61: 0 | I61: 0 | J61: 0
A62: 22000 | B62: 0 | C62: 0 | D62: 0 | E62: 0 | F62: 0 | G62: 0 | H62: 0 | I62: 0 | J62: 0
A63: 27000 | B63: 0 | C63: 0 | D63: 0 | E63: 0 | F63: 0 | G63: 0 | H63: 0 | I63: 0 | J63: 0
A64: 33000 | B64: 0 | C64: 0 | D64: 0 | E64: 0 | F64: 0 | G64: 0 | H64: 0 | I64: 0 | J64: 0
A65: 39000 | B65: 47000 | C65: 0 | D65: 0 | E65: 0 | F65: 0 | G65: 0 | H65: 0 | I65: 0 | J65: 0
A66: 47000 | B66: 0 | C66: 0 | D66: 0 | E66: 0 | F66: 0 | G66: 47000 | H66: 0 | I66: 0 | J66: 0
A67: 56000 | B67: 0 | C67: 0 | D67: 0 | E67: 0 | F67: 0 | G67: 0 | H67: 0 | I67: 0 | J67: 0
A68: 68000 | B68: 0 | C68: 0 | D68: 0 | E68: 0 | F68: 0 | G68: 0 | H68: 0 | I68: 0 | J68: 0
A69: 82000 | B69: 0 | C69: 0 | D69: 0 | E69: 0 | F69: 0 | G69: 0 | H69: 0 | I69: 0 | J69: =IF(IF((J$3*10^12-$A70)*(J$3*10^12-$A69)*-1<0,0,1)*IF(ABS(J$3*10^12-$A70)>(J$3*10^12-$A69),$A69,$A70)=J70,0,IF((J$3*10^12-$A70)*(J$3*10^12-$A69)*-1<0,0,1)*IF(ABS(J$3*10^12-$A70)>(J$3*10^12-$A69),$A69,$A70)) -> 0
A70: 100000 | B70: 0 | C70: 0 | D70: =IF(IF((D$3*10^12-$A71)*(D$3*10^12-$A70)*-1<0,0,1)*IF(ABS(D$3*10^12-$A71)>(D$3*10^12-$A70),$A70,$A71)=D71,0,IF((D$3*10^12-$A71)*(D$3*10^12-$A70)*-1<0,0,1)*IF(ABS(D$3*10^12-$A71)>(D$3*10^12-$A70),$A70,$A71)) -> 0 | E70: 0 | F70: 0 | G70: 0 | H70: 0 | I70: 0 | J70: 0
A71: 120000 | B71: =IF(IF((B$3*10^12-$A72)*(B$3*10^12-$A71)*-1<0,0,1)*IF(ABS(B$3*10^12-$A72)>(B$3*10^12-$A71),$A71,$A72)=B72,0,IF((B$3*10^12-$A72)*(B$3*10^12-$A71)*-1<0,0,1)*IF(ABS(B$3*10^12-$A72)>(B$3*10^12-$A71),$A71,$A72)) -> 0 | C71: =IF(IF((C$3*10^12-$A72)*(C$3*10^12-$A71)*-1<0,0,1)*IF(ABS(C$3*10^12-$A72)>(C$3*10^12-$A71),$A71,$A72)=C72,0,IF((C$3*10^12-$A72)*(C$3*10^12-$A71)*-1<0,0,1)*IF(ABS(C$3*10^12-$A72)>(C$3*10^12-$A71),$A71,$A72)) -> 0 | D71: 0 | E71: 0 | F71: =IF(IF((F$3*10^12-$A72)*(F$3*10^12-$A71)*-1<0,0,1)*IF(ABS(F$3*10^12-$A72)>(F$3*10^12-$A71),$A71,$A72)=F72,0,IF((F$3*10^12-$A72)*(F$3*10^12-$A71)*-1<0,0,1)*IF(ABS(F$3*10^12-$A72)>(F$3*10^12-$A71),$A71,$A72)) -> 0 | G71: =IF(IF((G$3*10^12-$A72)*(G$3*10^12-$A71)*-1<0,0,1)*IF(ABS(G$3*10^12-$A72)>(G$3*10^12-$A71),$A71,$A72)=G72,0,IF((G$3*10^12-$A72)*(G$3*10^12-$A71)*-1<0,0,1)*IF(ABS(G$3*10^12-$A72)>(G$3*10^12-$A71),$A71,$A72)) -> 0 | H71: =IF(IF((H$3*10^12-$A72)*(H$3*10^12-$A71)*-1<0,0,1)*IF(ABS(H$3*10^12-$A72)>(H$3*10^12-$A71),$A71,$A72)=H72,0,IF((H$3*10^12-$A72)*(H$3*10^12-$A71)*-1<0,0,1)*IF(ABS(H$3*10^12-$A72)>(H$3*10^12-$A71),$A71,$A72)) -> 0 | I71: =IF(IF((I$3*10^12-$A72)*(I$3*10^12-$A71)*-1<0,0,1)*IF(ABS(I$3*10^12-$A72)>(I$3*10^12-$A71),$A71,$A72)=I72,0,IF((I$3*10^12-$A72)*(I$3*10^12-$A71)*-1<0,0,1)*IF(ABS(I$3*10^12-$A72)>(I$3*10^12-$A71),$A71,$A72)) -> 0 | J71: 0
A72: 150000 | B72: 0 | C72: 0 | D72: 0 | E72: 0 | F72: 0 | G72: 0 | H72: 0 | I72: 0 | J72: 0
A73: 180000 | B73: 0 | C73: 0 | D73: 0 | E73: 0 | F73: 0 | G73: 0 | H73: 0 | I73: 0 | J73: 0
A74: 220000 | B74: 0 | C74: 0 | D74: 0 | E74: 0 | F74: 0 | G74: 0 | H74: 0 | I74: 0 | J74: 0
A75: 270000 | B75: 0 | C75: 0 | D75: 0 | E75: 0 | F75: 0 | G75: 0 | H75: 0 | I75: 0 | J75: 0
A76: 330000 | B76: 0 | C76: 0 | D76: 0 | E76: 0 | F76: 0 | G76: 0 | H76: 0 | I76: 0 | J76: 0
A77: 390000 | B77: 0 | C77: 0 | D77: 0 | E77: 0 | F77: 0 | G77: 0 | H77: 0 | I77: 0 | J77: 0
A78: 470000 | B78: 0 | C78: 0 | D78: 0 | E78: 0 | F78: 0 | G78: 0 | H78: 0 | I78: 0 | J78: 0
A79: 560000 | B79: 0 | C79: 0 | D79: 0 | E79: 0 | F79: 0 | G79: 0 | H79: 0 | I79: 0 | J79: 0
A80: 680000 | B80: 0 | C80: 0 | D80: 0 | E80: 0 | F80: 0 | G80: 0 | H80: 0 | I80: 0 | J80: 0
A81: 820000 | B81: 0 | C81: 0 | D81: 0 | E81: 0 | F81: 0 | G81: 0 | H81: 0 | I81: 0 | J81: 0
A82: 1000000 | B82: 0 | C82: 0 | D82: 0 | E82: 0 | F82: 0 | G82: 0 | H82: 0 | I82: 0 | J82: 0
A83: 1200000 | B83: 0 | C83: 0 | D83: 0 | E83: 0 | F83: 0 | G83: 0 | H83: 0 | I83: 0 | J83: 0
A84: 1500000 | B84: 0 | C84: 0 | D84: 0 | E84: 0 | F84: 0 | G84: 0 | H84: 0 | I84: 0 | J84: 0
A85: 1800000 | B85: 0 | C85: 0 | D85: 0 | E85: 0 | F85: 0 | G85: 0 | H85: 0 | I85: 0 | J85: 0
A86: 2200000 | B86: 0 | C86: 0 | D86: 0 | E86: 0 | F86: 0 | G86: 0 | H86: 0 | I86: 0 | J86: 0
A87: 2700000 | B87: 0 | C87: 0 | D87: 0 | E87: 0 | F87: 0 | G87: 0 | H87: 0 | I87: 0 | J87: 0
A88: 3300000 | B88: 0 | C88: 0 | D88: 0 | E88: 0 | F88: 0 | G88: 0 | H88: 0 | I88: 0 | J88: 0
A89: 3900000 | B89: 0 | C89: 0 | D89: 0 | E89: 0 | F89: 0 | G89: 0 | H89: 0 | I89: 0 | J89: 0
A90: 4700000 | B90: 0 | C90: 0 | D90: 0 | E90: 0 | F90: 0 | G90: 0 | H90: 0 | I90: 0 | J90: 0
A91: 5600000 | B91: 0 | C91: 0 | D91: 0 | E91: 0 | F91: 0 | G91: 0 | H91: 0 | I91: 0 | J91: 0
A92: 6800000 | B92: 0 | C92: 0 | D92: 0 | E92: 0 | F92: 0 | G92: 0 | H92: 0 | I92: 0 | J92: 0
A93: 8200000 | B93: 0 | C93: 0 | D93: 0 | E93: 0 | F93: 0 | G93: 0 | H93: 0 | I93: 0 | J93: 0
A94: 10000000 | B94: 0 | C94: 0 | D94: 0 | E94: 0 | F94: 0 | G94: 0 | H94: 0 | I94: 0 | J94: 0
A95: 12000000 | B95: 0 | C95: 0 | D95: 0 | E95: 0 | F95: 0 | G95: 0 | H95: 0 | I95: 0 | J95: 0
A96: 15000000 | B96: 0 | C96: 0 | D96: 0 | E96: 0 | F96: 0 | G96: 0 | H96: 0 | I96: 0 | J96: 0
A97: 18000000 | B97: 0 | C97: 0 | D97: 0 | E97: 0 | F97: 18000000 | G97: 0 | H97: 0 | I97: 0 | J97: 0
A98: 22000000 | B98: 0 | C98: 0 | D98: 0 | E98: 0 | F98: 0 | G98: 0 | H98: 0 | I98: 0 | J98: 0
A99: =A87*10 -> 27000000 | B99: 0 | C99: 0 | D99: 0 | E99: 0 | F99: 0 | G99: 0 | H99: 0 | I99: 0 | J99: 0
A100: 33000000 | B100: 0 | C100: 0 | D100: 0 | E100: 0 | F100: 0 | G100: 0 | H100: 0 | I100: 0 | J100: 0
A101: 39000000 | B101: 0 | C101: 0 | D101: 0 | E101: 0 | F101: 0 | G101: 0 | H101: 0 | I101: 0 | J101: 0
A102: 47000000 | B102: 0 | C102: 0 | D102: 0 | E102: 0 | F102: 0 | G102: 0 | H102: 0 | I102: 0 | J102: 0
A103: 56000000 | B103: 0 | C103: 0 | D103: 0 | E103: 0 | F103: =IF(IF((F$3*10^12-$A104)*(F$3*10^12-$A103)*-1<0,0,1)*IF(ABS(F$3*10^12-$A104)>(F$3*10^12-$A103),$A103,$A104)=F104,0,IF((F$3*10^12-$A104)*(F$3*10^12-$A103)*-1<0,0,1)*IF(ABS(F$3*10^12-$A104)>(F$3*10^12-$A103),$A103,$A104)) -> 0 | G103: =IF(IF((G$3*10^12-$A104)*(G$3*10^12-$A103)*-1<0,0,1)*IF(ABS(G$3*10^12-$A104)>(G$3*10^12-$A103),$A103,$A104)=G104,0,IF((G$3*10^12-$A104)*(G$3*10^12-$A103)*-1<0,0,1)*IF(ABS(G$3*10^12-$A104)>(G$3*10^12-$A103),$A103,$A104)) -> 0 | H103: =IF(IF((H$3*10^12-$A104)*(H$3*10^12-$A103)*-1<0,0,1)*IF(ABS(H$3*10^12-$A104)>(H$3*10^12-$A103),$A103,$A104)=H104,0,IF((H$3*10^12-$A104)*(H$3*10^12-$A103)*-1<0,0,1)*IF(ABS(H$3*10^12-$A104)>(H$3*10^12-$A103),$A103,$A104)) -> 0 | I103: =IF(IF((I$3*10^12-$A104)*(I$3*10^12-$A103)*-1<0,0,1)*IF(ABS(I$3*10^12-$A104)>(I$3*10^12-$A103),$A103,$A104)=I104,0,IF((I$3*10^12-$A104)*(I$3*10^12-$A103)*-1<0,0,1)*IF(ABS(I$3*10^12-$A104)>(I$3*10^12-$A103),$A103,$A104)) -> 0 | J103: 0
A104: 68000000 | B104: 0 | C104: 0 | D104: 0 | E104: 0 | F104: 0 | G104: 0 | H104: 0 | I104: 0 | J104: 0
A105: 82000000 | B105: 0 | C105: 0 | D105: 0 | E105: 82000000 | F105: 0 | G105: 0 | H105: 0 | I105: 0 | J105: 0
A106: 100000000 | B106: 0 | C106: 0 | D106: 0 | E106: 0 | F106: 0 | G106: 0 | H106: 0 | I106: 0 | J106: 0
A107: 120000000 | B107: 0 | C107: 0 | D107: 0 | E107: 0 | F107: 0 | G107: 0 | H107: 0 | I107: 0 | J107: 0
A108: 150000000 | B108: 0 | C108: 0 | D108: 0 | E108: 0 | F108: 0 | G108: 0 | H108: 0 | I108: 0 | J108: 0
A109: 180000000 | B109: 0 | C109: 0 | D109: 0 | E109: 0 | F109: 0 | G109: 0 | H109: 0 | I109: 0 | J109: 0
A110: 220000000 | B110: 0 | C110: 0 | D110: 0 | E110: 0 | F110: 0 | G110: 0 | H110: 0 | I110: 0 | J110: 0
A111: 270000000 | B111: 0 | C111: 0 | D111: 0 | E111: 0 | F111: 0 | G111: 0 | H111: 0 | I111: 0 | J111: 0
A112: 330000000 | B112: 0 | C112: 0 | D112: 0 | E112: 0 | F112: 0 | G112: 0 | H112: 0 | I112: 0 | J112: 0
A113: 390000000 | B113: 0 | C113: 0 | D113: 0 | E113: 0 | F113: 0 | G113: 0 | H113: 0 | I113: 0 | J113: 0
A114: 470000000 | B114: 0 | C114: 0 | D114: 0 | E114: 0 | F114: 0 | G114: 0 | H114: 0 | I114: 0 | J114: 0
A115: 560000000 | B115: 0 | C115: 0 | D115: 0 | E115: 0 | F115: 0 | G115: 0 | H115: 0 | I115: 0 | J115: 0
A116: 680000000 | B116: 0 | C116: 0 | D116: 0 | E116: 0 | F116: 0 | G116: 0 | H116: 0 | I116: 0 | J116: 0
A117: 820000000 | B117: 0 | C117: 0 | D117: 0 | E117: 0 | F117: 0 | G117: 0 | H117: 0 | I117: 0 | J117: 0
A118: 1000000000 | B118: 0 | C118: 0 | D118: 0 | E118: 0 | F118: 0 | G118: 0 | H118: 0 | I118: 0 | J118: 0
A119: 1200000000 | B119: 0 | C119: 0 | D119: 0 | E119: 0 | F119: 0 | G119: 0 | H119: 0 | I119: 0 | J119: 0
A120: 1500000000 | B120: 0 | C120: 0 | D120: 0 | E120: 0 | F120: 0 | G120: 0 | H120: 0 | I120: 0 | J120: 0
A121: 1800000000 | B121: 0 | C121: 0 | D121: 0 | E121: 0 | F121: 0 | G121: 0 | H121: 0 | I121: 0 | J121: 0
A122: 2200000000 | B122: 0 | C122: 0 | D122: 0 | E122: 0 | F122: 0 | G122: 0 | H122: 0 | I122: 0 | J122: 0
A123: 2700000000 | B123: 0 | C123: 0 | D123: 0 | E123: 0 | F123: 0 | G123: 0 | H123: 0 | I123: 0 | J123: 0
A124: 3300000000 | B124: 0 | C124: 0 | D124: 0 | E124: 0 | F124: 0 | G124: 0 | H124: 0 | I124: 0 | J124: 0
A125: 3900000000 | B125: 0 | C125: 0 | D125: 0 | E125: 0 | F125: 0 | G125: 0 | H125: 0 | I125: 0 | J125: 0
A126: 4700000000 | B126: 0 | C126: 0 | D126: 0 | E126: 0 | F126: 0 | G126: 0 | H126: 0 | I126: 0 | J126: 0
A127: 5600000000 | B127: 0 | C127: 0 | D127: 0 | E127: 0 | F127: 0 | G127: 0 | H127: 0 | I127: 0 | J127: 0
A128: 6800000000 | B128: 0 | C128: 0 | D128: 0 | E128: 0 | F128: 0 | G128: 0 | H128: 0 | I128: 0 | J128: 0
A129: 8200000000 | B129: 0 | C129: 0 | D129: 0 | E129: 0 | F129: 0 | G129: 0 | H129: 0 | I129: 0 | J129: 0
A130: 10000000000 | B130: 0 | C130: 0 | D130: 0 | E130: 0 | F130: 0 | G130: 0 | H130: 0 | I130: 0 | J130: 0
A131: 12000000000 | B131: 0 | C131: 0 | D131: 0 | E131: 0 | F131: 0 | G131: 0 | H131: 0 | I131: 0 | J131: 0
A132: 15000000000 | B132: 0 | C132: 0 | D132: 0 | E132: 0 | F132: 0 | G132: 0 | H132: 0 | I132: 0 | J132: 0
A133: 18000000000 | B133: 0 | C133: 0 | D133: 0 | E133: 0 | F133: 0 | G133: 0 | H133: 0 | I133: 0 | J133: =IF(IF((J$3*10^12-$A134)*(J$3*10^12-$A133)*-1<0,0,1)*IF(ABS(J$3*10^12-$A134)>(J$3*10^12-$A133),$A133,$A134)=J134,0,IF((J$3*10^12-$A134)*(J$3*10^12-$A133)*-1<0,0,1)*IF(ABS(J$3*10^12-$A134)>(J$3*10^12-$A133),$A133,$A134)) -> 0
A134: 22000000000 | B134: 0 | C134: 0 | D134: 0 | E134: =IF(IF((E$3*10^12-$A135)*(E$3*10^12-$A134)*-1<0,0,1)*IF(ABS(E$3*10^12-$A135)>(E$3*10^12-$A134),$A134,$A135)=E135,0,IF((E$3*10^12-$A135)*(E$3*10^12-$A134)*-1<0,0,1)*IF(ABS(E$3*10^12-$A135)>(E$3*10^12-$A134),$A134,$A135)) -> 0 | F134: 0 | G134: 0 | H134: 0 | I134: 0 | J134: =IF(IF((J$3*10^12-$A135)*(J$3*10^12-$A134)*-1<0,0,1)*IF(ABS(J$3*10^12-$A135)>(J$3*10^12-$A134),$A134,$A135)=J135,0,IF((J$3*10^12-$A135)*(J$3*10^12-$A134)*-1<0,0,1)*IF(ABS(J$3*10^12-$A135)>(J$3*10^12-$A134),$A134,$A135)) -> 0
A135: 27000000000 | B135: =IF(IF((B$3*10^12-$A136)*(B$3*10^12-$A135)*-1<0,0,1)*IF(ABS(B$3*10^12-$A136)>(B$3*10^12-$A135),$A135,$A136)=B136,0,IF((B$3*10^12-$A136)*(B$3*10^12-$A135)*-1<0,0,1)*IF(ABS(B$3*10^12-$A136)>(B$3*10^12-$A135),$A135,$A136)) -> 0 | C135: =IF(IF((C$3*10^12-$A136)*(C$3*10^12-$A135)*-1<0,0,1)*IF(ABS(C$3*10^12-$A136)>(C$3*10^12-$A135),$A135,$A136)=C136,0,IF((C$3*10^12-$A136)*(C$3*10^12-$A135)*-1<0,0,1)*IF(ABS(C$3*10^12-$A136)>(C$3*10^12-$A135),$A135,$A136)) -> 0 | D135: 0 | E135: 0 | F135: 0 | G135: 0 | H135: 0 | I135: 0 | J135: 0
A136: 33000000000 | B136: 0 | C136: 0 | D136: 0 | E136: 0 | F136: 0 | G136: 0 | H136: 0 | I136: 0 | J136: 0
A137: 39000000000 | B137: 0 | C137: 0 | D137: 0 | E137: 0 | F137: 0 | G137: 0 | H137: 0 | I137: 0 | J137: 0
A138: 47000000000 | B138: 0 | C138: 0 | D138: 0 | E138: 0 | F138: 0 | G138: 0 | H138: 0 | I138: 0 | J138: 0
A139: 56000000000 | B139: 0 | C139: 0 | D139: 0 | E139: 0 | F139: 0 | G139: 0 | H139: 0 | I139: 0 | J139: 0
A140: 68000000000 | B140: 0 | C140: 0 | D140: 0 | E140: 0 | F140: 0 | G140: 0 | H140: 0 | I140: 0 | J140: 0
A141: 82000000000 | B141: 0 | C141: 0 | D141: 0 | E141: 0 | F141: 0 | G141: 0 | H141: 0 | I141: 0 | J141: 0
A142: 100000000000 | B142: 0 | C142: 0 | D142: 0 | E142: 0 | F142: 0 | G142: 0 | H142: 0 | I142: 0 | J142: 0
A143: 120000000000 | B143: 0 | C143: 0 | D143: 0 | E143: 0 | F143: 0 | G143: 0 | H143: 0 | I143: 0 | J143: 0
A144: 150000000000 | B144: 0 | C144: 0 | D144: 0 | E144: 0 | F144: 0 | G144: 0 | H144: 0 | I144: 0 | J144: 0
A145: 180000000000 | B145: 0 | C145: 0 | D145: 0 | E145: 0 | F145: 0 | G145: 0 | H145: 0 | I145: 0 | J145: 0
A146: 220000000000 | B146: 0 | C146: 0 | D146: 0 | E146: 0 | F146: 0 | G146: 0 | H146: 0 | I146: 0 | J146: 0
A147: 270000000000 | B147: 0 | C147: 0 | D147: 0 | E147: 0 | F147: 0 | G147: 0 | H147: 0 | I147: 0 | J147: 0
A148: 330000000000 | B148: 0 | C148: 0 | D148: 0 | E148: 0 | F148: 0 | G148: 0 | H148: 0 | I148: 0 | J148: 0
A149: 390000000000 | B149: 0 | C149: 0 | D149: 0 | E149: 0 | F149: 0 | G149: 0 | H149: 0 | I149: 0 | J149: 0
A150: 470000000000 | B150: 0 | C150: 0 | D150: 0 | E150: 0 | F150: 0 | G150: 0 | H150: 0 | I150: 0 | J150: 0
A151: 560000000000 | B151: 0 | C151: 0 | D151: 0 | E151: 0 | F151: 0 | G151: 0 | H151: 0 | I151: 0 | J151: 0
A152: 680000000000 | B152: 0 | C152: 0 | D152: 0 | E152: 0 | F152: 0 | G152: 0 | H152: 0 | I152: 0 | J152: 0
A153: 820000000000 | B153: 0 | C153: 0 | D153: 0 | E153: 0 | F153: 0 | G153: 0 | H153: 0 | I153: 0 | J153: 0
A154: 1000000000000 | B154: 0 | C154: 0 | D154: 0 | E154: 0 | F154: 0 | G154: 0 | H154: 0 | I154: 0 | J154: 0
A155: 1200000000000 | B155: 0 | C155: 0 | D155: 0 | E155: 0 | F155: 0 | G155: 0 | H155: 0 | I155: 0 | J155: 0
A156: 1500000000000 | B156: 0 | C156: 0 | D156: 0 | E156: 0 | F156: 0 | G156: 0 | H156: 0 | I156: 0 | J156: 0
A157: 1800000000000 | B157: 0 | C157: 0 | D157: 0 | E157: 0 | F157: 0 | G157: 0 | H157: 0 | I157: 0 | J157: 0
A158: 2200000000000 | B158: 0 | C158: 0 | D158: 0 | E158: 0 | F158: 0 | G158: 0 | H158: 0 | I158: 0 | J158: 0
A159: 2700000000000 | B159: 2700000000000 | C159: 2700000000000 | D159: 2700000000000 | E159: 2700000000000 | F159: 2700000000000 | G159: 2700000000000 | H159: 2700000000000 | I159: 2700000000000 | J159: 2700000000000

Sheet Snubber (hidden)
C1: UNITS | D1: STD UNITS
A2: Frequency of Ringing | B2: 85 | C2: MHz | D2: =B2*1000000 -> 85000000 | E2: Hz
A3: SW capacitance | B3: 3000 | C3: pF | D3: =B3*0.000000000001 -> 3e-09 | E3: F
A4: Lpar | B4: =1000000000*1/((D2*2*3.14159)^2*D3) -> 1.168643077 | C4: nH | D4: =B4/1000000000 -> 1.168643077e-09 | E4: H
A5: Csnub | B5: =4*B3 -> 12000 | C5: pF | D5: =B5*0.000000000001 -> 1.2e-08 | E5: F
A6: Rsnub | B6: =SQRT(D4/D3) -> 0.6241375589 | C6: Ω | D6: =B6 -> 0.6241375589 | E6: Ω

Sheet Parallel Output Caps (hidden)
A4: Fsw | B4: =Fsw -> 400000
A6: C1 | B6: 20 | C6: uF | D6: =B6/1000000 -> 2e-05 | E6: F
A7: R1 | B7: 0.5 | C7: mOhms | D7: =B7/1000 -> 0.0005 | E7: Ohms
A9: C2 | B9: 68 | C9: uF | D9: =B9/1000000 -> 6.8e-05 | E9: F
A10: R2 | B10: 20 | C10: mOhms | D10: =B10/1000 -> 0.02 | E10: Ohms
A13: I1 | B13: =(D6/(D6+D9))*SQRT((D10*D9*B4)^2+1)/SQRT((((D7+D10)*D6*D9/(D9+D6))*B4)^2+1) -> 0.256672574 | C13: %
A14: I2 | B14: =1-B13 -> 0.743327426 | C14: %
A16: I1 | B16: =B13*(Iripple1/(2*SQRT(3))) ->  | C16: A
A17: I2 | B17: =B14*(Iripple1/(2*SQRT(3))) ->  | C17: A
